Ref No,Fund Type,Dept,Cost Centre Description    ,Description    ,Creditor Name    ,GL Code Net Amount,Payment date        
2,Revenue,CCHD,Bed purchasing - Under 65s PWLD - North,Residential Homes,.,6873.04, 24-Dec-2012
3,Revenue,CCHD,Home Care - Elderly - South,Other Small Contracts,3 Trees Community Support Ltd,94.56, 10-Dec-2012
4,Revenue,CCHD,Home Care - Elderly - North,Other Small Contracts,3 Trees Community Support Ltd,1623.28, 10-Dec-2012
5,Revenue,CCHD,Day Care - North,Private & Voluntary Day Care,3 Trees Community Support Ltd,98.50, 10-Dec-2012
6,Revenue,CCHD,Home Care - LD Under 65 - South,Private & Voluntary Home Care,3 Trees Community Support Ltd,114.26, 10-Dec-2012
7,Revenue,CCHD,PWLD Home Care - Under 65 - KH,Private & Voluntary Home Care,3 Trees Community Support Ltd,287.62, 10-Dec-2012
8,Revenue,CCHD,Home Care - Elderly - South,Other Small Contracts,3 Trees Community Support Ltd,94.56, 13-Dec-2012
9,Revenue,CCHD,Home Care - Elderly - North,Other Small Contracts,3 Trees Community Support Ltd,1623.28, 13-Dec-2012
10,Revenue,CCHD,Day Care - North,Private & Voluntary Day Care,3 Trees Community Support Ltd,94.56, 13-Dec-2012
11,Revenue,CCHD,Home Care - LD Under 65 - South,Private & Voluntary Home Care,3 Trees Community Support Ltd,110.32, 13-Dec-2012
12,Revenue,CCHD,PWLD Home Care - Under 65 - KH,Private & Voluntary Home Care,3 Trees Community Support Ltd,275.80, 13-Dec-2012
13,Revenue,CCHD,Home Care - Elderly - South,Other Small Contracts,3 Trees Community Support Ltd,94.56, 20-Dec-2012
14,Revenue,CCHD,Home Care - Elderly - North,Other Small Contracts,3 Trees Community Support Ltd,1402.64, 20-Dec-2012
15,Revenue,CCHD,Day Care - North,Private & Voluntary Day Care,3 Trees Community Support Ltd,94.56, 20-Dec-2012
16,Revenue,CCHD,Home Care - LD Under 65 - South,Private & Voluntary Home Care,3 Trees Community Support Ltd,110.32, 20-Dec-2012
17,Revenue,CCHD,PWLD Home Care - Under 65 - KH,Private & Voluntary Home Care,3 Trees Community Support Ltd,263.98, 20-Dec-2012
18,Revenue,CCHD,Supported Living - KD,Private & Voluntary Home Care,3 Trees Community Support Ltd,2155.44, 06-Dec-2012
19,Revenue,CCHD,Supported Living - KD,Private & Voluntary Home Care,3 Trees Community Support Ltd,7560.24, 10-Dec-2012
20,Revenue,CCHD,Supported Living - PS,Private & Voluntary Home Care,3 Trees Community Support Ltd,762.30, 21-Dec-2012
21,Revenue,CCHD,Supported Living - PS,Private & Voluntary Home Care,3 Trees Community Support Ltd,1218.18, 24-Dec-2012
22,Revenue,CCHD,Supported Living - KD,Private & Voluntary Home Care,3 Trees Community Support Ltd,2386.87, 24-Dec-2012
23,Revenue,CCHD,Purchase of Non-Res Care - PS,Private & Voluntary Day Care,3 Trees Community Support Ltd,652.72, 21-Dec-2012
24,Revenue,CCHD,Purchase of Non-Res Care - PS,Private & Voluntary Day Care,3 Trees Community Support Ltd,3918.65, 24-Dec-2012
25,Revenue,CCHD,Bed Purchasing - Elderly S117- North,Residential Homes,3Rd Floor Westbury House,1716.00, 24-Dec-2012
26,Revenue,CCHD,Woodleaze,Prop.Serv. General Repairs,A E Horder (Contracting) Limited,5249.55, 13-Dec-2012
27,Revenue,CCHD,Woodleaze,Maintenance by Contractor,A G Gribble Limited,4365.00, 03-Dec-2012
28,Revenue,CCHD,Frenchay Hospital Purchasing,Nursing Homes,Aabletone Nursing Home,1850.29, 24-Dec-2012
29,Revenue,CCHD,Frenchay Hospital Purchasing,Residential Homes,Abbey Grange,1421.71, 24-Dec-2012
30,Revenue,CCHD,Day Care - North,Private & Voluntary Day Care,About Me Care and Support Limited,1292.86, 27-Dec-2012
31,Revenue,CCHD,Day Care - South,Private & Voluntary Day Care,About Me Care and Support Limited,1353.94, 27-Dec-2012
32,Revenue,CCHD,Day Care - South,Private & Voluntary Day Care,About Me Care and Support Limited,2008.61, 27-Dec-2012
33,Revenue,CCHD,Older People's Commissioned Se,Grants to Voluntary Bodies,Action for Blind People,19065.00, 27-Dec-2012
34,Revenue,CCHD,Day Care - North,Private & Voluntary Day Care,Action on Hearing Loss,541.08, 11-Dec-2012
35,Revenue,CCHD,Day Care - North,Private & Voluntary Day Care,Age UK South Gloucestershire,1533.24, 03-Dec-2012
36,Revenue,CCHD,Day Care - North,Private & Voluntary Day Care,Age UK South Gloucestershire,1533.24, 03-Dec-2012
37,Revenue,CCHD,Home Care - Elderly - South,Other Small Contracts,Agincare Chippenham,963.63, 03-Dec-2012
38,Revenue,CCHD,Home Care - Elderly - South,Other Small Contracts,Agincare Chippenham,1056.51, 14-Dec-2012
39,Revenue,CCHD,Home Care - Elderly - South,Other Small Contracts,Agincare Chippenham,975.24, 14-Dec-2012
40,Revenue,CCHD,Home Care - Elderly - South,Other Small Contracts,Agincare Chippenham,1044.90, 19-Dec-2012
41,Revenue,CCHD,Home Care - Elderly - South,Other Small Contracts,Agincare UK Limited,820.44, 05-Dec-2012
42,Revenue,CCHD,Home Care - Elderly - North,Other Small Contracts,Agincare UK Limited,50.31, 05-Dec-2012
43,Revenue,CCHD,Day Care - South,Private & Voluntary Day Care,Agincare UK Limited,131.58, 05-Dec-2012
44,Revenue,CCHD,Elderly MH Day Care North,Private & Voluntary Day Care,Agincare UK Limited,108.36, 05-Dec-2012
45,Revenue,CCHD,Home Care - Elderly - South,Other Small Contracts,Agincare UK Limited,688.86, 10-Dec-2012
46,Revenue,CCHD,Home Care - Elderly - North,Other Small Contracts,Agincare UK Limited,81.27, 10-Dec-2012
47,Revenue,CCHD,Day Care - South,Private & Voluntary Day Care,Agincare UK Limited,166.41, 10-Dec-2012
48,Revenue,CCHD,Elderly MH Day Care North,Private & Voluntary Day Care,Agincare UK Limited,89.01, 10-Dec-2012
49,Revenue,CCHD,Home Care - Elderly - South,Other Small Contracts,Agincare UK Limited,847.53, 10-Dec-2012
50,Revenue,CCHD,Home Care - Elderly - North,Other Small Contracts,Agincare UK Limited,61.92, 10-Dec-2012
51,Revenue,CCHD,Day Care - South,Private & Voluntary Day Care,Agincare UK Limited,162.54, 10-Dec-2012
52,Revenue,CCHD,Elderly MH Day Care North,Private & Voluntary Day Care,Agincare UK Limited,108.36, 10-Dec-2012
53,Revenue,CCHD,Home Care - Elderly - South,Other Small Contracts,Agincare UK Limited,843.66, 20-Dec-2012
54,Revenue,CCHD,Home Care - Elderly - North,Other Small Contracts,Agincare UK Limited,69.66, 20-Dec-2012
55,Revenue,CCHD,Day Care - South,Private & Voluntary Day Care,Agincare UK Limited,158.67, 20-Dec-2012
56,Revenue,CCHD,Elderly MH Day Care North,Private & Voluntary Day Care,Agincare UK Limited,108.36, 20-Dec-2012
57,Revenue,CCHD,S117 Placements PCT,Residential Homes,Alexandra House,6810.28, 24-Dec-2012
58,Revenue,CCHD,Section 117 Placements MH Younger,Residential Homes,Alexandra House,6340.00, 24-Dec-2012
59,Revenue,CCHD,Home Care - Elderly - South,Other Small Contracts,Allied Healthcare Group,582.93, 21-Dec-2012
60,Revenue,CCHD,Home Care - Elderly - North,Other Small Contracts,Allied Healthcare Group,1763.73, 21-Dec-2012
61,Revenue,CCHD,Day Care - North,Private & Voluntary Day Care,Allied Healthcare Group,45.72, 21-Dec-2012
62,Revenue,CCHD,Home Care - Elderly - South,Other Small Contracts,Allied Healthcare Group,487.68, 21-Dec-2012
63,Revenue,CCHD,Home Care - Elderly - North,Other Small Contracts,Allied Healthcare Group,1843.74, 21-Dec-2012
64,Revenue,CCHD,Day Care - North,Private & Voluntary Day Care,Allied Healthcare Group,30.48, 21-Dec-2012
65,Revenue,CCHD,Home Care - Elderly - South,Other Small Contracts,Allied Healthcare Group,533.40, 21-Dec-2012
66,Revenue,CCHD,Home Care - Elderly - North,Other Small Contracts,Allied Healthcare Group,1759.92, 21-Dec-2012
67,Revenue,CCHD,Day Care - North,Private & Voluntary Day Care,Allied Healthcare Group,41.91, 21-Dec-2012
68,Revenue,CCHD,Day Care - South,Private & Voluntary Day Care,Alzheimer`s Society Bristol,572.16, 05-Dec-2012
69,Revenue,CCHD,Elderly MH Day Care North,Private & Voluntary Day Care,Alzheimer`s Society Bristol,643.68, 27-Dec-2012
70,Revenue,CCHD,Elderly MH Day Care North,Private & Voluntary Day Care,Alzheimer`s Society Bristol,929.76, 27-Dec-2012
71,Revenue,CCHD,Day Care - South,Private & Voluntary Day Care,Alzheimer`s Society Bristol,715.20, 27-Dec-2012
72,Revenue,CCHD,Elderly MH Day Care South,Private & Voluntary Day Care,Alzheimer`s Society Bristol,643.68, 27-Dec-2012
73,Revenue,CCHD,Bed Purchasing - Elderly S117- North,Private & Voluntary Day Care,Alzheimer`s Society Bristol,643.68, 27-Dec-2012
74,Revenue,CCHD,Frenchay Hospital Purchasing,Residential Homes,Amber Care Ltd,1290.20, 24-Dec-2012
75,Revenue,CCHD,Southmead Hospital Purchasing,Nursing Homes,Ambleside Nusing Ho!,1416.40, 24-Dec-2012
76,Revenue,CCHD,Frenchay Hospital Purchasing,Residential Homes,Anbridge Care Home,828.88, 24-Dec-2012
77,Revenue,CCHD,Bed purchasing - Elderly PWLD - South,Nursing Homes,Annabel House,6056.72, 24-Dec-2012
78,Revenue,CCHD,Bed purchasing - Under 65s PWLD - North,Residential Homes,Ark Care Homes Ltd,10067.92, 24-Dec-2012
79,Revenue,CCHD,Bed Purchasing - Elderly - South,Residential Homes,Ashbourne House Care Home Limited,1102.96, 24-Dec-2012
80,Revenue,CCHD,Bed and Breakfast,Bed & Breakfast,Ashley Guest Houses Ltd,672.00, 21-Dec-2012
81,Revenue,CCHD,Bed and Breakfast,Bed & Breakfast,Ashley Guest Houses Ltd,840.00, 27-Dec-2012
82,Revenue,CCHD,Bed and Breakfast,Bed & Breakfast,Ashley Guest Houses Ltd,672.00, 14-Dec-2012
83,Revenue,CCHD,Bed and Breakfast,Bed & Breakfast,Ashley Guest Houses Ltd,504.00, 20-Dec-2012
84,Revenue,CCHD,Bed Purchasing - S28A - Over 65- North,Residential Homes,Aspects &  Milestones Trust,3882.32, 24-Dec-2012
85,Revenue,CCHD,Bed Purchasing - Elderly - South,Residential Homes,Aspects &  Milestones Trust,1398.40, 24-Dec-2012
86,Revenue,CCHD,Bed Purchasing - Under 65s PWLD - South,Residential Homes,Aspects &  Milestones Trust,5873.08, 24-Dec-2012
87,Revenue,CCHD,Bed Purchasing - Elderly S117- North,Residential Homes,Aspects &  Milestones Trust,1325.92, 24-Dec-2012
88,Revenue,CCHD,Bed Purchasing - Elderly S117- North,Nursing Homes,Aspects &  Milestones Trust,1944.08, 24-Dec-2012
89,Revenue,CCHD,Bed purchasing - Elderly MH - North,Nursing Homes,Aspects &  Milestones Trust,2318.24, 24-Dec-2012
90,Revenue,CCHD,Bed purchasing - Elderly PWLD - North,Residential Homes,Aspects &  Milestones Trust,3554.88, 24-Dec-2012
91,Revenue,CCHD,Bed Purchasing - Under 65s PWLD - South,Residential Homes,Aspects &  Milestones Trust,5227.12, 24-Dec-2012
92,Revenue,CCHD,Bed Purchasing - Under 65s PWLD - South,Residential Homes,Aspects &  Milestones Trust,5683.72, 24-Dec-2012
93,Revenue,CCHD,Bed Purchasing - Under 65s PWLD - South,Nursing Homes,Aspects &  Milestones Trust,2766.32, 24-Dec-2012
94,Revenue,CCHD,Bed Purchasing - Elderly S117- North,Nursing Homes,Aspects &  Milestones Trust,1944.00, 24-Dec-2012
95,Revenue,CCHD,Bed purchasing - Elderly MH - North,Nursing Homes,Aspects &  Milestones Trust,1430.08, 24-Dec-2012
96,Revenue,CCHD,Section 117 Placements MH Younger,Nursing Homes,Aspects &  Milestones Trust,1600.00, 24-Dec-2012
97,Revenue,CCHD,Bed purchasing - Elderly PWLD - South,Residential Homes,Aspects &  Milestones Trust,3199.56, 24-Dec-2012
98,Revenue,CCHD,Bed Purchasing - Elderly - North,Nursing Homes,Aspects &  Milestones Trust,796.30, 24-Dec-2012
99,Revenue,CCHD,Bed purchasing - Elderly PWLD - South,Residential Homes,Aspects &  Milestones Trust,4357.80, 24-Dec-2012
100,Revenue,CCHD,Bed purchasing -S28A  Under 65 - North,Nursing Homes,Aspects &  Milestones Trust,5800.72, 24-Dec-2012
101,Revenue,CCHD,Bed purchasing -S28A  Under 65 - North,Residential Homes,Aspects &  Milestones Trust,5183.96, 24-Dec-2012
102,Revenue,CCHD,Bed Purchasing - Under 65s PWLD - South,Residential Homes,Aspects &  Milestones Trust,3495.32, 24-Dec-2012
103,Revenue,CCHD,Bed purchasing - S28A Under 65 - South,Residential Homes,Aspects &  Milestones Trust,5327.80, 24-Dec-2012
104,Revenue,CCHD,Bed Purchasing - Elderly MH - South,Residential Homes,Aspects &  Milestones Trust,1283.20, 24-Dec-2012
105,Revenue,CCHD,Bed Purchasing - Under 65s PWLD - South,Residential Homes,Aspects &  Milestones Trust,5721.60, 24-Dec-2012
106,Revenue,CCHD,Bed purchasing - S28A Under 65 - South,Nursing Homes,Aspects &  Milestones Trust,7576.08, 24-Dec-2012
107,Revenue,CCHD,MH Purchasing - Younger,Residential Homes,Aspects &  Milestones Trust,847.20, 24-Dec-2012
108,Revenue,CCHD,Bed purchasing - Elderly PWLD - South,Residential Homes,Aspects &  Milestones Trust,5276.32, 24-Dec-2012
109,Revenue,CCHD,Bed purchasing - Elderly PWLD - South,Residential Homes,Aspects &  Milestones Trust,3791.92, 24-Dec-2012
110,Revenue,CCHD,Bed purchasing - Elderly PWLD - North,Residential Homes,Aspects &  Milestones Trust,4732.52, 24-Dec-2012
111,Revenue,CCHD,Bed purchasing -S28A  Under 65 - North,Residential Homes,Aspects &  Milestones Trust,5268.68, 24-Dec-2012
112,Revenue,CCHD,Bed purchasing -S28A  Under 65 - North,Residential Homes,Aspects &  Milestones Trust,6125.96, 24-Dec-2012
113,Revenue,CCHD,Bed purchasing -S28A  Under 65 - North,Nursing Homes,Aspects &  Milestones Trust,6213.88, 24-Dec-2012
114,Revenue,CCHD,Bed Purchasing - Under 65s PWLD - South,Residential Homes,Aspects &  Milestones Trust,3699.60, 24-Dec-2012
115,Revenue,CCHD,Bed purchasing -S28A  Under 65 - North,Residential Homes,Aspects &  Milestones Trust,6125.96, 24-Dec-2012
116,Revenue,CCHD,Bed purchasing - S28A Under 65 - South,Residential Homes,Aspects &  Milestones Trust,4856.92, 24-Dec-2012
117,Revenue,CCHD,Bed Purchasing - S28A - Over 65- North,Residential Homes,Aspects &  Milestones Trust,11000.95, 24-Dec-2012
118,Revenue,CCHD,Bed Purchasing - LD S28A- Over 65- South,Residential Homes,Aspects &  Milestones Trust,4015.52, 24-Dec-2012
119,Revenue,CCHD,Bed purchasing -S28A  Under 65 - North,Residential Homes,Aspects &  Milestones Trust,6125.96, 24-Dec-2012
120,Revenue,CCHD,Bed purchasing -S28A  Under 65 - North,Residential Homes,Aspects &  Milestones Trust,6125.96, 24-Dec-2012
121,Revenue,CCHD,Bed Purchasing - LD S28A- Over 65- South,Residential Homes,Aspects &  Milestones Trust,3905.44, 24-Dec-2012
122,Revenue,CCHD,Bed purchasing - S28A Under 65 - South,Residential Homes,Aspects &  Milestones Trust,5052.20, 24-Dec-2012
123,Revenue,CCHD,Bed purchasing - S28A Under 65 - South,Residential Homes,Aspects &  Milestones Trust,6626.28, 24-Dec-2012
124,Revenue,CCHD,Bed purchasing - S28A Under 65 - South,Residential Homes,Aspects &  Milestones Trust,4047.80, 24-Dec-2012
125,Revenue,CCHD,Bed Purchasing - LD S28A- Over 65- South,Residential Homes,Aspects &  Milestones Trust,5824.28, 24-Dec-2012
126,Revenue,CCHD,Bed Purchasing - S28A - Over 65- North,Residential Homes,Aspects &  Milestones Trust,3397.72, 24-Dec-2012
127,Revenue,CCHD,Bed Purchasing - LD S28A- Over 65- South,Residential Homes,Aspects &  Milestones Trust,4760.52, 24-Dec-2012
128,Revenue,CCHD,Bed Purchasing - LD S28A- Over 65- South,Residential Homes,Aspects &  Milestones Trust,4908.20, 24-Dec-2012
129,Revenue,CCHD,Bed Purchasing - LD S28A- Over 65- South,Residential Homes,Aspects &  Milestones Trust,4622.60, 24-Dec-2012
130,Revenue,CCHD,Bed Purchasing - LD S28A- Over 65- South,Residential Homes,Aspects &  Milestones Trust,5383.48, 24-Dec-2012
131,Revenue,CCHD,Bed purchasing -S28A  Under 65 - North,Residential Homes,Aspects &  Milestones Trust,7309.52, 24-Dec-2012
132,Revenue,CCHD,Bed purchasing -S28A  Under 65 - North,Nursing Homes,Aspects &  Milestones Trust,6296.44, 24-Dec-2012
133,Revenue,CCHD,Bed Purchasing - LD S28A- Over 65- South,Residential Homes,Aspects &  Milestones Trust,3492.92, 24-Dec-2012
134,Revenue,CCHD,Bed Purchasing - LD S28A- Over 65- South,Residential Homes,Aspects &  Milestones Trust,3251.48, 24-Dec-2012
135,Revenue,CCHD,Bed Purchasing - S28A - Over 65- North,Residential Homes,Aspects &  Milestones Trust,3308.72, 24-Dec-2012
136,Revenue,CCHD,Bed Purchasing - LD S28A- Over 65- South,Residential Homes,Aspects &  Milestones Trust,4720.44, 24-Dec-2012
137,Revenue,CCHD,Section 117 Placements MH Younger,Residential Homes,Aspects &  Milestones Trust,1324.00, 24-Dec-2012
138,Revenue,CCHD,Bed purchasing - Elderly MH - North,Residential Homes,Aspects &  Milestones Trust,849.48, 24-Dec-2012
139,Revenue,CCHD,Bed purchasing - S28A Under 65 - South,Residential Homes,Aspects &  Milestones Trust,4790.96, 24-Dec-2012
140,Revenue,CCHD,Bed purchasing - Elderly PWLD - North,Residential Homes,Aspects &  Milestones Trust,5424.04, 24-Dec-2012
141,Revenue,CCHD,Bed purchasing - Under 65s PWLD - North,Residential Homes,Aspects &  Milestones Trust,5511.12, 24-Dec-2012
142,Revenue,CCHD,Bed purchasing - Elderly MH - North,Nursing Homes,Aspects &  Milestones Trust,1096.68, 24-Dec-2012
143,Revenue,CCHD,Bed Purchasing - Under 65s PWLD - South,Residential Homes,Aspects &  Milestones Trust,3849.40, 24-Dec-2012
144,Revenue,CCHD,Bed purchasing -S28A  Under 65 - North,Residential Homes,Aspects &  Milestones Trust,5771.60, 24-Dec-2012
145,Revenue,CCHD,Bed Purchasing - S28A - Over 65- North,Residential Homes,Aspects &  Milestones Trust,3271.48, 24-Dec-2012
146,Revenue,CCHD,Section 117 Placements MH Younger,Residential Homes,Aspects &  Milestones Trust,1716.00, 24-Dec-2012
147,Revenue,CCHD,MH Purchasing - Younger,Residential Homes,Aspects &  Milestones Trust,1012.60, 24-Dec-2012
148,Revenue,CCHD,Bed Purchasing - S28A - Over 65- North,Residential Homes,Aspects &  Milestones Trust,3511.28, 24-Dec-2012
149,Revenue,CCHD,Bed purchasing - S28A Under 65 - South,Residential Homes,Aspects &  Milestones Trust,3563.92, 24-Dec-2012
150,Revenue,CCHD,Bed purchasing - S28A Under 65 - South,Residential Homes,Aspects &  Milestones Trust,5052.20, 24-Dec-2012
151,Revenue,CCHD,Bed purchasing - S28A Under 65 - South,Residential Homes,Aspects &  Milestones Trust,6024.64, 24-Dec-2012
152,Revenue,CCHD,Bed Purchasing - LD S28A- Over 65- South,Residential Homes,Aspects &  Milestones Trust,5898.16, 24-Dec-2012
153,Revenue,CCHD,Bed Purchasing - LD S28A- Over 65- South,Residential Homes,Aspects &  Milestones Trust,4164.96, 24-Dec-2012
154,Revenue,CCHD,Bed Purchasing - LD S28A- Over 65- South,Residential Homes,Aspects &  Milestones Trust,4720.44, 24-Dec-2012
155,Revenue,CCHD,Bed Purchasing - LD S28A- Over 65- South,Residential Homes,Aspects &  Milestones Trust,5607.60, 24-Dec-2012
156,Revenue,CCHD,Bed purchasing - S28A Under 65 - South,Residential Homes,Aspects &  Milestones Trust,7572.92, 24-Dec-2012
157,Revenue,CCHD,Bed Purchasing - LD S28A- Over 65- South,Residential Homes,Aspects &  Milestones Trust,4902.32, 24-Dec-2012
158,Revenue,CCHD,Bed purchasing -S28A  Under 65 - North,Residential Homes,Aspects &  Milestones Trust,4743.92, 24-Dec-2012
159,Revenue,CCHD,Bed Purchasing - S28A - Over 65- North,Residential Homes,Aspects &  Milestones Trust,4885.40, 24-Dec-2012
160,Revenue,CCHD,Bed Purchasing - S28A - Over 65- North,Residential Homes,Aspects &  Milestones Trust,5473.64, 24-Dec-2012
161,Revenue,CCHD,Bed purchasing - S28A Under 65 - South,Residential Homes,Aspects &  Milestones Trust,4611.44, 24-Dec-2012
162,Revenue,CCHD,Bed Purchasing - S28A - Over 65- North,Residential Homes,Aspects &  Milestones Trust,4885.40, 24-Dec-2012
163,Revenue,CCHD,Bed Purchasing - S28A - Over 65- North,Residential Homes,Aspects &  Milestones Trust,5277.28, 24-Dec-2012
164,Revenue,CCHD,Bed purchasing - S28A Under 65 - South,Residential Homes,Aspects &  Milestones Trust,4569.00, 24-Dec-2012
165,Revenue,CCHD,Bed purchasing -S28A  Under 65 - North,Residential Homes,Aspects &  Milestones Trust,6125.96, 24-Dec-2012
166,Revenue,CCHD,Bed Purchasing - S28A - Over 65- North,Residential Homes,Aspects &  Milestones Trust,5621.68, 24-Dec-2012
167,Revenue,CCHD,Bed purchasing -S28A  Under 65 - North,Residential Homes,Aspects &  Milestones Trust,3468.84, 24-Dec-2012
168,Revenue,CCHD,Bed Purchasing - S28A - Over 65- North,Residential Homes,Aspects &  Milestones Trust,3275.16, 24-Dec-2012
169,Revenue,CCHD,Bed Purchasing - S28A - Over 65- North,Residential Homes,Aspects &  Milestones Trust,3412.88, 24-Dec-2012
170,Revenue,CCHD,Bed Purchasing - LD S28A- Over 65- South,Residential Homes,Aspects &  Milestones Trust,3204.20, 24-Dec-2012
171,Revenue,CCHD,Bed purchasing - Elderly S117 - South,Nursing Homes,Aspects &  Milestones Trust,1945.16, 24-Dec-2012
172,Revenue,CCHD,Bed Purchasing - Elderly - South,Nursing Homes,Aspects &  Milestones Trust,1456.88, 24-Dec-2012
173,Revenue,CCHD,Bed purchasing - Under 65s PWLD - North,Residential Homes,Aspects &  Milestones Trust,6125.96, 24-Dec-2012
174,Revenue,CCHD,MH Purchasing - Younger,Nursing Homes,Aspects &  Milestones Trust,920.56, 24-Dec-2012
175,Revenue,CCHD,MH Purchasing - Younger,Nursing Homes,Aspects &  Milestones Trust,939.20, 24-Dec-2012
176,Revenue,CCHD,MH Purchasing - Younger,Residential Homes,Aspects &  Milestones Trust,1012.60, 24-Dec-2012
177,Revenue,CCHD,Bed purchasing - Elderly PWLD - South,Residential Homes,Aspects &  Milestones Trust,3399.76, 24-Dec-2012
178,Revenue,CCHD,Bed purchasing - S28A Under 65 - South,Residential Homes,Aspects &  Milestones Trust,7168.20, 24-Dec-2012
179,Revenue,CCHD,Bed purchasing - S28A Under 65 - South,Residential Homes,Aspects &  Milestones Trust,4866.72, 24-Dec-2012
180,Revenue,CCHD,Bed Purchasing - LD S28A- Over 65- South,Residential Homes,Aspects &  Milestones Trust,4628.68, 24-Dec-2012
181,Revenue,CCHD,Bed Purchasing - Under 65s PWLD - South,Residential Homes,Aspects &  Milestones Trust,4173.08, 24-Dec-2012
182,Revenue,CCHD,Bed Purchasing - LD S28A- Over 65- South,Nursing Homes,Aspects &  Milestones Trust,4196.40, 24-Dec-2012
183,Revenue,CCHD,Bed Purchasing - LD S28A- Over 65- South,Residential Homes,Aspects &  Milestones Trust,5898.16, 24-Dec-2012
184,Revenue,CCHD,Bed Purchasing - LD S28A- Over 65- South,Residential Homes,Aspects &  Milestones Trust,3973.08, 24-Dec-2012
185,Revenue,CCHD,Bed Purchasing - LD S28A- Over 65- South,Residential Homes,Aspects &  Milestones Trust,4406.80, 24-Dec-2012
186,Revenue,CCHD,Bed Purchasing - LD S28A- Over 65- South,Residential Homes,Aspects &  Milestones Trust,5155.88, 24-Dec-2012
187,Revenue,CCHD,Bed Purchasing - Elderly MH - South,Residential Homes,Aspects &  Milestones Trust,1206.56, 24-Dec-2012
188,Revenue,CCHD,Bed Purchasing - Elderly S117- North,Nursing Homes,Aspects &  Milestones Trust,1944.00, 24-Dec-2012
189,Revenue,CCHD,Bed Purchasing - Elderly S117- North,Nursing Homes,Aspects &  Milestones Trust,1944.00, 24-Dec-2012
190,Revenue,CCHD,Bed Purchasing - Elderly S117- North,Residential Homes,Aspects &  Milestones Trust,1324.00, 24-Dec-2012
191,Revenue,CCHD,Bed purchasing - Under 65s PWLD - North,Residential Homes,Aspects & Milestones Trust,8841.64, 24-Dec-2012
192,Revenue,CCHD,Supported Living - PS,Private & Voluntary Home Care,Aspirations Support Bristol Limited,3785.73, 24-Dec-2012
193,Revenue,CCHD,Supported Living - PS,Private & Voluntary Home Care,Aspirations Support Bristol Limited,4733.76, 04-Dec-2012
194,Revenue,CCHD,Supported Living - PS,Private & Voluntary Home Care,Aspirations Support Bristol Limited,4366.62, 21-Dec-2012
195,Revenue,CCHD,Supported Living - PS,Private & Voluntary Home Care,Aspirations Support Bristol Limited,4766.80, 04-Dec-2012
196,Revenue,CCHD,Supported Living - PS,Private & Voluntary Home Care,Aspirations Support Bristol Limited,4616.10, 21-Dec-2012
197,Revenue,CCHD,Purchase of Non-Res Care - PS,Private & Voluntary Day Care,Aspirations Support Bristol Limited,3094.65, 24-Dec-2012
198,Revenue,CCHD,Supported Living - KD,Private & Voluntary Home Care,Aspirations Support Bristol Limited,9417.18, 24-Dec-2012
199,Revenue,CCHD,Supported Living - KD,Private & Voluntary Home Care,Aspirations Support Bristol Limited,9113.40, 24-Dec-2012
200,Revenue,CCHD,Enabling Activities,Other Premises Costs,Aspire Environmental Limited,1220.00, 19-Dec-2012
201,Revenue,CCHD,Bed Purchasing - Under 65s PWLD - South,Residential Homes,Autism Specialised Care Homes,5515.04, 24-Dec-2012
202,Revenue,CCHD,Purchase of Non-Res Care - KD,Private & Voluntary Day Care,Avon Autistic Foundation Limited,3345.92, 20-Dec-2012
203,Revenue,CCHD,Purchase of Non-Res Care - KD,Private & Voluntary Day Care,Avon Autistic Foundation Limited,2279.76, 20-Dec-2012
204,Revenue,CCHD,Better Support for Older People,Other Supplies & Services,Barberry,575.00, 07-Dec-2012
205,Revenue,CCHD,Frenchay Hospital Purchasing,Residential Homes,Beaufort House,519.70, 24-Dec-2012
206,Revenue,CCHD,Bed purchasing - Elderly MH - North,Residential Homes,Beaufort House,1418.36, 24-Dec-2012
207,Revenue,CCHD,Bed Purchasing - Elderly - North,Residential Homes,Beaufort House,1022.32, 24-Dec-2012
208,Revenue,CCHD,Frenchay Hospital Purchasing,Residential Homes,Beaufort House,1276.24, 24-Dec-2012
209,Revenue,CCHD,Bed Purchasing - Elderly - North,Residential Homes,Beaufort House,1697.40, 24-Dec-2012
210,Revenue,CCHD,Bed purchasing - Elderly MH - North,Residential Homes,Beaufort House,875.84, 24-Dec-2012
211,Revenue,CCHD,Bed purchasing - Elderly MH - North,Residential Homes,Beaufort House,1011.32, 24-Dec-2012
212,Revenue,CCHD,Bed purchasing - Elderly MH - North,Residential Homes,Beaufort House,1672.68, 24-Dec-2012
213,Revenue,CCHD,Bed Purchasing - Elderly - North,Residential Homes,Beaufort House,1509.12, 24-Dec-2012
214,Revenue,CCHD,Bed purchasing - Elderly PWLD - South,Residential Homes,Bedrock Lodge,2858.60, 24-Dec-2012
215,Revenue,CCHD,Section 117 Placements MH Younger,Residential Homes,Bedrock Lodge,1820.20, 24-Dec-2012
216,Revenue,CCHD,Frenchay Hospital Purchasing,Nursing Homes,Beech House,744.68, 24-Dec-2012
217,Revenue,CCHD,Bed Purchasing - Elderly - North,Nursing Homes,Beech House,2649.93, 24-Dec-2012
218,Revenue,CCHD,Bed Purchasing - Elderly - North,Nursing Homes,Beech House,1530.91, 24-Dec-2012
219,Revenue,CCHD,Bed Purchasing - Elderly - North,Nursing Homes,Beech House,693.44, 24-Dec-2012
220,Revenue,CCHD,South Glos Users in South Glos Homes,Nursing Homes,Beech House,590.09, 24-Dec-2012
221,Revenue,CCHD,South Glos Users in South Glos Homes,Nursing Homes,Beech House,1273.34, 24-Dec-2012
222,Revenue,CCHD,Bed Purchasing - Elderly - North,Nursing Homes,Beech House,1231.00, 24-Dec-2012
223,Revenue,CCHD,South Glos Users in South Glos Homes,Nursing Homes,Beech House,854.07, 24-Dec-2012
224,Revenue,CCHD,Bed Purchasing - Elderly - North,Nursing Homes,Beech House,2202.92, 24-Dec-2012
225,Revenue,CCHD,Bed Purchasing - Under 65s PWLD - South,Residential Homes,Beechwood Residential College,31359.44, 24-Dec-2012
226,Revenue,CCHD,Bed purchasing - Under 65s PWLD - North,Residential Homes,Beechwood Residential College,32394.08, 24-Dec-2012
227,Revenue,CCHD,South Glos Users in South Glos Homes,Nursing Homes,Blossom Field,512.44, 24-Dec-2012
228,Revenue,CCHD,South Glos Users in South Glos Homes,Nursing Homes,Blossom Field,1149.11, 24-Dec-2012
229,Revenue,CCHD,South Glos Users in South Glos Homes,Nursing Homes,Blossom Field,1521.80, 24-Dec-2012
230,Revenue,CCHD,Bed Purchasing - Elderly - North,Residential Homes,Blossom Field,1430.00, 24-Dec-2012
231,Revenue,CCHD,South Glos Users in South Glos Homes,Nursing Homes,Blossom Field,652.20, 24-Dec-2012
232,Revenue,CCHD,Bed purchasing - Elderly MH - North,Nursing Homes,Blossom Field,1391.16, 24-Dec-2012
233,Revenue,CCHD,South Glos Users in South Glos Homes,Nursing Homes,Blossom Field,1024.89, 24-Dec-2012
234,Revenue,CCHD,South Glos Users in South Glos Homes,Nursing Homes,Blossom Field,559.03, 24-Dec-2012
235,Revenue,CCHD,South Glos Users in South Glos Homes,Nursing Homes,Blossom Field,1801.31, 24-Dec-2012
236,Revenue,CCHD,Bed Purchasing - Elderly - South,Nursing Homes,Blossom Field,1867.20, 24-Dec-2012
237,Revenue,CCHD,Bed Purchasing - Elderly - South,Nursing Homes,Blossom Fields,2433.16, 18-Dec-2012
238,Revenue,CCHD,Bed Purchasing - Elderly - North,Nursing Homes,Blossom Fields,6071.67, 18-Dec-2012
239,Revenue,CCHD,South Glos Users in South Glos Homes,Nursing Homes,Blossom Fields,2795.14, 18-Dec-2012
240,Revenue,CCHD,Bed purchasing - Elderly MH - North,Nursing Homes,Blossom Fields,1536.24, 18-Dec-2012
241,Revenue,CCHD,Training - Adult Services,Training Expenses,Bob Dawson,650.00, 28-Dec-2012
242,Revenue,CCHD,Frenchay Hospital Purchasing,Nursing Homes,Bradbury House,1366.76, 24-Dec-2012
243,Revenue,CCHD,Bed purchasing - Under 65s PWLD - North,Residential Homes,Bradbury House,23369.46, 24-Dec-2012
244,Revenue,CCHD,Bed Purchasing - Elderly - North,Nursing Homes,Bradbury House,975.84, 24-Dec-2012
245,Revenue,CCHD,Bed Purchasing - Elderly - North,Residential Homes,Bradley House,1239.20, 24-Dec-2012
246,Revenue,CCHD,Home Care - Elderly - South,Other Small Contracts,Bradley House Home Care Services,66.72, 05-Dec-2012
247,Revenue,CCHD,Home Care - Elderly - North,Other Small Contracts,Bradley House Home Care Services,1371.93, 05-Dec-2012
248,Revenue,CCHD,Day Care - North,Private & Voluntary Day Care,Bradley House Home Care Services,129.27, 05-Dec-2012
249,Revenue,CCHD,Home Care - Elderly - South,Other Small Contracts,Bradley House Home Care Services,62.55, 17-Dec-2012
250,Revenue,CCHD,Home Care - Elderly - North,Other Small Contracts,Bradley House Home Care Services,1309.38, 17-Dec-2012
251,Revenue,CCHD,Day Care - North,Private & Voluntary Day Care,Bradley House Home Care Services,133.44, 17-Dec-2012
252,Revenue,CCHD,Home Care - Elderly - South,Other Small Contracts,Bradley House Home Care Services,75.06, 21-Dec-2012
253,Revenue,CCHD,Home Care - Elderly - North,Other Small Contracts,Bradley House Home Care Services,1292.70, 21-Dec-2012
254,Revenue,CCHD,Day Care - North,Private & Voluntary Day Care,Bradley House Home Care Services,133.44, 21-Dec-2012
255,Revenue,CCHD,Home Care - Elderly - South,Other Small Contracts,Bradley House Home Care Services,66.72, 10-Dec-2012
256,Revenue,CCHD,Home Care - Elderly - North,Other Small Contracts,Bradley House Home Care Services,1276.02, 10-Dec-2012
257,Revenue,CCHD,Day Care - North,Private & Voluntary Day Care,Bradley House Home Care Services,133.44, 10-Dec-2012
258,Revenue,CCHD,Woodleaze,"Provisions (Food, etc)",Brake Bros,601.60, 20-Dec-2012
259,Revenue,CCHD,Alexandra Way,"Provisions (Food, etc)",Brake Bros,482.99, 04-Dec-2012
260,Revenue,CCHD,Woodleaze,"Provisions (Food, etc)",Brake Bros,649.68, 24-Dec-2012
261,Revenue,CCHD,Alexandra Way,"Provisions (Food, etc)",Brake Bros,584.26, 14-Dec-2012
262,Revenue,CCHD,Woodleaze,"Provisions (Food, etc)",Brake Bros,747.97, 24-Dec-2012
263,Revenue,CCHD,Bed Purchasing - Elderly - North,Residential Homes,Bridge House Care Home,1227.08, 24-Dec-2012
264,Revenue,CCHD,Bed Purchasing - Elderly - North,Residential Homes,Bridge House Care Home,1503.04, 24-Dec-2012
265,Revenue,CCHD,Bed Purchasing - Elderly - North,Residential Homes,Bridge House Care Home,1074.00, 24-Dec-2012
266,Revenue,CCHD,Bed Purchasing - Elderly - North,Residential Homes,Bridge House Care Home,1322.96, 24-Dec-2012
267,Revenue,CCHD,Bed Purchasing - Elderly MH - South,Residential Homes,Brightbow,2529.00, 24-Dec-2012
268,Revenue,CCHD,MH Purchasing - Younger,Residential Homes,Brightbow,922.36, 24-Dec-2012
269,Revenue,CCHD,Older People's Commissioned Se,Grants to Voluntary Bodies,Bristol Area Stroke Foundation,4575.50, 27-Dec-2012
270,Revenue,CCHD,Supported Living - KD,Private & Voluntary Home Care,Bristol Houses UK Limited,1290.56, 07-Dec-2012
271,Revenue,CCHD,Supported Living - KD,Private & Voluntary Home Care,Bristol Houses UK Limited,1033.32, 07-Dec-2012
272,Revenue,CCHD,Day Care - North,Private & Voluntary Day Care,Bristol Houses UK Limited,1473.68, 27-Dec-2012
273,Revenue,CCHD,Supported Living - KD,Private & Voluntary Home Care,Bristol Houses UK Limited,994.08, 07-Dec-2012
274,Revenue,CCHD,Supported Living - KD,Private & Voluntary Home Care,Bristol Houses UK Limited,892.50, 07-Dec-2012
275,Revenue,CCHD,Younger MH non-res purchasing,Private & Voluntary Day Care,Bristol Houses UK Limited,1080.00, 07-Dec-2012
276,Revenue,CCHD,Supported Living - KD,Private & Voluntary Home Care,Bristol Houses UK Limited,600.00, 07-Dec-2012
277,Revenue,CCHD,Supported Living - KD,Private & Voluntary Home Care,Bristol Houses UK Limited,585.00, 07-Dec-2012
278,Revenue,CCHD,Day Care - North,Private & Voluntary Day Care,Bristol Houses UK Limited,2354.40, 24-Dec-2012
279,Revenue,CCHD,Supported Living - KD,Private & Voluntary Home Care,Bristol Houses UK Limited,599.98, 07-Dec-2012
280,Revenue,CCHD,Bed Purchasing - Elderly S117- North,Residential Homes,Brockley Court Care Home,1818.04, 24-Dec-2012
281,Revenue,CCHD,Bed Purchasing - Elderly - North,Residential Homes,Brook Lane Residential Home,877.36, 24-Dec-2012
282,Revenue,CCHD,Bed Purchasing - Elderly - North,Nursing Homes,Brunel Care,819.60, 24-Dec-2012
283,Revenue,CCHD,South Glos Users in South Glos Homes,Nursing Homes,Brunel Care,916.19, 24-Dec-2012
284,Revenue,CCHD,Frenchay Hospital Purchasing,Nursing Homes,Brunel Care,2208.40, 24-Dec-2012
285,Revenue,CCHD,Bed Purchasing - Elderly - South,Nursing Homes,Brunel Care,5208.18, 24-Dec-2012
286,Revenue,CCHD,Bed Purchasing - Elderly - South,Nursing Homes,Brunel Care,713.44, 24-Dec-2012
287,Revenue,CCHD,Bed Purchasing - Elderly MH - South,Nursing Homes,Brunel Care,1666.61, 24-Dec-2012
288,Revenue,CCHD,Bed Purchasing - Elderly - South,Nursing Homes,Brunel Care,908.24, 24-Dec-2012
289,Revenue,CCHD,Bed Purchasing - Elderly MH - South,Nursing Homes,Brunel Care,1383.23, 24-Dec-2012
290,Revenue,CCHD,Southmead Hospital Purchasing,Nursing Homes,Brunel Care,841.71, 24-Dec-2012
291,Revenue,CCHD,Southmead Hospital Purchasing,Residential Homes,Brunel Care,1239.36, 24-Dec-2012
292,Revenue,CCHD,Bed Purchasing - Elderly MH - South,Nursing Homes,Brunel Care,2029.80, 24-Dec-2012
293,Revenue,CCHD,Bed Purchasing - Elderly - North,Nursing Homes,Brunel Care,3804.00, 24-Dec-2012
294,Revenue,CCHD,Bed Purchasing - Elderly - South,Residential Homes,Brunel Care,1269.40, 24-Dec-2012
295,Revenue,CCHD,Home Care - Elderly - North,Private & Voluntary Home Care,Brunelcare,6720.00, 03-Dec-2012
296,Revenue,CCHD,Home Care - Elderly - North,Private & Voluntary Home Care,Brunelcare,6720.00, 10-Dec-2012
297,Revenue,CCHD,Home Care - Elderly - North,Private & Voluntary Home Care,Brunelcare,6720.00, 17-Dec-2012
298,Revenue,CCHD,Home Care - Elderly - North,Private & Voluntary Home Care,Brunelcare,6720.00, 24-Dec-2012
299,Revenue,CCHD,Home Care - Elderly - North,Private & Voluntary Home Care,Brunelcare,6720.00, 27-Dec-2012
300,Revenue,CCHD,Elderly MH Day Care South,Private & Voluntary Day Care,Brunelcare,501.48, 11-Dec-2012
301,Revenue,CCHD,Home Care - Elderly - South,Other Small Contracts,Brunelcare,2646.68, 11-Dec-2012
302,Revenue,CCHD,Home Care - Elderly - North,Other Small Contracts,Brunelcare,3627.92, 11-Dec-2012
303,Revenue,CCHD,Day Care - South,Private & Voluntary Day Care,Brunelcare,28.28, 11-Dec-2012
304,Revenue,CCHD,Day Care - North,Private & Voluntary Day Care,Brunelcare,141.40, 11-Dec-2012
305,Revenue,CCHD,Under 65s -MH  Home Care Purch,Other Small Contracts,Brunelcare,226.24, 11-Dec-2012
306,Revenue,CCHD,Home care - Elderly MH - North,Other Small Contracts,Brunelcare,165.64, 11-Dec-2012
307,Revenue,CCHD,Elderly MH Day Care North,Private & Voluntary Day Care,Brunelcare,210.08, 11-Dec-2012
308,Revenue,CCHD,Home Care - Elderly - South,Other Small Contracts,Brunelcare,2703.24, 11-Dec-2012
309,Revenue,CCHD,Home Care - Elderly - North,Other Small Contracts,Brunelcare,4072.73, 11-Dec-2012
310,Revenue,CCHD,Day Care - South,Private & Voluntary Day Care,Brunelcare,137.36, 11-Dec-2012
311,Revenue,CCHD,Day Care - North,Private & Voluntary Day Care,Brunelcare,80.80, 11-Dec-2012
312,Revenue,CCHD,Under 65s -MH  Home Care Purch,Other Small Contracts,Brunelcare,234.32, 11-Dec-2012
313,Revenue,CCHD,Home care - Elderly MH - North,Other Small Contracts,Brunelcare,189.88, 11-Dec-2012
314,Revenue,CCHD,Elderly MH Day Care North,Private & Voluntary Day Care,Brunelcare,210.08, 11-Dec-2012
315,Revenue,CCHD,Home Care - Elderly - South,Other Small Contracts,Brunelcare,2650.66, 11-Dec-2012
316,Revenue,CCHD,Home Care - Elderly - North,Other Small Contracts,Brunelcare,3575.40, 11-Dec-2012
317,Revenue,CCHD,Day Care - South,Private & Voluntary Day Care,Brunelcare,113.12, 11-Dec-2012
318,Revenue,CCHD,Day Care - North,Private & Voluntary Day Care,Brunelcare,202.00, 11-Dec-2012
319,Revenue,CCHD,Under 65s -MH  Home Care Purch,Other Small Contracts,Brunelcare,226.24, 11-Dec-2012
320,Revenue,CCHD,Home care - Elderly MH - North,Other Small Contracts,Brunelcare,303.00, 11-Dec-2012
321,Revenue,CCHD,Elderly MH Day Care North,Private & Voluntary Day Care,Brunelcare,238.36, 11-Dec-2012
322,Revenue,CCHD,Information Systems - Software,Computer Equipment - Purchase,BT Global Services Solutions,978.04, 20-Dec-2012
323,Revenue,CCHD,Bed purchasing - Phys Dis - North,Nursing Homes,Bupa Care Services  Bridge House,5795.92, 24-Dec-2012
324,Revenue,CCHD,South Glos Users in all other LA Homes,Nursing Homes,Bupa Care Services  Bridge House,598.40, 24-Dec-2012
325,Revenue,CCHD,Bed purchasing - Elderly MH - North,Residential Homes,Bupa Care Services  Bridge House,1880.00, 24-Dec-2012
326,Revenue,CCHD,Woodleaze,Maintenance by Contractor,C & R Fencing Limited,4089.00, 27-Dec-2012
327,Revenue,CCHD,Supported Living - KD,Private & Voluntary Home Care,Camphill Communities Thornbury Limited,1804.92, 10-Dec-2012
328,Revenue,CCHD,Supported Living - PS,Private & Voluntary Home Care,Camphill Communities Thornbury Limited,1736.40, 11-Dec-2012
329,Revenue,CCHD,Supported Living - KD,Private & Voluntary Home Care,Camphill Communities Thornbury Limited,2475.00, 10-Dec-2012
330,Revenue,CCHD,Supported Living - KD,Private & Voluntary Home Care,Camphill Communities Thornbury Limited,2572.80, 10-Dec-2012
331,Revenue,CCHD,Supported Living - KD,Private & Voluntary Home Care,Camphill Communities Thornbury Limited,1804.92, 10-Dec-2012
332,Revenue,CCHD,Supported Living - KD,Private & Voluntary Home Care,Camphill Communities Thornbury Limited,2269.12, 10-Dec-2012
333,Revenue,CCHD,Supported Living - KD,Private & Voluntary Home Care,Camphill Communities Thornbury Limited,2030.28, 10-Dec-2012
334,Revenue,CCHD,Supported Living - KD,Private & Voluntary Home Care,Camphill Communities Thornbury Limited,1997.32, 10-Dec-2012
335,Revenue,CCHD,Supported Living - KD,Private & Voluntary Home Care,Camphill Communities Thornbury Limited,2112.64, 14-Dec-2012
336,Revenue,CCHD,Supported Living - KD,Private & Voluntary Home Care,Camphill Communities Thornbury Limited,1997.32, 20-Dec-2012
337,Revenue,CCHD,Supported Living - KH,Private & Voluntary Home Care,Camphill Communities Thornbury Limited,2216.04, 21-Dec-2012
338,Revenue,CCHD,Bed purchasing - Under 65s PWLD - North,Residential Homes,Camphill Devon Community,3185.24, 24-Dec-2012
339,Revenue,CCHD,Bed purchasing - Under 65s PWLD - North,Residential Homes,Camphill Devon Community,2234.08, 24-Dec-2012
340,Revenue,CCHD,Home Care - Elderly - South,Other Small Contracts,Care 1st Homecare,2506.95, 03-Dec-2012
341,Revenue,CCHD,Home Care - Elderly - North,Other Small Contracts,Care 1st Homecare,5993.79, 03-Dec-2012
342,Revenue,CCHD,Day Care - South,Private & Voluntary Day Care,Care 1st Homecare,162.00, 03-Dec-2012
343,Revenue,CCHD,Day Care - North,Private & Voluntary Day Care,Care 1st Homecare,275.40, 03-Dec-2012
344,Revenue,CCHD,Home care - Elderly MH - North,Other Small Contracts,Care 1st Homecare,222.75, 03-Dec-2012
345,Revenue,CCHD,Home Care - LD Under 65 - South,Private & Voluntary Home Care,Care 1st Homecare,60.75, 03-Dec-2012
346,Revenue,CCHD,PWLD Home Care - Under 65 - KH,Private & Voluntary Home Care,Care 1st Homecare,64.80, 03-Dec-2012
347,Revenue,CCHD,Home Care - Elderly - South,Other Small Contracts,Care 1st Homecare,2656.80, 03-Dec-2012
348,Revenue,CCHD,Home Care - Elderly - North,Other Small Contracts,Care 1st Homecare,6139.59, 03-Dec-2012
349,Revenue,CCHD,Day Care - South,Private & Voluntary Day Care,Care 1st Homecare,113.40, 03-Dec-2012
350,Revenue,CCHD,Day Care - North,Private & Voluntary Day Care,Care 1st Homecare,275.40, 03-Dec-2012
351,Revenue,CCHD,Home Care - LD Under 65 - South,Private & Voluntary Home Care,Care 1st Homecare,64.80, 03-Dec-2012
352,Revenue,CCHD,PWLD Home Care - Under 65 - KH,Private & Voluntary Home Care,Care 1st Homecare,137.70, 03-Dec-2012
353,Revenue,CCHD,Home Care - Elderly - South,Other Small Contracts,Care 1st Homecare,2944.35, 20-Dec-2012
354,Revenue,CCHD,Home Care - Elderly - North,Other Small Contracts,Care 1st Homecare,6026.19, 20-Dec-2012
355,Revenue,CCHD,Day Care - South,Private & Voluntary Day Care,Care 1st Homecare,113.40, 20-Dec-2012
356,Revenue,CCHD,Day Care - North,Private & Voluntary Day Care,Care 1st Homecare,166.05, 20-Dec-2012
357,Revenue,CCHD,Home Care - LD Under 65 - South,Private & Voluntary Home Care,Care 1st Homecare,48.60, 20-Dec-2012
358,Revenue,CCHD,PWLD Home Care - Under 65 - KH,Private & Voluntary Home Care,Care 1st Homecare,170.10, 20-Dec-2012
359,Revenue,CCHD,Bed Purchasing - PWLD S 117 Placements,Residential Homes,Care Community Ltd,7464.72, 24-Dec-2012
360,Revenue,CCHD,Purchase of Non-Res Care - KD,Private & Voluntary Day Care,Care Horizons Limited,1361.96, 28-Dec-2012
361,Revenue,CCHD,Purchase of Non-Res Care - KD,Private & Voluntary Day Care,Care Horizons Limited,1169.32, 28-Dec-2012
362,Revenue,CCHD,Purchase of Non-Res Care - KD,Private & Voluntary Day Care,Care Horizons Limited,1331.97, 27-Dec-2012
363,Revenue,CCHD,Supported Living - PS,Private & Voluntary Home Care,Care Horizons Limited,1865.17, 24-Dec-2012
364,Revenue,CCHD,Home Care - General,Other Supplies & Services,Care Monitoring 2000 Limited,600.00, 20-Dec-2012
365,Revenue,CCHD,Electronic Home Care Monitoring,Other Supplies & Services,Care Monitoring 2000 Limited,600.00, 18-Dec-2012
366,Revenue,CCHD,Electronic Home Care Monitoring,Other Supplies & Services,Care Monitoring 2000 Limited,5232.00, 20-Dec-2012
367,Revenue,CCHD,Home Care - General,Other Supplies & Services,Care Monitoring 2000 Limited,6884.40, 20-Dec-2012
368,Revenue,CCHD,Home Care - Elderly - South,Other Small Contracts,Care UK,8339.06, 14-Dec-2012
369,Revenue,CCHD,Home Care - Elderly - North,Other Small Contracts,Care UK,3552.60, 14-Dec-2012
370,Revenue,CCHD,Day Care - South,Private & Voluntary Day Care,Care UK,347.62, 14-Dec-2012
371,Revenue,CCHD,Day Care - North,Private & Voluntary Day Care,Care UK,840.40, 14-Dec-2012
372,Revenue,CCHD,Home care - Elderly MH - North,Other Small Contracts,Care UK,718.16, 14-Dec-2012
373,Revenue,CCHD,Elderly MH Day Care North,Private & Voluntary Day Care,Care UK,141.34, 14-Dec-2012
374,Revenue,CCHD,Home Care - Elderly - South,Other Small Contracts,Care UK,8698.14, 14-Dec-2012
375,Revenue,CCHD,Home Care - Elderly - North,Other Small Contracts,Care UK,3667.20, 14-Dec-2012
376,Revenue,CCHD,Day Care - South,Private & Voluntary Day Care,Care UK,351.44, 14-Dec-2012
377,Revenue,CCHD,Day Care - North,Private & Voluntary Day Care,Care UK,764.00, 14-Dec-2012
378,Revenue,CCHD,Home care - Elderly MH - North,Other Small Contracts,Care UK,687.60, 14-Dec-2012
379,Revenue,CCHD,Elderly MH Day Care North,Private & Voluntary Day Care,Care UK,141.34, 14-Dec-2012
380,Revenue,CCHD,Home Care - Elderly - South,Other Small Contracts,Carewatch (Bristol),1035.66, 19-Dec-2012
381,Revenue,CCHD,Home Care - Elderly - North,Other Small Contracts,Carewatch (Bristol),2092.37, 19-Dec-2012
382,Revenue,CCHD,Home Care - Elderly - South,Other Small Contracts,Carewatch (Bristol),959.88, 19-Dec-2012
383,Revenue,CCHD,Home Care - Elderly - North,Other Small Contracts,Carewatch (Bristol),2041.85, 19-Dec-2012
384,Revenue,CCHD,Home Care - Elderly - South,Other Small Contracts,Carewatch (Bristol),943.04, 19-Dec-2012
385,Revenue,CCHD,Home Care - Elderly - North,Other Small Contracts,Carewatch (Bristol),1999.75, 19-Dec-2012
386,Revenue,CCHD,Home Care - Elderly - South,Other Small Contracts,Carewatch (Bristol),673.60, 05-Dec-2012
387,Revenue,CCHD,Home Care - Elderly - North,Other Small Contracts,Carewatch (Bristol),1763.99, 05-Dec-2012
388,Revenue,CCHD,Home Care - Elderly - South,Other Small Contracts,Carewatch (Bristol),905.15, 19-Dec-2012
389,Revenue,CCHD,Home Care - Elderly - North,Other Small Contracts,Carewatch (Bristol),2020.80, 19-Dec-2012
390,Revenue,CCHD,Home Care - Elderly - South,Other Small Contracts,Carewatch (Bristol),825.16, 05-Dec-2012
391,Revenue,CCHD,Home Care - Elderly - North,Other Small Contracts,Carewatch (Bristol),1978.70, 05-Dec-2012
392,Revenue,CCHD,Home Care - Elderly - South,Other Small Contracts,Carewatch (Bristol),644.13, 03-Dec-2012
393,Revenue,CCHD,Home Care - Elderly - North,Other Small Contracts,Carewatch (Bristol),1928.18, 03-Dec-2012
394,Revenue,CCHD,Home Care - Elderly - South,Other Small Contracts,Carewatch (Bristol),682.02, 03-Dec-2012
395,Revenue,CCHD,Home Care - Elderly - North,Other Small Contracts,Carewatch (Bristol),2184.99, 03-Dec-2012
396,Revenue,CCHD,Elderly MH Day Care South,Private & Voluntary Day Care,Caring Home Healthcare Grp Ltd,600.00, 10-Dec-2012
397,Revenue,CCHD,Home Care - Elderly - South,Other Small Contracts,Cash Friday at Lloyds TSB,100.36, 05-Dec-2012
398,Revenue,CCHD,Home Care - Elderly - North,Other Small Contracts,Cash Friday at Lloyds TSB,941.84, 05-Dec-2012
399,Revenue,CCHD,Day Care - North,Private & Voluntary Day Care,Cash Friday at Lloyds TSB,27.02, 05-Dec-2012
400,Revenue,CCHD,Home Care - Elderly - South,Other Small Contracts,Cash Friday at Lloyds TSB,100.36, 14-Dec-2012
401,Revenue,CCHD,Home Care - Elderly - North,Other Small Contracts,Cash Friday at Lloyds TSB,984.30, 14-Dec-2012
402,Revenue,CCHD,Day Care - North,Private & Voluntary Day Care,Cash Friday at Lloyds TSB,27.02, 14-Dec-2012
403,Revenue,CCHD,Home Care - Elderly - South,Other Small Contracts,Cash Friday at Lloyds TSB,100.36, 14-Dec-2012
404,Revenue,CCHD,Home Care - Elderly - North,Other Small Contracts,Cash Friday at Lloyds TSB,968.86, 14-Dec-2012
405,Revenue,CCHD,Day Care - North,Private & Voluntary Day Care,Cash Friday at Lloyds TSB,11.58, 14-Dec-2012
406,Revenue,CCHD,Home Care - Elderly - South,Other Small Contracts,Cash Friday at Lloyds TSB,100.36, 14-Dec-2012
407,Revenue,CCHD,Home Care - Elderly - North,Other Small Contracts,Cash Friday at Lloyds TSB,941.84, 14-Dec-2012
408,Revenue,CCHD,Day Care - North,Private & Voluntary Day Care,Cash Friday at Lloyds TSB,27.02, 14-Dec-2012
409,Revenue,CCHD,Frenchay Hospital Purchasing,Nursing Homes,Cedar Care Homes Ltd,1041.52, 24-Dec-2012
410,Revenue,CCHD,Frenchay Hospital Purchasing,Residential Homes,Centenary Care Homes Ltd,1239.20, 24-Dec-2012
411,Revenue,CCHD,Bed Purchasing - Elderly - South,Residential Homes,Cepen Lodge Care Home,2155.60, 24-Dec-2012
412,Revenue,CCHD,Southmead Hospital Purchasing,Residential Homes,Charlton House Residential Home,1372.96, 24-Dec-2012
413,Revenue,CCHD,Home Care - Elderly - South,Other Small Contracts,Cherish Able Care Limited,3337.20, 12-Dec-2012
414,Revenue,CCHD,Home care - Elderly MH - North,Other Small Contracts,Cherish Able Care Limited,57.68, 12-Dec-2012
415,Revenue,CCHD,Home Care - Elderly - South,Other Small Contracts,Cherish Able Care Limited,3155.92, 21-Dec-2012
416,Revenue,CCHD,Home care - Elderly MH - North,Other Small Contracts,Cherish Able Care Limited,57.68, 21-Dec-2012
417,Revenue,CCHD,Home Care - Elderly - South,Other Small Contracts,Cherish Able Care Limited,3015.84, 27-Dec-2012
418,Revenue,CCHD,Home care - Elderly MH - North,Other Small Contracts,Cherish Able Care Limited,57.68, 27-Dec-2012
419,Revenue,CCHD,Bed purchasing -S28A  Under 65 - North,Residential Homes,Chescombe Lodge,8489.04, 24-Dec-2012
420,Revenue,CCHD,Bed Purchasing - Under 65s PWLD - South,Residential Homes,Chosen Court,6846.32, 24-Dec-2012
421,Revenue,CCHD,Bed Purchasing - PWLD S 117 Placements,Residential Homes,Chosen Court,10082.40, 24-Dec-2012
422,Revenue,CCHD,Bed Purchasing - Under 65s PWLD - South,Residential Homes,Chosen Court,5495.84, 24-Dec-2012
423,Revenue,CCHD,Training - Adult Services,Training Expenses,Chris Garnier,1785.00, 11-Dec-2012
424,Revenue,CCHD,Bed purchasing - Under 65s PWLD - North,Residential Homes,Church House,10256.00, 24-Dec-2012
425,Revenue,CCHD,Bed purchasing - Under 65s PWLD - North,Residential Homes,Church House,5761.36, 24-Dec-2012
426,Revenue,CCHD,Supported Living - PS,Private & Voluntary Home Care,Cintre Community,591.15, 03-Dec-2012
427,Revenue,CCHD,Bed Purchasing - Elderly - South,Residential Homes,Cleeve Lodge,1597.04, 24-Dec-2012
428,Revenue,CCHD,Bed Purchasing - Elderly - North,Residential Homes,Cleeve Lodge,1009.44, 24-Dec-2012
429,Revenue,CCHD,Southmead Hospital Purchasing,Residential Homes,Cleeve Lodge,1425.36, 24-Dec-2012
430,Revenue,CCHD,Bed Purchasing - Elderly - South,Residential Homes,Cleeve Lodge,1750.68, 24-Dec-2012
431,Revenue,CCHD,Bed Purchasing - Elderly - South,Residential Homes,Cleeve Lodge,1449.08, 24-Dec-2012
432,Revenue,CCHD,Bed Purchasing - Elderly - South,Residential Homes,Cleeve Lodge,2236.96, 24-Dec-2012
433,Revenue,CCHD,Bed Purchasing - Elderly - South,Residential Homes,Cleeve Lodge,1767.96, 24-Dec-2012
434,Revenue,CCHD,Frenchay Hospital Purchasing,Residential Homes,Collingwood Residential Home,1027.68, 24-Dec-2012
435,Revenue,CCHD,Bed Purchasing - Elderly - South,Residential Homes,Collingwood Residential Home,1284.12, 24-Dec-2012
436,Revenue,CCHD,Bed Purchasing - Elderly - South,Residential Homes,Collingwood Residential Home,1058.60, 24-Dec-2012
437,Revenue,CCHD,Bed Purchasing - Elderly - South,Residential Homes,Collingwood Residential Home,7164.86, 24-Dec-2012
438,Revenue,CCHD,Bed Purchasing - Elderly - South,Residential Homes,Collingwood Residential Home,1323.64, 24-Dec-2012
439,Revenue,CCHD,Bed Purchasing - Elderly MH - South,Residential Homes,Collingwood Residential Home,1298.40, 24-Dec-2012
440,Revenue,CCHD,Bed Purchasing - Elderly - South,Residential Homes,Collingwood Residential Home,1247.92, 24-Dec-2012
441,Revenue,CCHD,Bed Purchasing - Elderly - South,Residential Homes,Collingwood Residential Home,1373.76, 24-Dec-2012
442,Revenue,CCHD,Bed Purchasing - Elderly - South,Residential Homes,Collingwood Residential Home,1245.88, 24-Dec-2012
443,Revenue,CCHD,Bed Purchasing - Elderly - South,Residential Homes,Collingwood Residential Home,1396.72, 24-Dec-2012
444,Revenue,CCHD,Training - Adult Services,Training Expenses,ComputerWorld Training Limited,1100.00, 18-Dec-2012
445,Revenue,CCHD,Bed and Breakfast,Bed & Breakfast,Connolly & Callaghan Limited,546.00, 20-Dec-2012
446,Revenue,CCHD,Bed and Breakfast,Bed & Breakfast,Connolly & Callaghan Limited,441.00, 20-Dec-2012
447,Revenue,CCHD,Bed and Breakfast,Bed & Breakfast,Connolly & Callaghan Limited,441.00, 20-Dec-2012
448,Revenue,CCHD,Bed and Breakfast,Bed & Breakfast,Connolly & Callaghan Limited,511.00, 24-Dec-2012
449,Revenue,CCHD,Bed and Breakfast,Bed & Breakfast,Connolly & Callaghan Limited,441.00, 24-Dec-2012
450,Revenue,CCHD,Bed and Breakfast,Bed & Breakfast,Connolly & Callaghan Limited,441.00, 24-Dec-2012
451,Revenue,CCHD,Bed and Breakfast,Bed & Breakfast,Connolly & Callaghan Limited,441.00, 24-Dec-2012
452,Revenue,CCHD,Bed and Breakfast,Bed & Breakfast,Connolly & Callaghan Limited,511.00, 24-Dec-2012
453,Revenue,CCHD,Bed and Breakfast,Bed & Breakfast,Connolly & Callaghan Limited,441.00, 27-Dec-2012
454,Revenue,CCHD,Bed and Breakfast,Bed & Breakfast,Connolly & Callaghan Limited,441.00, 27-Dec-2012
455,Revenue,CCHD,Bed and Breakfast,Bed & Breakfast,Connolly & Callaghan Limited,441.00, 27-Dec-2012
456,Revenue,CCHD,Bed purchasing - Under 65s PWLD - North,Residential Homes,Consensus Support Services Ltd,8938.00, 12-Dec-2012
457,Revenue,CCHD,Bed purchasing - Under 65s PWLD - North,Residential Homes,Consensus Support Services Ltd,3192.14, 24-Dec-2012
458,Revenue,CCHD,Woodleaze,Gas,Corona Energy Retail 3 Limited,1315.86, 12-Dec-2012
459,Revenue,CCHD,Newton House,Gas,Corona Energy Retail 3 Limited,621.43, 12-Dec-2012
460,Revenue,CCHD,Newton House,Gas,Corona Energy Retail 3 Limited,1320.80, 12-Dec-2012
461,Revenue,CCHD,Alexandra Way,Gas,Corona Energy Retail 3 Limited,1592.68, 12-Dec-2012
462,Revenue,CCHD,Bed purchasing -S28A  Under 65 - North,Residential Homes,Cream Ii Ltd  Longrun House,7845.84, 24-Dec-2012
463,Revenue,CCHD,Bed Purchasing - Under 65s PWLD - South,Residential Homes,Cream Ii Ltd  Longrun House,5493.72, 24-Dec-2012
464,Revenue,CCHD,Bed purchasing -S28A  Under 65 - North,Residential Homes,Creedy Court,9074.84, 24-Dec-2012
465,Revenue,CCHD,Bed Purchasing - S28A - Over 65- North,Residential Homes,Creedy Court,7548.92, 24-Dec-2012
466,Revenue,CCHD,Brokerage and Information Service,Grants to Voluntary Bodies,D H I,9210.08, 27-Dec-2012
467,Revenue,CCHD,Purchase of Non-Res Care - PS,Private & Voluntary Day Care,Daneswood,5776.45, 12-Dec-2012
468,Revenue,CCHD,Bed Purchasing - Under 65s PWLD - South,Residential Homes,Daneswood,10754.88, 24-Dec-2012
469,Revenue,CCHD,Bed purchasing - Under 65s PWLD - North,Residential Homes,Daneswood,8901.24, 24-Dec-2012
470,Revenue,CCHD,Learning Difficulties PSL,Other Supplies & Services,Darren Bush,2016.44, 21-Dec-2012
471,Revenue,CCHD,S28a Day Care,Private & Voluntary Day Care,DCF Premier Workshops Trust,1591.00, 06-Dec-2012
472,Revenue,CCHD,S28a Day Care,Private & Voluntary Day Care,DCF Premier Workshops Trust,1591.00, 10-Dec-2012
473,Revenue,CCHD,Purchase of Non-Res Care - KD,Private & Voluntary Day Care,Design 4 Life Ltd,1024.80, 21-Dec-2012
474,Revenue,CCHD,Purchase of Non-Res Care - KD,Private & Voluntary Day Care,Design 4 Life Ltd,1024.80, 21-Dec-2012
475,Revenue,CCHD,Purchase of Non-Res Care - KD,Private & Voluntary Day Care,Design 4 Life Ltd,1656.09, 03-Dec-2012
476,Revenue,CCHD,Purchase of Non-Res Care - KD,Private & Voluntary Day Care,Design 4 Life Ltd,1656.09, 20-Dec-2012
477,Revenue,CCHD,Purchase of Non-Res Care - KD,Private & Voluntary Day Care,Design 4 Life Ltd,1506.57, 21-Dec-2012
478,Revenue,CCHD,Purchase of Non-Res Care - KD,Private & Voluntary Day Care,Design 4 Life Ltd,1281.00, 21-Dec-2012
479,Revenue,CCHD,Bed Purchasing - Under 65s PWLD - South,Residential Homes,Devon & Cornwall Autistic Community Trus,8588.04, 24-Dec-2012
480,Revenue,CCHD,Day Care - South,Private & Voluntary Day Care,Dhek Bhal,542.05, 13-Dec-2012
481,Revenue,CCHD,Day Care - South,Private & Voluntary Day Care,Dhek Bhal,772.93, 14-Dec-2012
482,Revenue,CCHD,Day Care - South,Private & Voluntary Day Care,Dhek Bhal,960.94, 14-Dec-2012
483,Revenue,CCHD,Bed Purchasing - Under 65s PWLD - South,Residential Homes,Dimensions (Uk),4763.44, 24-Dec-2012
484,Revenue,CCHD,Supported Living - PS,Private & Voluntary Home Care,Dimensions (UK) Ltd,7748.40, 13-Dec-2012
485,Revenue,CCHD,Home Care - Elderly - South,Other Small Contracts,DoCare Ltd,3589.74, 05-Dec-2012
486,Revenue,CCHD,Home Care - Elderly - North,Other Small Contracts,DoCare Ltd,4892.58, 05-Dec-2012
487,Revenue,CCHD,Day Care - South,Private & Voluntary Day Care,DoCare Ltd,115.50, 05-Dec-2012
488,Revenue,CCHD,Day Care - North,Private & Voluntary Day Care,DoCare Ltd,263.34, 05-Dec-2012
489,Revenue,CCHD,Elderly MH Day Care North,Private & Voluntary Day Care,DoCare Ltd,23.10, 05-Dec-2012
490,Revenue,CCHD,Home Care - Elderly - South,Other Small Contracts,DoCare Ltd,3552.78, 21-Dec-2012
491,Revenue,CCHD,Home Care - Elderly - North,Other Small Contracts,DoCare Ltd,5091.24, 21-Dec-2012
492,Revenue,CCHD,Day Care - South,Private & Voluntary Day Care,DoCare Ltd,101.64, 21-Dec-2012
493,Revenue,CCHD,Day Care - North,Private & Voluntary Day Care,DoCare Ltd,258.72, 21-Dec-2012
494,Revenue,CCHD,Home Care - Elderly - South,Other Small Contracts,DoCare Ltd,3594.36, 21-Dec-2012
495,Revenue,CCHD,Home Care - Elderly - North,Other Small Contracts,DoCare Ltd,5091.24, 21-Dec-2012
496,Revenue,CCHD,Day Care - South,Private & Voluntary Day Care,DoCare Ltd,106.26, 21-Dec-2012
497,Revenue,CCHD,Day Care - North,Private & Voluntary Day Care,DoCare Ltd,277.20, 21-Dec-2012
498,Revenue,CCHD,Home Care - Elderly - South,Other Small Contracts,DoCare Ltd,3566.64, 11-Dec-2012
499,Revenue,CCHD,Home Care - Elderly - North,Other Small Contracts,DoCare Ltd,4790.94, 11-Dec-2012
500,Revenue,CCHD,Day Care - South,Private & Voluntary Day Care,DoCare Ltd,55.44, 11-Dec-2012
501,Revenue,CCHD,Day Care - North,Private & Voluntary Day Care,DoCare Ltd,281.82, 11-Dec-2012
502,Revenue,CCHD,Bed Purchasing - Elderly - South,Nursing Homes,Dunkirk Memorial House,1158.20, 24-Dec-2012
503,Revenue,CCHD,MH Purchasing - Younger,Residential Homes,Dunraven House,1810.24, 24-Dec-2012
504,Revenue,CCHD,Bed and Breakfast,Bed & Breakfast,E J Bartlett,1470.00, 18-Dec-2012
505,Revenue,CCHD,Bed and Breakfast,Bed & Breakfast,E J Bartlett,630.00, 14-Dec-2012
506,Revenue,CCHD,Bed and Breakfast,Bed & Breakfast,E J Bartlett,525.00, 14-Dec-2012
507,Revenue,CCHD,Bed and Breakfast,Bed & Breakfast,E J Bartlett,525.00, 14-Dec-2012
508,Revenue,CCHD,Bed and Breakfast,Bed & Breakfast,E J Bartlett,1470.00, 12-Dec-2012
509,Revenue,CCHD,Bed and Breakfast,Bed & Breakfast,E J Bartlett,630.00, 14-Dec-2012
510,Revenue,CCHD,Bed and Breakfast,Bed & Breakfast,E J Bartlett,525.00, 14-Dec-2012
511,Revenue,CCHD,Bed and Breakfast,Bed & Breakfast,E J Bartlett,1050.00, 11-Dec-2012
512,Revenue,CCHD,Bed and Breakfast,Bed & Breakfast,E J Bartlett,630.00, 14-Dec-2012
513,Revenue,CCHD,Bed and Breakfast,Bed & Breakfast,E J Bartlett,525.00, 14-Dec-2012
514,Revenue,CCHD,Bed and Breakfast,Bed & Breakfast,E J Bartlett,630.00, 19-Dec-2012
515,Revenue,CCHD,Bed and Breakfast,Bed & Breakfast,E J Bartlett,525.00, 19-Dec-2012
516,Revenue,CCHD,Bed and Breakfast,Bed & Breakfast,E J Bartlett,1080.00, 24-Dec-2012
517,Revenue,CCHD,Bed and Breakfast,Bed & Breakfast,E J Bartlett,450.00, 24-Dec-2012
518,Revenue,CCHD,Bed and Breakfast,Bed & Breakfast,E J Bartlett,525.00, 24-Dec-2012
519,Revenue,CCHD,Bed and Breakfast,Bed & Breakfast,E J Bartlett,810.00, 24-Dec-2012
520,Revenue,CCHD,Bed purchasing - Under 65s PWLD - North,Residential Homes,East Court,4321.60, 24-Dec-2012
521,Revenue,CCHD,Bed purchasing - Under 65s PWLD - North,Residential Homes,Ebley House,6628.90, 24-Dec-2012
522,Revenue,CCHD,Newton House,Electricity,EDF Energy 1 Limited,887.80, 24-Dec-2012
523,Revenue,CCHD,Bed Purchasing - Elderly - North,Residential Homes,Edgecumbe Lodge,1748.21, 24-Dec-2012
524,Revenue,CCHD,Bed Purchasing - Elderly - North,Residential Homes,Edgecumbe Lodge,890.00, 24-Dec-2012
525,Revenue,CCHD,Southmead Hospital Purchasing,Residential Homes,Edgecumbe Lodge,1239.20, 24-Dec-2012
526,Revenue,CCHD,Bed Purchasing - Elderly - South,Residential Homes,Edgecumbe Lodge,1302.52, 24-Dec-2012
527,Revenue,CCHD,Bed Purchasing - Elderly - South,Residential Homes,Edgecumbe Lodge,1229.40, 24-Dec-2012
528,Revenue,CCHD,Bed Purchasing - Elderly - South,Residential Homes,Edgecumbe Lodge,993.76, 24-Dec-2012
529,Revenue,CCHD,Frenchay Hospital Purchasing,Residential Homes,Edgecumbe Lodge,1110.52, 24-Dec-2012
530,Revenue,CCHD,Frenchay Hospital Purchasing,Residential Homes,Edgecumbe Lodge,1056.00, 24-Dec-2012
531,Revenue,CCHD,Bed Purchasing - Elderly MH - South,Residential Homes,Edgecumbe Lodge,1147.84, 24-Dec-2012
532,Revenue,CCHD,Southmead Hospital Purchasing,Residential Homes,Edgemont House Ltd,1403.20, 24-Dec-2012
533,Revenue,CCHD,Bed Purchasing - Elderly - South,Residential Homes,Edgemont House Ltd,1243.44, 24-Dec-2012
534,Revenue,CCHD,Frenchay Hospital Purchasing,Residential Homes,Edgemont House Ltd,1361.56, 24-Dec-2012
535,Revenue,CCHD,Bed Purchasing - Elderly - South,Residential Homes,Edgemont House Ltd,1403.20, 24-Dec-2012
536,Revenue,CCHD,Bed Purchasing - Elderly - South,Residential Homes,Edgemont House Ltd,1196.88, 24-Dec-2012
537,Revenue,CCHD,South Glos Users in South Glos Homes,Nursing Homes,Edgemont View Nursing Home,698.79, 24-Dec-2012
538,Revenue,CCHD,Bed Purchasing - Elderly - South,Nursing Homes,Edgemont View Nursing Home,1418.52, 24-Dec-2012
539,Revenue,CCHD,Frenchay Hospital Purchasing,Nursing Homes,Edgemont View Nursing Home,1341.28, 24-Dec-2012
540,Revenue,CCHD,Bed Purchasing - Elderly - South,Nursing Homes,Edgemont View Nursing Home,1295.20, 24-Dec-2012
541,Revenue,CCHD,Bed Purchasing - Elderly - South,Nursing Homes,Edgemont View Nursing Home,1602.76, 24-Dec-2012
542,Revenue,CCHD,Frenchay Hospital Purchasing,Nursing Homes,Edgemont View Nursing Home,606.84, 24-Dec-2012
543,Revenue,CCHD,Training - Adult Services,Training Expenses,Effective Training & Consultancy Limited,778.50, 14-Dec-2012
544,Revenue,CCHD,Home Care - Elderly - South,Other Small Contracts,Elite Home Care Ltd,2403.15, 05-Dec-2012
545,Revenue,CCHD,Under 65s -MH  Home Care Purch,Other Small Contracts,Elite Home Care Ltd,86.60, 05-Dec-2012
546,Revenue,CCHD,Home care - Elderly MH - North,Other Small Contracts,Elite Home Care Ltd,363.72, 05-Dec-2012
547,Revenue,CCHD,Home Care - Elderly - South,Other Small Contracts,Elite Home Care Ltd,2528.72, 10-Dec-2012
548,Revenue,CCHD,Under 65s -MH  Home Care Purch,Other Small Contracts,Elite Home Care Ltd,86.60, 10-Dec-2012
549,Revenue,CCHD,Home care - Elderly MH - North,Other Small Contracts,Elite Home Care Ltd,363.72, 10-Dec-2012
550,Revenue,CCHD,Home Care - Elderly - South,Other Small Contracts,Elite Home Care Ltd,2563.36, 20-Dec-2012
551,Revenue,CCHD,Under 65s -MH  Home Care Purch,Other Small Contracts,Elite Home Care Ltd,86.60, 20-Dec-2012
552,Revenue,CCHD,Home care - Elderly MH - North,Other Small Contracts,Elite Home Care Ltd,363.72, 20-Dec-2012
553,Revenue,CCHD,Home Care - Elderly - South,Other Small Contracts,Elite Home Care Ltd,2481.09, 21-Dec-2012
554,Revenue,CCHD,Under 65s -MH  Home Care Purch,Other Small Contracts,Elite Home Care Ltd,86.60, 21-Dec-2012
555,Revenue,CCHD,Home care - Elderly MH - North,Other Small Contracts,Elite Home Care Ltd,363.72, 21-Dec-2012
556,Revenue,CCHD,Bed Purchasing - Elderly - South,Residential Homes,Elmbridge Residential Home Ltd,1309.56, 24-Dec-2012
557,Revenue,CCHD,Frenchay Hospital Purchasing,Nursing Homes,Elmwood Nursing Home,2213.12, 24-Dec-2012
558,Revenue,CCHD,Younger MH non-res purchasing,Private & Voluntary Day Care,Enham,638.72, 20-Dec-2012
559,Revenue,CCHD,Home Care - Elderly - South,Other Small Contracts,Everycare (Bristol) Ltd,2528.40, 03-Dec-2012
560,Revenue,CCHD,Home Care - Elderly - North,Other Small Contracts,Everycare (Bristol) Ltd,1747.20, 03-Dec-2012
561,Revenue,CCHD,Home Care - Elderly - South,Other Small Contracts,Everycare (Bristol) Ltd,2557.80, 20-Dec-2012
562,Revenue,CCHD,Home Care - Elderly - North,Other Small Contracts,Everycare (Bristol) Ltd,1789.20, 20-Dec-2012
563,Revenue,CCHD,Home Care - Elderly - South,Other Small Contracts,Everycare (Bristol) Ltd,2641.80, 19-Dec-2012
564,Revenue,CCHD,Home Care - Elderly - North,Other Small Contracts,Everycare (Bristol) Ltd,1923.60, 19-Dec-2012
565,Revenue,CCHD,Home Care - Elderly - South,Other Small Contracts,Everycare (Bristol) Ltd,2520.00, 19-Dec-2012
566,Revenue,CCHD,Home Care - Elderly - North,Other Small Contracts,Everycare (Bristol) Ltd,1705.20, 19-Dec-2012
567,Revenue,CCHD,Bed Purchasing - Elderly MH - South,Residential Homes,Exmouth House,2765.84, 24-Dec-2012
568,Revenue,CCHD,Bed Purchasing - Elderly - South,Nursing Homes,Fairview Court,1182.44, 24-Dec-2012
569,Revenue,CCHD,Bed purchasing - Elderly MH - North,Nursing Homes,Fairview Court,1604.64, 24-Dec-2012
570,Revenue,CCHD,Southmead Hospital Purchasing,Nursing Homes,Fairview Court,1885.92, 24-Dec-2012
571,Revenue,CCHD,Bed Purchasing - Elderly MH - South,Nursing Homes,Fairview Court,6793.20, 24-Dec-2012
572,Revenue,CCHD,Bed Purchasing - Elderly MH - South,Nursing Homes,Fairview Court,3417.24, 24-Dec-2012
573,Revenue,CCHD,Bed Purchasing - Elderly MH - South,Residential Homes,Fairview Court,1403.20, 24-Dec-2012
574,Revenue,CCHD,Bed Purchasing - Elderly - South,Residential Homes,Fairview Court,2623.36, 24-Dec-2012
575,Revenue,CCHD,Bed Purchasing - Elderly - South,Residential Homes,Fairview Court,2118.56, 24-Dec-2012
576,Revenue,CCHD,Bed Purchasing - Elderly - North,Nursing Homes,Fairview Court,1094.64, 24-Dec-2012
577,Revenue,CCHD,Bed Purchasing - Elderly MH - South,Nursing Homes,Fairview Court,8237.66, 24-Dec-2012
578,Revenue,CCHD,Bed Purchasing - Elderly MH - South,Nursing Homes,Fairview Court,1988.40, 24-Dec-2012
579,Revenue,CCHD,Frenchay Hospital Purchasing,Nursing Homes,Fairview Court Care Home,1491.69, 07-Dec-2012
580,Revenue,CCHD,South Glos Users in South Glos Homes,Nursing Homes,Fairview Court Care Home,2888.31, 07-Dec-2012
581,Revenue,CCHD,Bed purchasing - Phys Dis - North,Nursing Homes,Fairview Court Care Home,1976.58, 07-Dec-2012
582,Revenue,CCHD,Bed Purchasing - Elderly MH - South,Nursing Homes,Fairview Court Care Home,3197.56, 07-Dec-2012
583,Revenue,CCHD,Bed purchasing - Elderly S117 - South,Nursing Homes,Fairview Court Care Home,2550.03, 07-Dec-2012
584,Revenue,CCHD,Bed Purchasing - Elderly - South,Residential Homes,Fairview House,634.12, 24-Dec-2012
585,Revenue,CCHD,Bed Purchasing - Elderly - South,Residential Homes,Fairview House,1255.24, 24-Dec-2012
586,Revenue,CCHD,Frenchay Hospital Purchasing,Residential Homes,Fairview House,995.44, 24-Dec-2012
587,Revenue,CCHD,Bed Purchasing - Elderly - South,Residential Homes,Fairview House,1239.20, 24-Dec-2012
588,Revenue,CCHD,Bed purchasing - Elderly S117 - South,Residential Homes,Fairview House,1870.92, 24-Dec-2012
589,Revenue,CCHD,Southmead Hospital Purchasing,Residential Homes,Fairview House,1021.08, 24-Dec-2012
590,Revenue,CCHD,Southmead Hospital Purchasing,Residential Homes,Fairview House,1111.28, 24-Dec-2012
591,Revenue,CCHD,Bed Purchasing - Elderly MH - South,Residential Homes,Fairview House,1097.20, 24-Dec-2012
592,Revenue,CCHD,Frenchay Hospital Purchasing,Residential Homes,Fairview House,1239.20, 24-Dec-2012
593,Revenue,CCHD,Bed purchasing - Elderly S117 - South,Residential Homes,Fairview House,1398.25, 24-Dec-2012
594,Revenue,CCHD,Southmead Hospital Purchasing,Residential Homes,Fairview House,1056.12, 24-Dec-2012
595,Revenue,CCHD,Frenchay Hospital Purchasing,Residential Homes,Fairview House,663.96, 24-Dec-2012
596,Revenue,CCHD,Bed Purchasing - Elderly MH - South,Residential Homes,Fairview House,1038.44, 24-Dec-2012
597,Revenue,CCHD,Bed Purchasing - Elderly MH - South,Residential Homes,Fairview House,1198.68, 24-Dec-2012
598,Revenue,CCHD,Bed Purchasing - Elderly - North,Residential Homes,Faith House,871.16, 24-Dec-2012
599,Revenue,CCHD,Frenchay Hospital Purchasing,Residential Homes,Faith House,1302.00, 24-Dec-2012
600,Revenue,CCHD,Bed purchasing - Under 65s PWLD - North,Residential Homes,Fernbank,8479.40, 24-Dec-2012
601,Revenue,CCHD,Purchase of Non-Res Care - PS,Private & Voluntary Day Care,Firstpoint Homecare Ltd,1279.07, 10-Dec-2012
602,Revenue,CCHD,Purchase of Non-Res Care - PS,Private & Voluntary Day Care,Firstpoint Homecare Ltd,1273.07, 14-Dec-2012
603,Revenue,CCHD,Purchase of Non-Res Care - PS,Private & Voluntary Day Care,Firstpoint Homecare Ltd,1273.07, 24-Dec-2012
604,Revenue,CCHD,Home Care - Elderly - South,Other Small Contracts,Firstpoint Homecare Ltd,1801.20, 05-Dec-2012
605,Revenue,CCHD,Home Care - Elderly - North,Other Small Contracts,Firstpoint Homecare Ltd,737.20, 05-Dec-2012
606,Revenue,CCHD,Day Care - South,Private & Voluntary Day Care,Firstpoint Homecare Ltd,615.60, 05-Dec-2012
607,Revenue,CCHD,Day Care - North,Private & Voluntary Day Care,Firstpoint Homecare Ltd,311.60, 05-Dec-2012
608,Revenue,CCHD,Under 65s -MH  Home Care Purch,Other Small Contracts,Firstpoint Homecare Ltd,91.20, 05-Dec-2012
609,Revenue,CCHD,Younger MH non-res purchasing,Private & Voluntary Day Care,Firstpoint Homecare Ltd,68.40, 05-Dec-2012
610,Revenue,CCHD,Home care - Elderly MH - North,Other Small Contracts,Firstpoint Homecare Ltd,155.80, 05-Dec-2012
611,Revenue,CCHD,Elderly MH Day Care North,Private & Voluntary Day Care,Firstpoint Homecare Ltd,91.20, 05-Dec-2012
612,Revenue,CCHD,Home Care - Elderly - South,Other Small Contracts,Firstpoint Homecare Ltd,1820.20, 13-Dec-2012
613,Revenue,CCHD,Home Care - Elderly - North,Other Small Contracts,Firstpoint Homecare Ltd,756.20, 13-Dec-2012
614,Revenue,CCHD,Day Care - South,Private & Voluntary Day Care,Firstpoint Homecare Ltd,611.80, 13-Dec-2012
615,Revenue,CCHD,Day Care - North,Private & Voluntary Day Care,Firstpoint Homecare Ltd,307.80, 13-Dec-2012
616,Revenue,CCHD,Under 65s -MH  Home Care Purch,Other Small Contracts,Firstpoint Homecare Ltd,91.20, 13-Dec-2012
617,Revenue,CCHD,Younger MH non-res purchasing,Private & Voluntary Day Care,Firstpoint Homecare Ltd,68.40, 13-Dec-2012
618,Revenue,CCHD,Home care - Elderly MH - North,Other Small Contracts,Firstpoint Homecare Ltd,155.80, 13-Dec-2012
619,Revenue,CCHD,Elderly MH Day Care North,Private & Voluntary Day Care,Firstpoint Homecare Ltd,91.20, 13-Dec-2012
620,Revenue,CCHD,Bed Purchasing - Elderly - North,Nursing Homes,Forest Care Unit 1,687.59, 24-Dec-2012
621,Revenue,CCHD,Swift Dump Code,Residential Homes,Forest Healthcare,1167.44, 04-Dec-2012
622,Revenue,CCHD,Bed Purchasing - Elderly - South,Nursing Homes,Four Seasons Health Care,921.96, 24-Dec-2012
623,Revenue,CCHD,Bed Purchasing - Elderly - South,Nursing Homes,Four Seasons Health Care,1281.72, 24-Dec-2012
624,Revenue,CCHD,Frenchay Hospital Purchasing,Residential Homes,Four Seasons Health Care,892.12, 24-Dec-2012
625,Revenue,CCHD,Bed Purchasing - Elderly MH - South,Nursing Homes,Four Seasons Health Care,1363.20, 24-Dec-2012
626,Revenue,CCHD,Frenchay Hospital Purchasing,Nursing Homes,Four Seasons Health Care,1363.20, 24-Dec-2012
627,Revenue,CCHD,Southmead Hospital Purchasing,Nursing Homes,Four Seasons Health Care,1363.20, 24-Dec-2012
628,Revenue,CCHD,Bed purchasing - Elderly MH - North,Residential Homes,Four Seasons Health Care,5522.53, 24-Dec-2012
629,Revenue,CCHD,Bed purchasing - Elderly MH - North,Residential Homes,Four Seasons Health Care,960.44, 24-Dec-2012
630,Revenue,CCHD,South Glos Users in South Glos Homes,Nursing Homes,Four Seasons Health Care,838.54, 24-Dec-2012
631,Revenue,CCHD,Southmead Hospital Purchasing,Nursing Homes,Four Seasons Health Care,818.68, 24-Dec-2012
632,Revenue,CCHD,Frenchay Hospital Purchasing,Nursing Homes,Four Seasons Health Care,1335.92, 24-Dec-2012
633,Revenue,CCHD,Bed Purchasing - Elderly - South,Nursing Homes,Four Seasons Health Care,1365.04, 24-Dec-2012
634,Revenue,CCHD,Southmead Hospital Purchasing,Nursing Homes,Four Seasons Health Care,1363.20, 24-Dec-2012
635,Revenue,CCHD,Bed Purchasing - Elderly - South,Nursing Homes,Four Seasons Health Care,1361.64, 24-Dec-2012
636,Revenue,CCHD,Cash for Change Discharges,Nursing Homes,Four Seasons Health Care,1363.20, 24-Dec-2012
637,Revenue,CCHD,Bed Purchasing - Elderly - South,Nursing Homes,Four Seasons Health Care,1327.20, 24-Dec-2012
638,Revenue,CCHD,Southmead Hospital Purchasing,Nursing Homes,Four Seasons Health Care,1363.20, 24-Dec-2012
639,Revenue,CCHD,Bed Purchasing - Elderly - South,Nursing Homes,Four Seasons Health Care,1260.92, 24-Dec-2012
640,Revenue,CCHD,Southmead Hospital Purchasing,Residential Homes,Four Seasons Health Care,543.56, 24-Dec-2012
641,Revenue,CCHD,Bed Purchasing - Elderly - North,Residential Homes,Four Seasons Health Care,1239.20, 24-Dec-2012
642,Revenue,CCHD,Southmead Hospital Purchasing,Nursing Homes,Four Seasons Health Care,1363.20, 24-Dec-2012
643,Revenue,CCHD,South Glos Users in South Glos Homes,Nursing Homes,Four Seasons Health Care,947.24, 24-Dec-2012
644,Revenue,CCHD,Bed Purchasing - Elderly - North,Nursing Homes,Four Seasons Health Care,1363.20, 24-Dec-2012
645,Revenue,CCHD,Frenchay Hospital Purchasing,Nursing Homes,Four Seasons Health Care,1363.20, 24-Dec-2012
646,Revenue,CCHD,Frenchay Hospital Purchasing,Nursing Homes,Four Seasons Health Care,681.60, 24-Dec-2012
647,Revenue,CCHD,Southmead Hospital Purchasing,Nursing Homes,Four Seasons Health Care,1269.20, 24-Dec-2012
648,Revenue,CCHD,Frenchay Hospital Purchasing,Nursing Homes,Four Seasons Health Care,1159.20, 24-Dec-2012
649,Revenue,CCHD,Bed Purchasing - Elderly - South,Nursing Homes,Four Seasons Health Care,1363.20, 24-Dec-2012
650,Revenue,CCHD,Bed Purchasing - Elderly - South,Nursing Homes,Four Seasons Health Care,1308.24, 24-Dec-2012
651,Revenue,CCHD,Bed Purchasing - Elderly MH - South,Nursing Homes,Four Seasons Health Care,1363.20, 24-Dec-2012
652,Revenue,CCHD,Bed Purchasing - Elderly - South,Nursing Homes,Four Seasons Health Care,1067.16, 24-Dec-2012
653,Revenue,CCHD,Bed Purchasing - Elderly - South,Nursing Homes,Four Seasons Health Care,1327.20, 24-Dec-2012
654,Revenue,CCHD,Frenchay Hospital Purchasing,Nursing Homes,Four Seasons Health Care,1071.60, 24-Dec-2012
655,Revenue,CCHD,Bed Purchasing - Elderly MH - South,Residential Homes,Four Seasons Health Care,1084.52, 24-Dec-2012
656,Revenue,CCHD,Bed Purchasing - Elderly - South,Nursing Homes,Four Seasons Health Care,1363.20, 24-Dec-2012
657,Revenue,CCHD,Bed Purchasing - Elderly - South,Nursing Homes,Four Seasons Health Care,601.76, 24-Dec-2012
658,Revenue,CCHD,Bed Purchasing - Elderly - South,Nursing Homes,Four Seasons Health Care,1361.80, 24-Dec-2012
659,Revenue,CCHD,Southmead Hospital Purchasing,Nursing Homes,Four Seasons Health Care,1556.91, 24-Dec-2012
660,Revenue,CCHD,Southmead Hospital Purchasing,Nursing Homes,Four Seasons Health Care,947.68, 24-Dec-2012
661,Revenue,CCHD,South Glos Users in South Glos Homes,Nursing Homes,Four Seasons Health Care,714.31, 24-Dec-2012
662,Revenue,CCHD,Frenchay Hospital Purchasing,Nursing Homes,Four Seasons Health Care,1371.20, 24-Dec-2012
663,Revenue,CCHD,Bed Purchasing - Elderly MH - South,Nursing Homes,Four Seasons Health Care,1212.44, 24-Dec-2012
664,Revenue,CCHD,Bed purchasing - Elderly MH - North,Nursing Homes,Four Seasons Health Care,780.24, 24-Dec-2012
665,Revenue,CCHD,Bed Purchasing - Elderly - South,Nursing Homes,Four Seasons Health Care,853.23, 24-Dec-2012
666,Revenue,CCHD,Bed Purchasing - Elderly - North,Residential Homes,Four Seasons Health Care,619.18, 24-Dec-2012
667,Revenue,CCHD,Bed Purchasing - Elderly - North,Nursing Homes,Four Seasons Health Care,956.44, 24-Dec-2012
668,Revenue,CCHD,Frenchay Hospital Purchasing,Residential Homes,Four Seasons Health Care,1239.20, 24-Dec-2012
669,Revenue,CCHD,Frenchay Hospital Purchasing,Nursing Homes,Four Seasons Health Care,1271.88, 24-Dec-2012
670,Revenue,CCHD,Southmead Hospital Purchasing,Residential Homes,Four Seasons Health Care,1230.28, 24-Dec-2012
671,Revenue,CCHD,Bed Purchasing - Elderly - South,Nursing Homes,Four Seasons Health Care,1535.20, 24-Dec-2012
672,Revenue,CCHD,Bed Purchasing - Elderly - North,Nursing Homes,Four Seasons Health Care,1535.20, 24-Dec-2012
673,Revenue,CCHD,Bed Purchasing - Elderly - North,Residential Homes,Four Seasons Health Care,1026.48, 24-Dec-2012
674,Revenue,CCHD,Frenchay Hospital Purchasing,Nursing Homes,Four Seasons Health Care,2908.52, 24-Dec-2012
675,Revenue,CCHD,South Glos Users in South Glos Homes,Nursing Homes,Four Seasons Health Care,1149.11, 24-Dec-2012
676,Revenue,CCHD,Frenchay Hospital Purchasing,Nursing Homes,Four Seasons Health Care,707.48, 24-Dec-2012
677,Revenue,CCHD,Frenchay Hospital Purchasing,Nursing Homes,Four Seasons Health Care,1535.20, 24-Dec-2012
678,Revenue,CCHD,Frenchay Hospital Purchasing,Nursing Homes,Four Seasons Health Care,1308.64, 24-Dec-2012
679,Revenue,CCHD,Bed Purchasing - Elderly - North,Nursing Homes,Four Seasons Health Care,1363.20, 24-Dec-2012
680,Revenue,CCHD,Southmead Hospital Purchasing,Nursing Homes,Four Seasons Health Care,1363.20, 24-Dec-2012
681,Revenue,CCHD,Bed Purchasing - Elderly - North,Nursing Homes,Four Seasons Health Care,1363.20, 24-Dec-2012
682,Revenue,CCHD,Bed Purchasing - Elderly - North,Nursing Homes,Four Seasons Health Care,1287.44, 24-Dec-2012
683,Revenue,CCHD,Bed purchasing - Elderly MH - North,Nursing Homes,Four Seasons Health Care,1457.48, 24-Dec-2012
684,Revenue,CCHD,Bed Purchasing - Elderly - North,Nursing Homes,Four Seasons Health Care,1264.20, 24-Dec-2012
685,Revenue,CCHD,Bed Purchasing - Elderly - North,Nursing Homes,Four Seasons Health Care,1096.56, 24-Dec-2012
686,Revenue,CCHD,Southmead Hospital Purchasing,Nursing Homes,Four Seasons Health Care,1356.56, 24-Dec-2012
687,Revenue,CCHD,Frenchay Hospital Purchasing,Nursing Homes,Four Seasons Health Care,1284.40, 24-Dec-2012
688,Revenue,CCHD,Bed purchasing - Elderly MH - North,Nursing Homes,Four Seasons Health Care,1435.64, 24-Dec-2012
689,Revenue,CCHD,Frenchay Hospital Purchasing,Nursing Homes,Four Seasons Health Care,1343.40, 24-Dec-2012
690,Revenue,CCHD,Bed Purchasing - Elderly - North,Nursing Homes,Four Seasons Health Care,1027.36, 24-Dec-2012
691,Revenue,CCHD,Bed Purchasing - Elderly - North,Residential Homes,Four Seasons Health Care,670.04, 24-Dec-2012
692,Revenue,CCHD,Frenchay Hospital Purchasing,Nursing Homes,Four Seasons Health Care,1522.72, 24-Dec-2012
693,Revenue,CCHD,Bed purchasing - Elderly MH - North,Residential Homes,Four Seasons Health Care,1306.04, 24-Dec-2012
694,Revenue,CCHD,Bed Purchasing - Elderly - North,Nursing Homes,Four Seasons Health Care,1499.20, 24-Dec-2012
695,Revenue,CCHD,Southmead Hospital Purchasing,Nursing Homes,Four Seasons Health Care,1557.95, 24-Dec-2012
696,Revenue,CCHD,Southmead Hospital Purchasing,Nursing Homes,Four Seasons Health Care,1363.20, 24-Dec-2012
697,Revenue,CCHD,Bed Purchasing - Elderly - North,Nursing Homes,Four Seasons Health Care,1363.20, 24-Dec-2012
698,Revenue,CCHD,Bed Purchasing - Elderly - North,Nursing Homes,Four Seasons Health Care,1431.80, 24-Dec-2012
699,Revenue,CCHD,Southmead Hospital Purchasing,Residential Homes,Four Seasons Health Care,705.16, 24-Dec-2012
700,Revenue,CCHD,Southmead Hospital Purchasing,Nursing Homes,Four Seasons Health Care,1442.32, 24-Dec-2012
701,Revenue,CCHD,Frenchay Hospital Purchasing,Nursing Homes,Four Seasons Health Care,1211.32, 24-Dec-2012
702,Revenue,CCHD,Southmead Hospital Purchasing,Nursing Homes,Four Seasons Health Care,1535.20, 24-Dec-2012
703,Revenue,CCHD,Southmead Hospital Purchasing,Residential Homes,Four Seasons Health Care,1427.20, 24-Dec-2012
704,Revenue,CCHD,Southmead Hospital Purchasing,Nursing Homes,Four Seasons Health Care,1347.32, 24-Dec-2012
705,Revenue,CCHD,Bed Purchasing - Elderly - North,Nursing Homes,Four Seasons Health Care,1535.20, 24-Dec-2012
706,Revenue,CCHD,Bed purchasing - Elderly MH - North,Residential Homes,Four Seasons Health Care,1197.16, 24-Dec-2012
707,Revenue,CCHD,Southmead Hospital Purchasing,Residential Homes,Four Seasons Health Care,1239.20, 24-Dec-2012
708,Revenue,CCHD,Bed purchasing - Elderly MH - North,Residential Homes,Four Seasons Health Care,1366.04, 24-Dec-2012
709,Revenue,CCHD,Bed Purchasing - Elderly - North,Nursing Homes,Four Seasons Health Care,1346.60, 24-Dec-2012
710,Revenue,CCHD,Southmead Hospital Purchasing,Nursing Homes,Four Seasons Health Care,1207.08, 24-Dec-2012
711,Revenue,CCHD,Bed purchasing - Elderly MH - North,Nursing Homes,Four Seasons Health Care,1025.24, 24-Dec-2012
712,Revenue,CCHD,Bed Purchasing - Elderly - North,Nursing Homes,Four Seasons Health Care,1363.20, 24-Dec-2012
713,Revenue,CCHD,Bed Purchasing - Elderly - North,Residential Homes,Four Seasons Health Care,1263.20, 24-Dec-2012
714,Revenue,CCHD,South Glos Users in South Glos Homes,Nursing Homes,Four Seasons Health Care,2934.90, 24-Dec-2012
715,Revenue,CCHD,South Glos Users in South Glos Homes,Nursing Homes,Four Seasons Health Care,3928.73, 24-Dec-2012
716,Revenue,CCHD,South Glos Users in South Glos Homes,Nursing Homes,Four Seasons Health Care,2375.87, 24-Dec-2012
717,Revenue,CCHD,Frenchay Hospital Purchasing,Residential Homes,Four Seasons Health Care,1239.20, 24-Dec-2012
718,Revenue,CCHD,Frenchay Hospital Purchasing,Nursing Homes,Four Seasons Health Care,1204.44, 24-Dec-2012
719,Revenue,CCHD,Bed Purchasing - Elderly - North,Nursing Homes,Four Seasons Health Care,1300.48, 24-Dec-2012
720,Revenue,CCHD,Frenchay Hospital Purchasing,Nursing Homes,Four Seasons Health Care,1363.20, 24-Dec-2012
721,Revenue,CCHD,Bed Purchasing - Elderly - North,Nursing Homes,Four Seasons Health Care,1023.36, 24-Dec-2012
722,Revenue,CCHD,Bed Purchasing - Elderly - North,Nursing Homes,Four Seasons Health Care,1273.72, 24-Dec-2012
723,Revenue,CCHD,Frenchay Hospital Purchasing,Nursing Homes,Four Seasons Health Care,1363.20, 24-Dec-2012
724,Revenue,CCHD,Frenchay Hospital Purchasing,Nursing Homes,Four Seasons Health Care,1363.20, 24-Dec-2012
725,Revenue,CCHD,Southmead Hospital Purchasing,Nursing Homes,Four Seasons Health Care,605.72, 24-Dec-2012
726,Revenue,CCHD,Bed Purchasing - Elderly - North,Nursing Homes,Four Seasons Health Care,1070.48, 24-Dec-2012
727,Revenue,CCHD,Frenchay Hospital Purchasing,Nursing Homes,Four Seasons Health Care,1363.20, 24-Dec-2012
728,Revenue,CCHD,Southmead Hospital Purchasing,Nursing Homes,Four Seasons Health Care,758.20, 24-Dec-2012
729,Revenue,CCHD,Frenchay Hospital Purchasing,Nursing Homes,Four Seasons Health Care,1363.20, 24-Dec-2012
730,Revenue,CCHD,Frenchay Hospital Purchasing,Nursing Homes,Four Seasons Health Care,1379.20, 24-Dec-2012
731,Revenue,CCHD,Bed Purchasing - Elderly - South,Nursing Homes,Four Seasons Health Care,1060.72, 24-Dec-2012
732,Revenue,CCHD,Southmead Hospital Purchasing,Nursing Homes,Four Seasons Health Care,1286.40, 24-Dec-2012
733,Revenue,CCHD,Southmead Hospital Purchasing,Residential Homes,Four Seasons Health Care,1118.04, 24-Dec-2012
734,Revenue,CCHD,Southmead Hospital Purchasing,Nursing Homes,Four Seasons Health Care,1363.20, 24-Dec-2012
735,Revenue,CCHD,Frenchay Hospital Purchasing,Nursing Homes,Four Seasons Health Care,2726.40, 24-Dec-2012
736,Revenue,CCHD,South Glos Users in South Glos Homes,Nursing Homes,Four Seasons Health Care,869.60, 24-Dec-2012
737,Revenue,CCHD,Frenchay Hospital Purchasing,Nursing Homes,Four Seasons Health Care,1329.52, 24-Dec-2012
738,Revenue,CCHD,Southmead Hospital Purchasing,Nursing Homes,Four Seasons Health Care,1336.84, 24-Dec-2012
739,Revenue,CCHD,Bed Purchasing - Elderly - North,Residential Homes,Four Seasons Health Care,5950.00, 24-Dec-2012
740,Revenue,CCHD,Bed purchasing - Phys Dis - North,Nursing Homes,Four Seasons Health Care,1367.76, 24-Dec-2012
741,Revenue,CCHD,Frenchay Hospital Purchasing,Nursing Homes,Four Seasons Health Care,1363.20, 24-Dec-2012
742,Revenue,CCHD,Frenchay Hospital Purchasing,Nursing Homes,Four Seasons Health Care,1265.83, 24-Dec-2012
743,Revenue,CCHD,Southmead Hospital Purchasing,Nursing Homes,Four Seasons Health Care,1292.36, 24-Dec-2012
744,Revenue,CCHD,Bed purchasing - Elderly MH - North,Residential Homes,Four Seasons Health Care,1396.20, 24-Dec-2012
745,Revenue,CCHD,Southmead Hospital Purchasing,Nursing Homes,Four Seasons Health Care,2025.40, 24-Dec-2012
746,Revenue,CCHD,South Glos Users in South Glos Homes,Nursing Homes,Four Seasons Health Care,636.67, 24-Dec-2012
747,Revenue,CCHD,Southmead Hospital Purchasing,Residential Homes,Four Seasons Health Care,1163.68, 24-Dec-2012
748,Revenue,CCHD,South Glos Users in South Glos Homes,Nursing Homes,Four Seasons Health Care,3897.67, 24-Dec-2012
749,Revenue,CCHD,Frenchay Hospital Purchasing,Nursing Homes,Four Seasons Health Care,1225.56, 24-Dec-2012
750,Revenue,CCHD,Southmead Hospital Purchasing,Nursing Homes,Four Seasons Health Care,1840.00, 24-Dec-2012
751,Revenue,CCHD,Southmead Hospital Purchasing,Nursing Homes,Four Seasons Health Care,1380.00, 24-Dec-2012
752,Revenue,CCHD,Bed purchasing - Elderly PWLD - South,Residential Homes,Four Seasons Health Care,1239.20, 24-Dec-2012
753,Revenue,CCHD,Frenchay Hospital Purchasing,Nursing Homes,Four Seasons Health Care,1363.20, 24-Dec-2012
754,Revenue,CCHD,Southmead Hospital Purchasing,Nursing Homes,Four Seasons Health Care,1103.76, 24-Dec-2012
755,Revenue,CCHD,Bed Purchasing - Elderly - South,Nursing Homes,Four Seasons Health Care,1286.52, 24-Dec-2012
756,Revenue,CCHD,Bed Purchasing - Elderly - North,Residential Homes,Four Seasons Health Care,1239.20, 24-Dec-2012
757,Revenue,CCHD,Bed Purchasing - Elderly - North,Residential Homes,Four Seasons Health Care,929.40, 24-Dec-2012
758,Revenue,CCHD,Bed Purchasing - Elderly - South,Nursing Homes,Four Seasons Health Care,1352.48, 24-Dec-2012
759,Revenue,CCHD,Southmead Hospital Purchasing,Nursing Homes,Four Seasons Health Care,973.72, 24-Dec-2012
760,Revenue,CCHD,Southmead Hospital Purchasing,Nursing Homes,Four Seasons Health Care,1138.92, 24-Dec-2012
761,Revenue,CCHD,Bed Purchasing - Elderly - South,Residential Homes,Four Seasons Health Care,865.28, 24-Dec-2012
762,Revenue,CCHD,Southmead Hospital Purchasing,Residential Homes,Four Seasons Health Care,1386.00, 24-Dec-2012
763,Revenue,CCHD,South Glos Users in South Glos Homes,Nursing Homes,Four Seasons Health Care,1847.90, 24-Dec-2012
764,Revenue,CCHD,Southmead Hospital Purchasing,Residential Homes,Four Seasons Health Care,1427.20, 24-Dec-2012
765,Revenue,CCHD,Frenchay Hospital Purchasing,Nursing Homes,Four Seasons Health Care,769.44, 24-Dec-2012
766,Revenue,CCHD,Bed Purchasing - Elderly - South,Nursing Homes,Four Seasons Health Care,947.20, 24-Dec-2012
767,Revenue,CCHD,Bed Purchasing - Elderly - South,Residential Homes,Four Seasons Health Care,1084.80, 24-Dec-2012
768,Revenue,CCHD,Bed purchasing - Elderly S117 - South,Nursing Homes,Four Seasons Health Care,1840.00, 24-Dec-2012
769,Revenue,CCHD,Frenchay Hospital Purchasing,Residential Homes,Four Seasons Health Care,1102.84, 24-Dec-2012
770,Revenue,CCHD,Bed Purchasing - Elderly MH - South,Nursing Homes,Four Seasons Health Care,1174.80, 24-Dec-2012
771,Revenue,CCHD,Southmead Hospital Purchasing,Residential Homes,Four Seasons Health Care,1323.96, 24-Dec-2012
772,Revenue,CCHD,Bed Purchasing - Elderly MH - South,Residential Homes,Four Seasons Health Care,936.64, 24-Dec-2012
773,Revenue,CCHD,Southmead Hospital Purchasing,Nursing Homes,Four Seasons Health Care,1363.20, 24-Dec-2012
774,Revenue,CCHD,Frenchay Hospital Purchasing,Nursing Homes,Four Seasons Health Care,1109.56, 24-Dec-2012
775,Revenue,CCHD,Frenchay Hospital Purchasing,Nursing Homes,Four Seasons Health Care,1363.20, 24-Dec-2012
776,Revenue,CCHD,Frenchay Hospital Purchasing,Nursing Homes,Four Seasons Health Care,973.71, 24-Dec-2012
777,Revenue,CCHD,Frenchay Hospital Purchasing,Nursing Homes,Four Seasons Health Care,1595.94, 24-Dec-2012
778,Revenue,CCHD,Frenchay Hospital Purchasing,Nursing Homes,Four Seasons Health Care,1063.96, 24-Dec-2012
779,Revenue,CCHD,Southmead Hospital Purchasing,Nursing Homes,Four Seasons Health Care,991.80, 24-Dec-2012
780,Revenue,CCHD,Southmead Hospital Purchasing,Nursing Homes,Four Seasons Health Care,871.84, 24-Dec-2012
781,Revenue,CCHD,Frenchay Hospital Purchasing,Residential Homes,Four Seasons Health Care,1232.16, 24-Dec-2012
782,Revenue,CCHD,Bed Purchasing - Elderly - North,Nursing Homes,Four Seasons Health Care,1263.48, 24-Dec-2012
783,Revenue,CCHD,Bed Purchasing - Elderly - South,Residential Homes,Four Seasons Health Care,1206.36, 24-Dec-2012
784,Revenue,CCHD,Bed Purchasing - Elderly - South,Nursing Homes,Four Seasons Health Care,1171.60, 24-Dec-2012
785,Revenue,CCHD,Bed Purchasing - Elderly S117- North,Residential Homes,Four Seasons Health Care,2011.04, 24-Dec-2012
786,Revenue,CCHD,Frenchay Hospital Purchasing,Residential Homes,Four Seasons Health Care,1515.84, 24-Dec-2012
787,Revenue,CCHD,Bed purchasing - Phys Dis - North,Nursing Homes,Four Seasons Health Care,845.76, 24-Dec-2012
788,Revenue,CCHD,Home Care - Elderly - South,Other Small Contracts,Freedom Social Care Recruitment,970.62, 10-Dec-2012
789,Revenue,CCHD,Home Care - Elderly - North,Other Small Contracts,Freedom Social Care Recruitment,2641.61, 10-Dec-2012
790,Revenue,CCHD,Day Care - South,Private & Voluntary Day Care,Freedom Social Care Recruitment,63.12, 10-Dec-2012
791,Revenue,CCHD,Home care - Elderly MH - North,Other Small Contracts,Freedom Social Care Recruitment,15.76, 10-Dec-2012
792,Revenue,CCHD,Home Care - Elderly - South,Other Small Contracts,Freedom Social Care Recruitment,817.65, 03-Dec-2012
793,Revenue,CCHD,Home Care - Elderly - North,Other Small Contracts,Freedom Social Care Recruitment,2429.96, 03-Dec-2012
794,Revenue,CCHD,Day Care - South,Private & Voluntary Day Care,Freedom Social Care Recruitment,47.40, 03-Dec-2012
795,Revenue,CCHD,Home Care - Elderly - South,Other Small Contracts,Freedom Social Care Recruitment,730.75, 03-Dec-2012
796,Revenue,CCHD,Home Care - Elderly - North,Other Small Contracts,Freedom Social Care Recruitment,2580.06, 03-Dec-2012
797,Revenue,CCHD,Day Care - South,Private & Voluntary Day Care,Freedom Social Care Recruitment,27.65, 03-Dec-2012
798,Revenue,CCHD,Home care - Elderly MH - North,Other Small Contracts,Freedom Social Care Recruitment,15.80, 03-Dec-2012
799,Revenue,CCHD,Freeways,Residential Homes,Freeways Trust Limited,44356.49, 13-Dec-2012
800,Revenue,CCHD,Supported Living - PS,Private & Voluntary Home Care,Freeways Trust Limited,1510.20, 14-Dec-2012
801,Revenue,CCHD,Bed purchasing - Under 65s PWLD - North,Residential Homes,Freeways Trust Ltd,2791.88, 24-Dec-2012
802,Revenue,CCHD,Bed purchasing - S28A Under 65 - South,Residential Homes,Freeways Trust Ltd,2876.40, 24-Dec-2012
803,Revenue,CCHD,Bed purchasing - Under 65s PWLD - North,Residential Homes,Freeways Trust Ltd,2657.64, 24-Dec-2012
804,Revenue,CCHD,Bed purchasing - Under 65s PWLD - North,Residential Homes,Freeways Trust Ltd,2232.52, 24-Dec-2012
805,Revenue,CCHD,Bed purchasing - Under 65s PWLD - North,Residential Homes,Freeways Trust Ltd,2666.28, 24-Dec-2012
806,Revenue,CCHD,Bed Purchasing - Under 65s PWLD - South,Residential Homes,Freeways Trust Ltd,3259.12, 24-Dec-2012
807,Revenue,CCHD,Bed purchasing - Elderly PWLD - North,Residential Homes,Freeways Trust Ltd,2219.24, 24-Dec-2012
808,Revenue,CCHD,Bed Purchasing - Under 65s PWLD - South,Residential Homes,Freeways Trust Ltd,2364.28, 24-Dec-2012
809,Revenue,CCHD,Bed purchasing - Under 65s PWLD - North,Residential Homes,Freeways Trust Ltd,2666.28, 24-Dec-2012
810,Revenue,CCHD,Bed purchasing - Elderly PWLD - North,Residential Homes,Freeways Trust Ltd,2492.24, 24-Dec-2012
811,Revenue,CCHD,Section 117 Placements MH Younger,Residential Homes,Freeways Trust Ltd,3292.40, 24-Dec-2012
812,Revenue,CCHD,Bed Purchasing - Under 65s PWLD - South,Residential Homes,Freeways Trust Ltd,10031.04, 24-Dec-2012
813,Revenue,CCHD,Bed Purchasing - Under 65s PWLD - South,Residential Homes,Glasallt Fawr,4505.40, 24-Dec-2012
814,Revenue,CCHD,Bed Purchasing - Elderly - North,Nursing Homes,Glebe House Nursing Home,1381.88, 24-Dec-2012
815,Revenue,CCHD,South Glos Users in South Glos Homes,Nursing Homes,Glebe House Nursing Home,869.60, 24-Dec-2012
816,Revenue,CCHD,Bed purchasing - Elderly MH - North,Residential Homes,Glebe House Nursing Home,782.80, 24-Dec-2012
817,Revenue,CCHD,South Glos Users in South Glos Homes,Nursing Homes,Glebe House Nursing Home,2655.39, 24-Dec-2012
818,Revenue,CCHD,South Glos Users in South Glos Homes,Nursing Homes,Glebe House Nursing Home,1102.53, 24-Dec-2012
819,Revenue,CCHD,Bed Purchasing - Elderly - South,Nursing Homes,Glebe House Nursing Home,1375.00, 24-Dec-2012
820,Revenue,CCHD,Bed Purchasing - Elderly - South,Residential Homes,Glebe House Nursing Home,1963.52, 24-Dec-2012
821,Revenue,CCHD,South Glos Users in South Glos Homes,Nursing Homes,Glebe House Nursing Home,683.26, 24-Dec-2012
822,Revenue,CCHD,Southmead Hospital Purchasing,Nursing Homes,Glebe House Nursing Home,1295.20, 24-Dec-2012
823,Revenue,CCHD,Bed Purchasing - Elderly - North,Residential Homes,Glebe House Nursing Home,2529.76, 24-Dec-2012
824,Revenue,CCHD,Bed purchasing - Phys Dis - South,Nursing Homes,Glenside Centre For Brain Injury,7072.36, 24-Dec-2012
825,Revenue,CCHD,Bed Purchasing - Under 65s PWLD - South,Residential Homes,Gordena Care Home,2063.36, 24-Dec-2012
826,Revenue,CCHD,Bed purchasing - Elderly PWLD - South,Residential Homes,Gordena Care Home,4691.96, 24-Dec-2012
827,Revenue,CCHD,Bed purchasing - Elderly PWLD - South,Residential Homes,Gordena Care Home,2904.20, 24-Dec-2012
828,Revenue,CCHD,Bed Purchasing - Under 65s PWLD - South,Residential Homes,Gordena Care Home,1894.04, 24-Dec-2012
829,Revenue,CCHD,Bed Purchasing - Under 65s PWLD - South,Residential Homes,Gordena Care Limited,4119.84, 24-Dec-2012
830,Revenue,CCHD,Bed purchasing - S28A Under 65 - South,Residential Homes,Gordena Care Limited,4018.24, 24-Dec-2012
831,Revenue,CCHD,Bed purchasing - Under 65s PWLD - North,Residential Homes,Gordena Care Limited,3762.44, 24-Dec-2012
832,Revenue,CCHD,Bed Purchasing - Elderly - North,Residential Homes,Greensleeves,5222.24, 24-Dec-2012
833,Revenue,CCHD,Bed Purchasing - Elderly - South,Residential Homes,Gwendoline House,1480.12, 24-Dec-2012
834,Revenue,CCHD,Bed Purchasing - Elderly - South,Residential Homes,Gwendoline House,1158.88, 24-Dec-2012
835,Revenue,CCHD,Bed Purchasing - Elderly MH - South,Residential Homes,Gwendoline House,1263.36, 24-Dec-2012
836,Revenue,CCHD,Southmead Hospital Purchasing,Residential Homes,Gwendoline House,1239.20, 24-Dec-2012
837,Revenue,CCHD,Bed Purchasing - Elderly - South,Residential Homes,Gwendoline House,1123.12, 24-Dec-2012
838,Revenue,CCHD,Bed Purchasing - Elderly - South,Residential Homes,Gwendoline House,1558.44, 24-Dec-2012
839,Revenue,CCHD,Home Care - Elderly - South,Private & Voluntary Home Care,Hanover Housing Association,1695.54, 05-Dec-2012
840,Revenue,CCHD,Bed Purchasing - Elderly - South,Residential Homes,Harefield Hall,1317.48, 24-Dec-2012
841,Revenue,CCHD,Bed Purchasing - Elderly - South,Residential Homes,Harefield Hall,894.00, 24-Dec-2012
842,Revenue,CCHD,Bed Purchasing - Elderly - South,Residential Homes,Harefield Hall,1115.96, 24-Dec-2012
843,Revenue,CCHD,Bed Purchasing - Elderly - South,Residential Homes,Harefield Hall,1766.16, 24-Dec-2012
844,Revenue,CCHD,Bed Purchasing - Elderly - South,Residential Homes,Harefield Hall,1135.39, 24-Dec-2012
845,Revenue,CCHD,Bed Purchasing - Elderly MH - South,Residential Homes,Harefield Hall,1091.48, 24-Dec-2012
846,Revenue,CCHD,Southmead Hospital Purchasing,Nursing Homes,Haven Lodge,1371.08, 24-Dec-2012
847,Revenue,CCHD,Southmead Hospital Purchasing,Nursing Homes,Hc-One Ltd,3205.52, 24-Dec-2012
848,Revenue,CCHD,Bed Purchasing - Elderly - North,Nursing Homes,Hc-One Ltd,972.84, 24-Dec-2012
849,Revenue,CCHD,Bed purchasing - Elderly PWLD - South,Nursing Homes,Hc-One Ltd,1916.20, 24-Dec-2012
850,Revenue,CCHD,Bed purchasing - Elderly MH - North,Nursing Homes,Hc-One Ltd,1467.20, 24-Dec-2012
851,Revenue,CCHD,Bed purchasing - Elderly MH - North,Nursing Homes,Hc-One Ltd,1209.16, 24-Dec-2012
852,Revenue,CCHD,Bed purchasing - Elderly MH - North,Nursing Homes,Hc-One Ltd,1467.20, 24-Dec-2012
853,Revenue,CCHD,Bed purchasing - Elderly MH - North,Nursing Homes,Hc-One Ltd,1156.84, 24-Dec-2012
854,Revenue,CCHD,Bed Purchasing - Elderly S117- North,Nursing Homes,Hc-One Ltd,1929.20, 24-Dec-2012
855,Revenue,CCHD,Frenchay Hospital Purchasing,Residential Homes,Hc-One Ltd,1479.76, 24-Dec-2012
856,Revenue,CCHD,Frenchay Hospital Purchasing,Nursing Homes,Hc-One Ltd,1175.76, 24-Dec-2012
857,Revenue,CCHD,Supported Living - PS,Private & Voluntary Home Care,HFT,3722.08, 21-Dec-2012
858,Revenue,CCHD,Southmead Hospital Purchasing,Residential Homes,Highgate Studios,2334.88, 24-Dec-2012
859,Revenue,CCHD,Bed purchasing - Under 65s PWLD - North,Residential Homes,Holmleigh Care Homes Ltd,3962.92, 24-Dec-2012
860,Revenue,CCHD,Bed Purchasing - Under 65s PWLD - South,Residential Homes,Holmleigh Care Homes Ltd,4980.72, 24-Dec-2012
861,Revenue,CCHD,Southmead Hospital Purchasing,Nursing Homes,Holmwood House,2590.40, 24-Dec-2012
862,Revenue,CCHD,Bed purchasing - Under 65s PWLD - North,Residential Homes,Home Farm Trust Ltd  5-6 Brook Office Pa,2784.12, 24-Dec-2012
863,Revenue,CCHD,Bed purchasing - Elderly PWLD - South,Residential Homes,Home Farm Trust Ltd  5-6 Brook Office Pa,4285.00, 24-Dec-2012
864,Revenue,CCHD,Bed purchasing - Under 65s PWLD - North,Residential Homes,Home Farm Trust Ltd  5-6 Brook Office Pa,3367.08, 24-Dec-2012
865,Revenue,CCHD,Bed Purchasing - Under 65s PWLD - South,Residential Homes,Home Farm Trust Ltd  5-6 Brook Office Pa,4463.00, 24-Dec-2012
866,Revenue,CCHD,Bed purchasing - Under 65s PWLD - North,Residential Homes,Home From Home Care Ltd,9029.56, 24-Dec-2012
867,Revenue,CCHD,Swift Dump Code,Residential Homes,Homes Caring for Autism Ltd,22259.60, 03-Dec-2012
868,Revenue,CCHD,Bed purchasing - Under 65s PWLD - North,Residential Homes,Homes Caring For Autism Ltd  Churchill H,19325.44, 24-Dec-2012
869,Revenue,CCHD,Bed Purchasing - Under 65s PWLD - South,Residential Homes,Homes Caring For Autism Ltd  Churchill H,25193.76, 24-Dec-2012
870,Revenue,CCHD,Bed Purchasing - Elderly - South,Nursing Homes,Horfield Care Limited,3913.53, 13-Dec-2012
871,Revenue,CCHD,Bed Purchasing - Elderly - North,Nursing Homes,Horfield Care Limited,3272.44, 13-Dec-2012
872,Revenue,CCHD,Frenchay Hospital Purchasing,Nursing Homes,Horfield Care Limited,2913.72, 13-Dec-2012
873,Revenue,CCHD,Southmead Hospital Purchasing,Nursing Homes,Horfield Care Limited,8423.01, 13-Dec-2012
874,Revenue,CCHD,Southmead Hospital Purchasing,Nursing Homes,Horfield Lodge,2796.59, 24-Dec-2012
875,Revenue,CCHD,Home Care - Elderly - North,Private & Voluntary Home Care,Housing 21,35812.80, 10-Dec-2012
876,Revenue,CCHD,Housing Needs,Fees - General,Housing Partners Limited,2031.25, 24-Dec-2012
877,Revenue,CCHD,Housing Needs,Fees - General,Housing Partners Limited,1375.00, 24-Dec-2012
878,Revenue,CCHD,Housing Needs,Fees - General,Housing Partners Limited,3500.00, 27-Dec-2012
879,Revenue,CCHD,Housing Needs,Fees - General,Housing Partners Limited,1500.00, 27-Dec-2012
880,Revenue,CCHD,Frenchay Hospital Purchasing,Nursing Homes,Ilsom House,3145.49, 24-Dec-2012
881,Revenue,CCHD,Care Management Team - South,Agency Staff (Operational)/PCT Pay,IPE,2770.63, 07-Dec-2012
882,Revenue,CCHD,Tenancy Start Up Scheme,Other Supplies & Services,J A and Mrs D E Key,1300.00, 24-Dec-2012
883,Revenue,CCHD,Southmead Hospital Purchasing,Nursing Homes,Jasmine Court,1295.20, 24-Dec-2012
884,Revenue,CCHD,Bed Purchasing - Under 65s PWLD - South,Residential Homes,Julia Simone- Supp. Ind.,10587.72, 24-Dec-2012
885,Revenue,CCHD,Bed purchasing -S28A  Under 65 - North,Residential Homes,Julia Simone- Supp. Ind.,10233.48, 24-Dec-2012
886,Revenue,CCHD,Bed Purchasing - Elderly - North,Residential Homes,Katherine House,1192.12, 24-Dec-2012
887,Revenue,CCHD,Bed purchasing - Elderly S117 - South,Residential Homes,Kenver House Residential Home,1879.04, 24-Dec-2012
888,Revenue,CCHD,Frenchay Hospital Purchasing,Residential Homes,Kenver House Residential Home,2114.96, 24-Dec-2012
889,Revenue,CCHD,Bed Purchasing - Elderly MH - South,Residential Homes,Kenver House Residential Home,1354.08, 24-Dec-2012
890,Revenue,CCHD,Bed purchasing - Elderly S117 - South,Residential Homes,Kenver House Residential Home,1879.04, 24-Dec-2012
891,Revenue,CCHD,Bed Purchasing - Elderly MH - South,Residential Homes,Kenver House Residential Home,1273.72, 24-Dec-2012
892,Revenue,CCHD,Bed Purchasing - Elderly S117- North,Residential Homes,Kenver House Residential Home,1880.00, 24-Dec-2012
893,Revenue,CCHD,Southmead Hospital Purchasing,Residential Homes,Kenver House Residential Home,1638.16, 24-Dec-2012
894,Revenue,CCHD,Bed Purchasing - Elderly - South,Residential Homes,Kenver House Residential Home,1638.16, 24-Dec-2012
895,Revenue,CCHD,Southmead Hospital Purchasing,Residential Homes,Kenver House Residential Home,3276.32, 24-Dec-2012
896,Revenue,CCHD,Frenchay Hospital Purchasing,Residential Homes,Kenver House Residential Home,1638.16, 24-Dec-2012
897,Revenue,CCHD,Bed Purchasing - Elderly MH - South,Residential Homes,Kenver House Residential Home,1184.36, 24-Dec-2012
898,Revenue,CCHD,Frenchay Hospital Purchasing,Residential Homes,Kenver House Residential Home,1410.60, 24-Dec-2012
899,Revenue,CCHD,Bed Purchasing - Elderly - South,Residential Homes,Kenver House Residential Home,2854.18, 24-Dec-2012
900,Revenue,CCHD,Bed Purchasing - Elderly - South,Residential Homes,Kenver House Residential Home,1630.96, 24-Dec-2012
901,Revenue,CCHD,Bed Purchasing - Elderly MH - South,Residential Homes,Kenver House Residential Home,1167.88, 24-Dec-2012
902,Revenue,CCHD,Bed Purchasing - Elderly MH - South,Residential Homes,Kenver House Residential Home,1402.24, 24-Dec-2012
903,Revenue,CCHD,Bed Purchasing - Elderly - South,Residential Homes,Kenver House Residential Home,1529.44, 24-Dec-2012
904,Revenue,CCHD,Frenchay Hospital Purchasing,Residential Homes,Kenver House Residential Home,1561.28, 24-Dec-2012
905,Revenue,CCHD,Bed purchasing - Elderly MH - North,Residential Homes,Kenver House Residential Home,2836.28, 24-Dec-2012
906,Revenue,CCHD,Frenchay Hospital Purchasing,Residential Homes,Kenver House Residential Home,8542.86, 24-Dec-2012
907,Revenue,CCHD,Bed Purchasing - Elderly - South,Residential Homes,Kenver House Residential Home,1638.16, 24-Dec-2012
908,Revenue,CCHD,Frenchay Hospital Purchasing,Residential Homes,Kenver House Residential Home,1522.00, 24-Dec-2012
909,Revenue,CCHD,Bed purchasing - Under 65s PWLD - North,Residential Homes,Kisimul Group,11255.24, 24-Dec-2012
910,Revenue,CCHD,Home Care - Elderly - South,Other Small Contracts,Kumari Care Limited,3751.24, 13-Dec-2012
911,Revenue,CCHD,Home Care - Elderly - North,Other Small Contracts,Kumari Care Limited,827.18, 13-Dec-2012
912,Revenue,CCHD,Day Care - South,Private & Voluntary Day Care,Kumari Care Limited,244.48, 13-Dec-2012
913,Revenue,CCHD,Under 65s -MH  Home Care Purch,Other Small Contracts,Kumari Care Limited,148.98, 13-Dec-2012
914,Revenue,CCHD,PWLD Home Care - Under 65 - KH,Private & Voluntary Home Care,Kumari Care Limited,317.06, 13-Dec-2012
915,Revenue,CCHD,Home Care - Elderly - South,Other Small Contracts,Kumari Care Limited,3567.88, 27-Dec-2012
916,Revenue,CCHD,Home Care - Elderly - North,Other Small Contracts,Kumari Care Limited,827.18, 27-Dec-2012
917,Revenue,CCHD,Day Care - South,Private & Voluntary Day Care,Kumari Care Limited,61.12, 27-Dec-2012
918,Revenue,CCHD,Under 65s -MH  Home Care Purch,Other Small Contracts,Kumari Care Limited,148.98, 27-Dec-2012
919,Revenue,CCHD,PWLD Home Care - Under 65 - KH,Private & Voluntary Home Care,Kumari Care Limited,323.91, 27-Dec-2012
920,Revenue,CCHD,Home Care - Elderly - South,Other Small Contracts,Kumari Care Limited,3759.93, 27-Dec-2012
921,Revenue,CCHD,Home Care - Elderly - North,Other Small Contracts,Kumari Care Limited,827.13, 27-Dec-2012
922,Revenue,CCHD,Day Care - South,Private & Voluntary Day Care,Kumari Care Limited,244.48, 27-Dec-2012
923,Revenue,CCHD,Under 65s -MH  Home Care Purch,Other Small Contracts,Kumari Care Limited,145.16, 27-Dec-2012
924,Revenue,CCHD,PWLD Home Care - Under 65 - KH,Private & Voluntary Home Care,Kumari Care Limited,301.24, 27-Dec-2012
925,Revenue,CCHD,Home Care - Elderly - South,Other Small Contracts,Kumari Care Limited,3601.71, 27-Dec-2012
926,Revenue,CCHD,Home Care - Elderly - North,Other Small Contracts,Kumari Care Limited,827.13, 27-Dec-2012
927,Revenue,CCHD,Day Care - South,Private & Voluntary Day Care,Kumari Care Limited,179.54, 27-Dec-2012
928,Revenue,CCHD,Under 65s -MH  Home Care Purch,Other Small Contracts,Kumari Care Limited,148.98, 27-Dec-2012
929,Revenue,CCHD,PWLD Home Care - Under 65 - KH,Private & Voluntary Home Care,Kumari Care Limited,64.14, 27-Dec-2012
930,Revenue,CCHD,Social Lettings Agency,Other Supplies & Services,Leo Howson,565.00, 07-Dec-2012
931,Revenue,CCHD,Bed purchasing - Phys Dis - North,Nursing Homes,Leonard Cheshire  National Account Centr,2631.76, 24-Dec-2012
932,Revenue,CCHD,Bed purchasing - Phys Dis - North,Residential Homes,Leonard Cheshire  National Account Centr,2330.60, 24-Dec-2012
933,Revenue,CCHD,Bed Purchasing - Under 65s PWLD - South,Residential Homes,Leonard Cheshire  National Account Centr,2932.12, 24-Dec-2012
934,Revenue,CCHD,Bed Purchasing - Elderly - North,Nursing Homes,Leonard Cheshire  National Account Centr,3436.60, 24-Dec-2012
935,Revenue,CCHD,Bed purchasing - Phys Dis - North,Nursing Homes,Leonard Cheshire  National Account Centr,2736.60, 24-Dec-2012
936,Revenue,CCHD,Bed Purchasing - Elderly - North,Residential Homes,Leonard Cheshire  National Account Centr,3122.24, 24-Dec-2012
937,Revenue,CCHD,Bed purchasing - Under 65s PWLD - North,Residential Homes,Leonard Cheshire  National Account Centr,17451.24, 24-Dec-2012
938,Revenue,CCHD,Bed purchasing - Under 65s PWLD - North,Residential Homes,Leonard Cheshire  National Account Centr,17446.68, 24-Dec-2012
939,Revenue,CCHD,Bed Purchasing - Elderly - South,Residential Homes,Leonard Cheshire  National Account Centr,8797.84, 24-Dec-2012
940,Revenue,CCHD,Bed purchasing - Phys Dis - North,Nursing Homes,Leonard Cheshire  National Account Centr,2812.44, 24-Dec-2012
941,Revenue,CCHD,Bed purchasing - Phys Dis - North,Nursing Homes,Leonard Cheshire  National Account Centr,3183.12, 24-Dec-2012
942,Revenue,CCHD,Bed purchasing - Phys Dis - North,Residential Homes,Leonard Cheshire  National Account Centr,2862.72, 24-Dec-2012
943,Revenue,CCHD,Bed Purchasing - Elderly - North,Nursing Homes,Leonard Cheshire  National Account Centr,3521.32, 24-Dec-2012
944,Revenue,CCHD,Bed purchasing - Phys Dis - North,Nursing Homes,Leonard Cheshire  National Account Centr,3193.16, 24-Dec-2012
945,Revenue,CCHD,Bed purchasing - Phys Dis - South,Nursing Homes,Leonard Cheshire  National Account Centr,12113.28, 24-Dec-2012
946,Revenue,CCHD,Bed purchasing - Phys Dis - North,Nursing Homes,Leonard Cheshire  National Account Centr,10937.68, 24-Dec-2012
947,Revenue,CCHD,Bed Purchasing - Elderly - South,Nursing Homes,Leonard Cheshire  National Account Centr,2841.24, 24-Dec-2012
948,Revenue,CCHD,Southmead Hospital Purchasing,Nursing Homes,Leonard Cheshire  National Account Centr,2977.88, 24-Dec-2012
949,Revenue,CCHD,South Glos Users in all other LA Homes,Nursing Homes,Leonard Cheshire  National Account Centr,598.40, 24-Dec-2012
950,Revenue,CCHD,Bed purchasing - Phys Dis - North,Nursing Homes,Leonard Cheshire  National Account Centr,3278.52, 24-Dec-2012
951,Revenue,CCHD,Frenchay Hospital Purchasing,Residential Homes,Leonard Cheshire  National Account Centr,3738.32, 24-Dec-2012
952,Revenue,CCHD,Bed Purchasing - Elderly - South,Nursing Homes,Leonard Cheshire  National Account Centr,8654.96, 24-Dec-2012
953,Revenue,CCHD,Bed Purchasing - LD S28A- Over 65- South,Residential Homes,Leonard Cheshire  National Account Centr,2879.08, 24-Dec-2012
954,Revenue,CCHD,Bed Purchasing - Elderly - South,Nursing Homes,Leonard Elms Care Home,1528.76, 24-Dec-2012
955,Revenue,CCHD,Supported Living - KD,Private & Voluntary Home Care,Lifeways Community Care (Gloucester) Ltd,10990.00, 03-Dec-2012
956,Revenue,CCHD,Supported Living - KD,Private & Voluntary Home Care,Lifeways Community Care (Gloucester) Ltd,11394.09, 10-Dec-2012
957,Revenue,CCHD,Bed Purchasing - Elderly - South,Residential Homes,Little Croft,1239.20, 24-Dec-2012
958,Revenue,CCHD,Bed Purchasing - Elderly - South,Residential Homes,Little Croft,1418.60, 24-Dec-2012
959,Revenue,CCHD,Bed Purchasing - Elderly - South,Residential Homes,Little Croft,1431.48, 24-Dec-2012
960,Revenue,CCHD,Bed Purchasing - Elderly - South,Residential Homes,Little Croft,1838.36, 24-Dec-2012
961,Revenue,CCHD,Bed Purchasing - Elderly - South,Residential Homes,Little Croft,1250.72, 24-Dec-2012
962,Revenue,CCHD,Frenchay Hospital Purchasing,Residential Homes,Little Croft,1815.97, 24-Dec-2012
963,Revenue,CCHD,Bed Purchasing - Elderly MH - South,Residential Homes,Little Croft,1172.88, 24-Dec-2012
964,Revenue,CCHD,Southmead Hospital Purchasing,Residential Homes,Little Croft,1202.52, 24-Dec-2012
965,Revenue,CCHD,Bed Purchasing - Elderly - South,Residential Homes,Little Croft,1596.08, 24-Dec-2012
966,Revenue,CCHD,Bed purchasing - Under 65s PWLD - North,Residential Homes,Littlecroft Residential Homes  Longcroft,6524.44, 24-Dec-2012
967,Revenue,CCHD,Supported Living - KD,Private & Voluntary Home Care,Lloyds TSB Commercial Finance Limited,5615.00, 07-Dec-2012
968,Revenue,CCHD,Supported Living - PS,Private & Voluntary Home Care,Lloyds TSB Commercial Finance Limited,3715.80, 21-Dec-2012
969,Revenue,CCHD,Supported Living - PS,Private & Voluntary Home Care,Lloyds TSB Commercial Finance Limited,3824.52, 21-Dec-2012
970,Revenue,CCHD,Supported Living - PS,Private & Voluntary Home Care,Lloyds TSB Commercial Finance Limited,3635.15, 24-Dec-2012
971,Revenue,CCHD,Supported Living - PS,Private & Voluntary Home Care,Lloyds TSB Commercial Finance Limited,6046.52, 05-Dec-2012
972,Revenue,CCHD,Supported Living - PS,Private & Voluntary Home Care,Lloyds TSB Commercial Finance Limited,5969.07, 21-Dec-2012
973,Revenue,CCHD,Supported Living - PS,Private & Voluntary Home Care,Lloyds TSB Commercial Finance Limited,3748.91, 24-Dec-2012
974,Revenue,CCHD,Supported Living - PS,Private & Voluntary Home Care,Lloyds TSB Commercial Finance Limited,4088.30, 05-Dec-2012
975,Revenue,CCHD,Supported Living - PS,Private & Voluntary Home Care,Lloyds TSB Commercial Finance Limited,4009.56, 21-Dec-2012
976,Revenue,CCHD,Supported Living - PS,Private & Voluntary Home Care,Lloyds TSB Commercial Finance Limited,3652.56, 21-Dec-2012
977,Revenue,CCHD,Supported Living - PS,Private & Voluntary Home Care,Lloyds TSB Commercial Finance Limited,3601.80, 21-Dec-2012
978,Revenue,CCHD,Supported Living - PS,Private & Voluntary Home Care,Lloyds TSB Commercial Finance Limited,3443.40, 21-Dec-2012
979,Revenue,CCHD,Supported Living - KD,Private & Voluntary Home Care,Lloyds TSB Commercial Finance Limited,3552.65, 24-Dec-2012
980,Revenue,CCHD,Supported Living - PS,Private & Voluntary Home Care,Lloyds TSB Commercial Finance Limited,3537.22, 05-Dec-2012
981,Revenue,CCHD,Supported Living - PS,Private & Voluntary Home Care,Lloyds TSB Commercial Finance Limited,3492.48, 21-Dec-2012
982,Revenue,CCHD,Supported Living - PS,Private & Voluntary Home Care,Lloyds TSB Commercial Finance Limited,542.64, 21-Dec-2012
983,Revenue,CCHD,Home Care - Elderly - South,Other Small Contracts,Lloyds TSB Commercial Finance Limited,309.60, 05-Dec-2012
984,Revenue,CCHD,Home Care - Elderly - North,Other Small Contracts,Lloyds TSB Commercial Finance Limited,6222.96, 05-Dec-2012
985,Revenue,CCHD,Day Care - South,Private & Voluntary Day Care,Lloyds TSB Commercial Finance Limited,170.28, 05-Dec-2012
986,Revenue,CCHD,Day Care - North,Private & Voluntary Day Care,Lloyds TSB Commercial Finance Limited,406.35, 05-Dec-2012
987,Revenue,CCHD,Home Care - Elderly - South,Other Small Contracts,Lloyds TSB Commercial Finance Limited,363.78, 13-Dec-2012
988,Revenue,CCHD,Home Care - Elderly - North,Other Small Contracts,Lloyds TSB Commercial Finance Limited,6571.26, 13-Dec-2012
989,Revenue,CCHD,Day Care - South,Private & Voluntary Day Care,Lloyds TSB Commercial Finance Limited,139.32, 13-Dec-2012
990,Revenue,CCHD,Day Care - North,Private & Voluntary Day Care,Lloyds TSB Commercial Finance Limited,425.70, 13-Dec-2012
991,Revenue,CCHD,Supported Living - PS,Private & Voluntary Home Care,Loga Care Ltd T/A Logacre,3672.90, 21-Dec-2012
992,Revenue,CCHD,Bed Purchasing - Under 65s PWLD - South,Residential Homes,Longton Court,9508.88, 24-Dec-2012
993,Revenue,CCHD,TSG Practice Placements,Training Expenses,M Harris,603.10, 17-Dec-2012
994,Revenue,CCHD,Southmead Hospital Purchasing,Nursing Homes,Majestic 3 Limited,1001.96, 24-Dec-2012
995,Revenue,CCHD,Frenchay Hospital Purchasing,Residential Homes,Manor Cottage,696.60, 24-Dec-2012
996,Revenue,CCHD,Bed Purchasing - Elderly - South,Residential Homes,Manor Cottage,1190.88, 24-Dec-2012
997,Revenue,CCHD,Bed Purchasing - Elderly - South,Residential Homes,Manor Cottage,1903.20, 24-Dec-2012
998,Revenue,CCHD,Bed Purchasing - Elderly - South,Residential Homes,Manor Cottage,1424.84, 24-Dec-2012
999,Revenue,CCHD,Bed Purchasing - Elderly - South,Residential Homes,Manor Cottage,24692.24, 24-Dec-2012
1000,Revenue,CCHD,Bed Purchasing - Elderly - South,Residential Homes,Manor Cottage,1437.28, 24-Dec-2012
1001,Revenue,CCHD,Bed Purchasing - Elderly - North,Residential Homes,Manton Hall Residential Home,4452.96, 24-Dec-2012
1002,Revenue,CCHD,Social Lettings Agency,Other Supplies & Services,Margaret O`Hara,655.41, 20-Dec-2012
1003,Revenue,CCHD,Bed Purchasing - Elderly MH - South,Nursing Homes,Meadow Care Home,1467.28, 24-Dec-2012
1004,Revenue,CCHD,Home Care - Elderly - South,Private & Voluntary Home Care,Mears Care,48154.25, 27-Dec-2012
1005,Revenue,CCHD,Home Care - Elderly - South,Other Small Contracts,Mears Care,457.50, 18-Dec-2012
1006,Revenue,CCHD,Home Care - Elderly - North,Other Small Contracts,Mears Care,6716.10, 18-Dec-2012
1007,Revenue,CCHD,Day Care - South,Private & Voluntary Day Care,Mears Care,95.16, 18-Dec-2012
1008,Revenue,CCHD,Day Care - North,Private & Voluntary Day Care,Mears Care,259.86, 18-Dec-2012
1009,Revenue,CCHD,Under 65s -MH  Home Care Purch,Other Small Contracts,Mears Care,113.46, 18-Dec-2012
1010,Revenue,CCHD,Home care - Elderly MH - North,Other Small Contracts,Mears Care,684.42, 18-Dec-2012
1011,Revenue,CCHD,Elderly MH Day Care North,Private & Voluntary Day Care,Mears Care,29.28, 18-Dec-2012
1012,Revenue,CCHD,Home Care - Elderly LD - KH,Private & Voluntary Home Care,Mears Care,51.24, 18-Dec-2012
1013,Revenue,CCHD,Home Care - Elderly - South,Other Small Contracts,Mears Care,472.14, 18-Dec-2012
1014,Revenue,CCHD,Home Care - Elderly - North,Other Small Contracts,Mears Care,6913.74, 18-Dec-2012
1015,Revenue,CCHD,Day Care - South,Private & Voluntary Day Care,Mears Care,91.50, 18-Dec-2012
1016,Revenue,CCHD,Day Care - North,Private & Voluntary Day Care,Mears Care,248.88, 18-Dec-2012
1017,Revenue,CCHD,Under 65s -MH  Home Care Purch,Other Small Contracts,Mears Care,109.80, 18-Dec-2012
1018,Revenue,CCHD,Home care - Elderly MH - North,Other Small Contracts,Mears Care,677.10, 18-Dec-2012
1019,Revenue,CCHD,Elderly MH Day Care North,Private & Voluntary Day Care,Mears Care,25.62, 18-Dec-2012
1020,Revenue,CCHD,Home Care - Elderly LD - KH,Private & Voluntary Home Care,Mears Care,51.24, 18-Dec-2012
1021,Revenue,CCHD,Home Care - Elderly - South,Other Small Contracts,Mears Care,508.74, 18-Dec-2012
1022,Revenue,CCHD,Home Care - Elderly - North,Other Small Contracts,Mears Care,6913.74, 18-Dec-2012
1023,Revenue,CCHD,Day Care - South,Private & Voluntary Day Care,Mears Care,87.84, 18-Dec-2012
1024,Revenue,CCHD,Day Care - North,Private & Voluntary Day Care,Mears Care,256.20, 18-Dec-2012
1025,Revenue,CCHD,Under 65s -MH  Home Care Purch,Other Small Contracts,Mears Care,113.46, 18-Dec-2012
1026,Revenue,CCHD,Home care - Elderly MH - North,Other Small Contracts,Mears Care,702.72, 18-Dec-2012
1027,Revenue,CCHD,Home Care - Elderly LD - KH,Private & Voluntary Home Care,Mears Care,51.24, 18-Dec-2012
1028,Revenue,CCHD,Home Care - Elderly - North,Other Small Contracts,Medacs Home Care,605.50, 18-Dec-2012
1029,Revenue,CCHD,Home care - Elderly MH - North,Other Small Contracts,Medacs Home Care,134.94, 18-Dec-2012
1030,Revenue,CCHD,Home Care - Elderly - North,Other Small Contracts,Medacs Home Care,615.88, 18-Dec-2012
1031,Revenue,CCHD,Home care - Elderly MH - North,Other Small Contracts,Medacs Home Care,131.48, 18-Dec-2012
1032,Revenue,CCHD,Home Care - Elderly - North,Other Small Contracts,Medacs Home Care,664.32, 18-Dec-2012
1033,Revenue,CCHD,Home care - Elderly MH - North,Other Small Contracts,Medacs Home Care,100.34, 18-Dec-2012
1034,Revenue,CCHD,Home Care - Elderly - North,Other Small Contracts,Medacs Home Care,657.40, 18-Dec-2012
1035,Revenue,CCHD,Home care - Elderly MH - North,Other Small Contracts,Medacs Home Care,131.48, 18-Dec-2012
1036,Revenue,CCHD,NRS Contract,Daily Living Equipment,Medequip Assistive Technology Ltd,34450.16, 21-Dec-2012
1037,Revenue,CCHD,NRS Contract,Daily Living Equipment,Medequip Assistive Technology Ltd,102551.01, 21-Dec-2012
1038,Revenue,CCHD,Bed Purchasing - Under 65s PWLD - South,Residential Homes,Mencap,2198.88, 24-Dec-2012
1039,Revenue,CCHD,Supported Living (S28a) South,Private & Voluntary Home Care,Mencap - PS North,3751.02, 11-Dec-2012
1040,Revenue,CCHD,Supported Living (S28a) South,Private & Voluntary Home Care,Mencap - PS North,3751.02, 06-Dec-2012
1041,Revenue,CCHD,Supported Living (S28a) South,Private & Voluntary Home Care,Mencap - PS North,3751.02, 06-Dec-2012
1042,Revenue,CCHD,Supported Living (S28a) South,Private & Voluntary Home Care,Mencap - PS North,3751.02, 11-Dec-2012
1043,Revenue,CCHD,Intermediate Care Accommodation,Other Supplies & Services,Merlin Housing Society,969.93, 11-Dec-2012
1044,Revenue,CCHD,Electronic Home Care Monitoring,Other Supplies & Services,Microserve Limited,500.00, 07-Dec-2012
1045,Revenue,CCHD,Frenchay Hospital Purchasing,Residential Homes,Milburn Finance,1035.60, 24-Dec-2012
1046,Revenue,CCHD,Home Care - Elderly - South,Other Small Contracts,Milestones Outreach Dementia Services,855.68, 03-Dec-2012
1047,Revenue,CCHD,Home Care - Elderly - North,Other Small Contracts,Milestones Outreach Dementia Services,477.50, 03-Dec-2012
1048,Revenue,CCHD,Day Care - South,Private & Voluntary Day Care,Milestones Outreach Dementia Services,126.06, 03-Dec-2012
1049,Revenue,CCHD,Day Care - North,Private & Voluntary Day Care,Milestones Outreach Dementia Services,164.16, 03-Dec-2012
1050,Revenue,CCHD,Home care - Elderly MH - North,Other Small Contracts,Milestones Outreach Dementia Services,236.84, 03-Dec-2012
1051,Revenue,CCHD,Elderly MH Day Care North,Private & Voluntary Day Care,Milestones Outreach Dementia Services,252.12, 03-Dec-2012
1052,Revenue,CCHD,Home Care - Elderly - South,Other Small Contracts,Milestones Outreach Dementia Services,1306.44, 03-Dec-2012
1053,Revenue,CCHD,Home Care - Elderly - North,Other Small Contracts,Milestones Outreach Dementia Services,504.24, 03-Dec-2012
1054,Revenue,CCHD,Day Care - South,Private & Voluntary Day Care,Milestones Outreach Dementia Services,122.24, 03-Dec-2012
1055,Revenue,CCHD,Day Care - North,Private & Voluntary Day Care,Milestones Outreach Dementia Services,159.60, 03-Dec-2012
1056,Revenue,CCHD,Home care - Elderly MH - North,Other Small Contracts,Milestones Outreach Dementia Services,221.56, 03-Dec-2012
1057,Revenue,CCHD,Elderly MH Day Care North,Private & Voluntary Day Care,Milestones Outreach Dementia Services,244.48, 03-Dec-2012
1058,Revenue,CCHD,Supported Living - KD,Private & Voluntary Home Care,Milestones Trust,2066.45, 10-Dec-2012
1059,Revenue,CCHD,Purchase of Non-Res Care - PS,Private & Voluntary Day Care,Milestones Trust,1297.68, 05-Dec-2012
1060,Revenue,CCHD,Supported Living (S28a) North,Private & Voluntary Home Care,Milestones Trust,1218.75, 10-Dec-2012
1061,Revenue,CCHD,Supported Living - KD,Private & Voluntary Home Care,Milestones Trust,888.03, 06-Dec-2012
1062,Revenue,CCHD,Supported Living - PS,Private & Voluntary Home Care,Milestones Trust,891.55, 06-Dec-2012
1063,Revenue,CCHD,Supported Living - PS,Private & Voluntary Home Care,Milestones Trust,1037.44, 05-Dec-2012
1064,Revenue,CCHD,Supported Living (S28a) South,Private & Voluntary Home Care,Milestones Trust,677.08, 05-Dec-2012
1065,Revenue,CCHD,Supported Living - PS,Private & Voluntary Home Care,Milestones Trust,966.74, 06-Dec-2012
1066,Revenue,CCHD,Supported Living (S28a) South,Private & Voluntary Home Care,Milestones Trust,4246.57, 05-Dec-2012
1067,Revenue,CCHD,Supported Living (S28a) North,Private & Voluntary Home Care,Milestones Trust,3906.70, 05-Dec-2012
1068,Revenue,CCHD,Supported Living (S28a) North,Private & Voluntary Home Care,Milestones Trust,3479.20, 05-Dec-2012
1069,Revenue,CCHD,Supported Living (S28a) North,Private & Voluntary Home Care,Milestones Trust,3479.20, 05-Dec-2012
1070,Revenue,CCHD,Supported Living (S28a) North,Private & Voluntary Home Care,Milestones Trust,3936.20, 05-Dec-2012
1071,Revenue,CCHD,Supported Living (S28a) North,Private & Voluntary Home Care,Milestones Trust,3936.20, 05-Dec-2012
1072,Revenue,CCHD,Supported Living - PS,Private & Voluntary Home Care,Milestones Trust,510.00, 13-Dec-2012
1073,Revenue,CCHD,Supported Living (S28a) North,Private & Voluntary Home Care,Milestones Trust,8881.00, 05-Dec-2012
1074,Revenue,CCHD,Supported Living (S28a) North,Private & Voluntary Home Care,Milestones Trust,5012.41, 05-Dec-2012
1075,Revenue,CCHD,Supported Living - KD,Private & Voluntary Home Care,Milestones Trust,5047.32, 10-Dec-2012
1076,Revenue,CCHD,Supported Living (S28a) South,Private & Voluntary Home Care,Milestones Trust,3035.14, 05-Dec-2012
1077,Revenue,CCHD,Supported Living (S28a) South,Private & Voluntary Home Care,Milestones Trust,2868.84, 05-Dec-2012
1078,Revenue,CCHD,Supported Living - PS,Private & Voluntary Home Care,Milestones Trust,2746.32, 06-Dec-2012
1079,Revenue,CCHD,Supported Living (S28a) South,Private & Voluntary Home Care,Milestones Trust,3319.64, 05-Dec-2012
1080,Revenue,CCHD,Supported Living - PS,Private & Voluntary Home Care,Milestones Trust,14284.28, 06-Dec-2012
1081,Revenue,CCHD,Supported Living - PS,Private & Voluntary Home Care,Milestones Trust,648.40, 06-Dec-2012
1082,Revenue,CCHD,Supported Living - PS,Private & Voluntary Home Care,Milestones Trust,810.50, 06-Dec-2012
1083,Revenue,CCHD,Supported Living - PS,Private & Voluntary Home Care,Milestones Trust,648.40, 06-Dec-2012
1084,Revenue,CCHD,Supported Living - PS,Private & Voluntary Home Care,Milestones Trust,648.40, 06-Dec-2012
1085,Revenue,CCHD,Supported Living - PS,Private & Voluntary Home Care,Milestones Trust,1296.80, 06-Dec-2012
1086,Revenue,CCHD,Purchase of Non-Res Care - PS,Private & Voluntary Day Care,Milestones Trust,1696.45, 11-Dec-2012
1087,Revenue,CCHD,Purchase of Non-Res Care - PS,Private & Voluntary Day Care,Milestones Trust,528.01, 11-Dec-2012
1088,Revenue,CCHD,Purchase of Non-Res Care - PS,Private & Voluntary Day Care,Milestones Trust,1258.57, 10-Dec-2012
1089,Revenue,CCHD,Purchase of Non-Res Care - PS,Private & Voluntary Day Care,Milestones Trust,1174.45, 10-Dec-2012
1090,Revenue,CCHD,Supported Living - PS,Private & Voluntary Home Care,Milestones Trust,528.00, 10-Dec-2012
1091,Revenue,CCHD,Purchase of Non-Res Care - PS,Private & Voluntary Day Care,Milestones Trust,1428.31, 11-Dec-2012
1092,Revenue,CCHD,Purchase of Non-Res Care - PS,Private & Voluntary Day Care,Milestones Trust,1855.64, 11-Dec-2012
1093,Revenue,CCHD,Purchase of Non-Res Care - PS,Private & Voluntary Day Care,Milestones Trust,1708.00, 10-Dec-2012
1094,Revenue,CCHD,Purchase of Non-Res Care - PS,Private & Voluntary Day Care,Milestones Trust,573.36, 11-Dec-2012
1095,Revenue,CCHD,Purchase of Non-Res Care - PS,Private & Voluntary Day Care,Milestones Trust,1173.07, 11-Dec-2012
1096,Revenue,CCHD,Purchase of Non-Res Care - PS,Private & Voluntary Day Care,Milestones Trust,521.40, 11-Dec-2012
1097,Revenue,CCHD,Purchase of Non-Res Care - PS,Private & Voluntary Day Care,Milestones Trust,1032.38, 10-Dec-2012
1098,Revenue,CCHD,Purchase of Non-Res Care - PS,Private & Voluntary Day Care,Milestones Trust,1454.83, 11-Dec-2012
1099,Revenue,CCHD,Purchase of Non-Res Care - PS,Private & Voluntary Day Care,Milestones Trust,1184.09, 11-Dec-2012
1100,Revenue,CCHD,Supported Living - PS,Private & Voluntary Home Care,Milestones Trust,1836.01, 10-Dec-2012
1101,Revenue,CCHD,Purchase of Non-Res Care - PS,Private & Voluntary Day Care,Milestones Trust,1494.51, 11-Dec-2012
1102,Revenue,CCHD,Supported Living - PS,Private & Voluntary Home Care,Milestones Trust,907.76, 11-Dec-2012
1103,Revenue,CCHD,Supported Living - PS,Private & Voluntary Home Care,Milestones Trust,1134.70, 11-Dec-2012
1104,Revenue,CCHD,Supported Living - PS,Private & Voluntary Home Care,Milestones Trust,907.76, 11-Dec-2012
1105,Revenue,CCHD,Supported Living - PS,Private & Voluntary Home Care,Milestones Trust,907.76, 11-Dec-2012
1106,Revenue,CCHD,Supported Living - KD,Private & Voluntary Home Care,Milestones Trust,1750.09, 14-Dec-2012
1107,Revenue,CCHD,Supported Living - PS,Private & Voluntary Home Care,Milestones Trust,852.93, 11-Dec-2012
1108,Revenue,CCHD,Elderly MH Day Care North,Private & Voluntary Day Care,Milestones Trust,875.52, 11-Dec-2012
1109,Revenue,CCHD,Elderly MH Day Care North,Private & Voluntary Day Care,Milestones Trust,984.96, 11-Dec-2012
1110,Revenue,CCHD,Elderly MH Day Care North,Private & Voluntary Day Care,Milestones Trust,984.96, 11-Dec-2012
1111,Revenue,CCHD,Supported Living (S28a) South,Private & Voluntary Home Care,Milestones Trust,6917.87, 11-Dec-2012
1112,Revenue,CCHD,Supported Living (S28a) North,Private & Voluntary Home Care,Milestones Trust,9204.71, 11-Dec-2012
1113,Revenue,CCHD,Elderly MH Day Care South,Private & Voluntary Day Care,Milestones Trust,680.00, 20-Dec-2012
1114,Revenue,CCHD,Elderly MH Day Care North,Private & Voluntary Day Care,Milestones Trust,520.00, 20-Dec-2012
1115,Revenue,CCHD,Bed purchasing - Elderly S117 - South,Nursing Homes,Mimosa Healthcare Holdings Ltd,1919.72, 24-Dec-2012
1116,Revenue,CCHD,Frenchay Hospital Purchasing,Nursing Homes,Mimosa Healthcare Holdings Ltd,1295.20, 24-Dec-2012
1117,Revenue,CCHD,Bed purchasing - Elderly MH - North,Nursing Homes,Mimosa Healthcare Holdings Ltd,862.52, 24-Dec-2012
1118,Revenue,CCHD,Bed Purchasing - Elderly - South,Nursing Homes,Mimosa Healthcare Holdings Ltd,959.72, 24-Dec-2012
1119,Revenue,CCHD,Frenchay Hospital Purchasing,Nursing Homes,Mimosa Healthcare Holdings Ltd,1295.20, 24-Dec-2012
1120,Revenue,CCHD,Southmead Hospital Purchasing,Residential Homes,Mimosa Healthcare Holdings Ltd,1403.20, 24-Dec-2012
1121,Revenue,CCHD,Southmead Hospital Purchasing,Nursing Homes,Mimosa Healthcare Holdings Ltd,1366.88, 24-Dec-2012
1122,Revenue,CCHD,Bed purchasing - Elderly S117 - South,Residential Homes,Mostyn Lodge Residential Home,1880.00, 24-Dec-2012
1123,Revenue,CCHD,Frenchay Hospital Purchasing,Residential Homes,Mostyn Lodge Residential Home,622.96, 24-Dec-2012
1124,Revenue,CCHD,Older People's Commissioned Se,Grants to Voluntary Bodies,Mothers for Mothers,2135.25, 27-Dec-2012
1125,Revenue,CCHD,Supported Living - PS,Private & Voluntary Home Care,Moving On,3604.44, 11-Dec-2012
1126,Revenue,CCHD,Supported Living - PS,Private & Voluntary Home Care,Moving On,6345.05, 11-Dec-2012
1127,Revenue,CCHD,Social Lettings Agency,Other Supplies & Services,Mr & Mrs R Meredith,565.00, 21-Dec-2012
1128,Revenue,CCHD,Social Lettings Agency,Other Supplies & Services,Mr Alan Bird,850.00, 12-Dec-2012
1129,Revenue,CCHD,Tenancy Start Up Scheme,Other Supplies & Services,Mr Geoff Webb,610.00, 13-Dec-2012
1130,Revenue,CCHD,Under 65s PWLD - KH,Residential Homes,Mr J Davis & Mrs S Davis,1870.91, 04-Dec-2012
1131,Revenue,CCHD,Social Lettings Agency,Other Supplies & Services,Mr Jack Davis,565.00, 07-Dec-2012
1132,Revenue,CCHD,Social Lettings Agency,Other Supplies & Services,Mr Noel Hudson,632.81, 20-Dec-2012
1133,Revenue,CCHD,Social Lettings Agency,Other Supplies & Services,Mr Peter Sargent,551.44, 07-Dec-2012
1134,Revenue,CCHD,Social Lettings Agency,Other Supplies & Services,Mr Po Huen Wong,565.00, 06-Dec-2012
1135,Revenue,CCHD,Social Lettings Agency,Other Supplies & Services,Mr Richard Alder,632.81, 13-Dec-2012
1136,Revenue,CCHD,Social Lettings Agency,Other Supplies & Services,Mr Stephen O`Keefe,580.00, 03-Dec-2012
1137,Revenue,CCHD,Day Care - North,Private & Voluntary Day Care,Mrs B Kimber,543.24, 03-Dec-2012
1138,Revenue,CCHD,Supported Living - KD,Private & Voluntary Home Care,Mrs B Kimber,791.54, 03-Dec-2012
1139,Revenue,CCHD,Elderly MH Day Care South,Private & Voluntary Day Care,Mrs B Kimber,646.45, 10-Dec-2012
1140,Revenue,CCHD,Supported Living - PS,Private & Voluntary Home Care,Mrs B Kimber,8618.72, 14-Dec-2012
1141,Revenue,CCHD,Supported Living - PS,Private & Voluntary Home Care,Mrs B Kimber,10405.17, 18-Dec-2012
1142,Revenue,CCHD,Supported Living - PS,Private & Voluntary Home Care,Mrs B Kimber,1310.73, 24-Dec-2012
1143,Revenue,CCHD,Day Care - South,Private & Voluntary Day Care,Mrs B Kimber,914.30, 20-Dec-2012
1144,Revenue,CCHD,Day Care - North,Private & Voluntary Day Care,Mrs B Kimber,543.24, 27-Dec-2012
1145,Revenue,CCHD,Supported Living - KH,Private & Voluntary Day Care,Mrs B Kimber,1258.23, 21-Dec-2012
1146,Revenue,CCHD,Home Care - Elderly - South,Other Small Contracts,Mrs B Kimber - Stepping Stones,4511.25, 03-Dec-2012
1147,Revenue,CCHD,Home Care - Elderly - North,Other Small Contracts,Mrs B Kimber - Stepping Stones,4503.23, 03-Dec-2012
1148,Revenue,CCHD,Day Care - South,Private & Voluntary Day Care,Mrs B Kimber - Stepping Stones,834.08, 03-Dec-2012
1149,Revenue,CCHD,Day Care - North,Private & Voluntary Day Care,Mrs B Kimber - Stepping Stones,240.60, 03-Dec-2012
1150,Revenue,CCHD,Under 65s -MH  Home Care Purch,Other Small Contracts,Mrs B Kimber - Stepping Stones,208.52, 03-Dec-2012
1151,Revenue,CCHD,Home care - Elderly MH - North,Other Small Contracts,Mrs B Kimber - Stepping Stones,272.68, 03-Dec-2012
1152,Revenue,CCHD,Elderly MH Day Care North,Private & Voluntary Day Care,Mrs B Kimber - Stepping Stones,96.24, 03-Dec-2012
1153,Revenue,CCHD,Home care - Elderly MH - South,Other Small Contracts,Mrs B Kimber - Stepping Stones,220.55, 03-Dec-2012
1154,Revenue,CCHD,Supported Living - KD,Private & Voluntary Home Care,Mrs B Kimber - Stepping Stones,797.99, 03-Dec-2012
1155,Revenue,CCHD,Home Care - LD Under 65 - South,Private & Voluntary Home Care,Mrs B Kimber - Stepping Stones,112.28, 03-Dec-2012
1156,Revenue,CCHD,Home Care - LD Under 65 - North,Private & Voluntary Home Care,Mrs B Kimber - Stepping Stones,48.12, 03-Dec-2012
1157,Revenue,CCHD,PWLD Home Care - Under 65 - KH,Private & Voluntary Home Care,Mrs B Kimber - Stepping Stones,88.22, 03-Dec-2012
1158,Revenue,CCHD,Home Care - Elderly LD - North,Private & Voluntary Home Care,Mrs B Kimber - Stepping Stones,942.35, 03-Dec-2012
1159,Revenue,CCHD,Home Care - Elderly - South,Other Small Contracts,Mrs B Kimber - Stepping Stones,4358.87, 19-Dec-2012
1160,Revenue,CCHD,Home Care - Elderly - North,Other Small Contracts,Mrs B Kimber - Stepping Stones,4038.07, 19-Dec-2012
1161,Revenue,CCHD,Day Care - South,Private & Voluntary Day Care,Mrs B Kimber - Stepping Stones,894.23, 19-Dec-2012
1162,Revenue,CCHD,Day Care - North,Private & Voluntary Day Care,Mrs B Kimber - Stepping Stones,224.56, 19-Dec-2012
1163,Revenue,CCHD,Under 65s -MH  Home Care Purch,Other Small Contracts,Mrs B Kimber - Stepping Stones,236.59, 19-Dec-2012
1164,Revenue,CCHD,Home care - Elderly MH - North,Other Small Contracts,Mrs B Kimber - Stepping Stones,252.63, 19-Dec-2012
1165,Revenue,CCHD,Elderly MH Day Care North,Private & Voluntary Day Care,Mrs B Kimber - Stepping Stones,96.24, 19-Dec-2012
1166,Revenue,CCHD,Home care - Elderly MH - South,Other Small Contracts,Mrs B Kimber - Stepping Stones,192.48, 19-Dec-2012
1167,Revenue,CCHD,Supported Living - KD,Private & Voluntary Home Care,Mrs B Kimber - Stepping Stones,745.86, 19-Dec-2012
1168,Revenue,CCHD,Home Care - LD Under 65 - South,Private & Voluntary Home Care,Mrs B Kimber - Stepping Stones,108.27, 19-Dec-2012
1169,Revenue,CCHD,Home Care - LD Under 65 - North,Private & Voluntary Home Care,Mrs B Kimber - Stepping Stones,48.12, 19-Dec-2012
1170,Revenue,CCHD,PWLD Home Care - Under 65 - KH,Private & Voluntary Home Care,Mrs B Kimber - Stepping Stones,88.22, 19-Dec-2012
1171,Revenue,CCHD,Home Care - Elderly LD - North,Private & Voluntary Home Care,Mrs B Kimber - Stepping Stones,982.45, 19-Dec-2012
1172,Revenue,CCHD,Home Care - Elderly - South,Other Small Contracts,Mrs B Kimber - Stepping Stones,4491.20, 19-Dec-2012
1173,Revenue,CCHD,Home Care - Elderly - North,Other Small Contracts,Mrs B Kimber - Stepping Stones,4034.06, 19-Dec-2012
1174,Revenue,CCHD,Day Care - South,Private & Voluntary Day Care,Mrs B Kimber - Stepping Stones,834.08, 19-Dec-2012
1175,Revenue,CCHD,Day Care - North,Private & Voluntary Day Care,Mrs B Kimber - Stepping Stones,176.44, 19-Dec-2012
1176,Revenue,CCHD,Under 65s -MH  Home Care Purch,Other Small Contracts,Mrs B Kimber - Stepping Stones,200.50, 19-Dec-2012
1177,Revenue,CCHD,Home care - Elderly MH - North,Other Small Contracts,Mrs B Kimber - Stepping Stones,180.45, 19-Dec-2012
1178,Revenue,CCHD,Elderly MH Day Care North,Private & Voluntary Day Care,Mrs B Kimber - Stepping Stones,96.24, 19-Dec-2012
1179,Revenue,CCHD,Home care - Elderly MH - South,Other Small Contracts,Mrs B Kimber - Stepping Stones,216.54, 19-Dec-2012
1180,Revenue,CCHD,Supported Living - KD,Private & Voluntary Home Care,Mrs B Kimber - Stepping Stones,773.93, 19-Dec-2012
1181,Revenue,CCHD,Home Care - LD Under 65 - South,Private & Voluntary Home Care,Mrs B Kimber - Stepping Stones,112.28, 19-Dec-2012
1182,Revenue,CCHD,Home Care - LD Under 65 - North,Private & Voluntary Home Care,Mrs B Kimber - Stepping Stones,48.12, 19-Dec-2012
1183,Revenue,CCHD,PWLD Home Care - Under 65 - KH,Private & Voluntary Home Care,Mrs B Kimber - Stepping Stones,96.24, 19-Dec-2012
1184,Revenue,CCHD,Home Care - Elderly LD - North,Private & Voluntary Home Care,Mrs B Kimber - Stepping Stones,966.41, 19-Dec-2012
1185,Revenue,CCHD,Social Lettings Agency,Other Supplies & Services,Mrs Caroline Isaac,625.00, 18-Dec-2012
1186,Revenue,CCHD,Social Lettings Agency,Other Supplies & Services,Mrs D Parsons,632.81, 12-Dec-2012
1187,Revenue,CCHD,Social Lettings Agency,Other Supplies & Services,Mrs F Wilkins,565.00, 24-Dec-2012
1188,Revenue,CCHD,Supported Living - KD,Residential Homes,Mrs I M Bowerman,3838.40, 05-Dec-2012
1189,Revenue,CCHD,Supported Living - KD,Residential Homes,Mrs I M Bowerman,960.72, 13-Dec-2012
1190,Revenue,CCHD,Social Lettings Agency,Other Supplies & Services,Mrs Irene Skeates,565.00, 12-Dec-2012
1191,Revenue,CCHD,Social Lettings Agency,Other Supplies & Services,Mrs Vicki McDonald,655.41, 14-Dec-2012
1192,Revenue,CCHD,Purchase of Non-Res Care - KD,Private & Voluntary Day Care,Mrs W Thompson,1484.40, 14-Dec-2012
1193,Revenue,CCHD,Purchase of Non-Res Care - KD,Private & Voluntary Day Care,Mrs W Thompson,563.28, 14-Dec-2012
1194,Revenue,CCHD,Social Lettings Agency,Other Supplies & Services,Ms Ann Hunt,858.80, 11-Dec-2012
1195,Revenue,CCHD,Alexandra Way,Cleaning & Domestic Supplies,Muzzell Healthcare,478.20, 04-Dec-2012
1196,Revenue,CCHD,Alexandra Way,Cleaning & Domestic Supplies,Muzzell Healthcare,460.20, 07-Dec-2012
1197,Revenue,CCHD,Younger MH non-res purchasing,Private & Voluntary Day Care,NAS Services Limited,611.20, 20-Dec-2012
1198,Revenue,CCHD,Younger MH non-res purchasing,Private & Voluntary Day Care,NAS Services Limited,573.00, 21-Dec-2012
1199,Revenue,CCHD,Younger MH non-res purchasing,Private & Voluntary Day Care,NAS Services Limited,706.70, 24-Dec-2012
1200,Revenue,CCHD,Younger MH non-res purchasing,Private & Voluntary Day Care,NAS Services Limited,688.89, 27-Dec-2012
1201,Revenue,CCHD,Bed Purchasing - Under 65s PWLD - South,Residential Homes,National Star College,4547.72, 24-Dec-2012
1202,Revenue,CCHD,Younger MH non-res purchasing,Private & Voluntary Day Care,Natureworks Training Community Interest,720.00, 14-Dec-2012
1203,Revenue,CCHD,Younger MH non-res purchasing,Private & Voluntary Day Care,Natureworks Training Community Interest,765.00, 14-Dec-2012
1204,Revenue,CCHD,Day Care - North,Private & Voluntary Day Care,Natureworks Training Community Interest,1213.82, 03-Dec-2012
1205,Revenue,CCHD,Home Care - Elderly - South,Other Small Contracts,Network Health & Social Care,1085.70, 10-Dec-2012
1206,Revenue,CCHD,Home Care - Elderly - North,Other Small Contracts,Network Health & Social Care,5772.90, 10-Dec-2012
1207,Revenue,CCHD,Day Care - North,Private & Voluntary Day Care,Network Health & Social Care,15.40, 10-Dec-2012
1208,Revenue,CCHD,Social Lettings Agency,Other Supplies & Services,Neville James,565.00, 04-Dec-2012
1209,Revenue,CCHD,Assessment Team,"Holidays, Outings & Visits",Neville Williams,1008.00, 11-Dec-2012
1210,Revenue,CCHD,Tenancy Start Up Scheme,Other Supplies & Services,Nigel K Hicks,1250.00, 20-Dec-2012
1211,Revenue,CCHD,Bed Purchasing - Under 65s PWLD - South,Residential Homes,Nightingale Nursing Home,3076.64, 24-Dec-2012
1212,Revenue,CCHD,Delayed Transfers of Care Gran,Other Supplies & Services,North Bristol NHS Trust,7200.00, 05-Dec-2012
1213,Revenue,CCHD,Bed purchasing - S28A Under 65 - South,Residential Homes,North Lincolnshire Council,3615.21, 28-Dec-2012
1214,Revenue,CCHD,Bed purchasing - S28A Under 65 - South,Residential Homes,North Lincolnshire Council,3652.93, 28-Dec-2012
1215,Revenue,CCHD,Bed Purchasing - Under 65s PWLD - South,Residential Homes,Norwood   Broadway House,4853.64, 24-Dec-2012
1216,Revenue,CCHD,Bed Purchasing - Elderly MH - South,Residential Homes,Notaro Homes Ltd  Queensmead Court,1839.64, 24-Dec-2012
1217,Revenue,CCHD,Southmead Hospital Purchasing,Residential Homes,Notaro Homes Ltd  Queensmead Court,1362.84, 24-Dec-2012
1218,Revenue,CCHD,Home Care - Elderly - South,Other Small Contracts,Nursing Solutions Limited,1107.82, 10-Dec-2012
1219,Revenue,CCHD,Home Care - Elderly - South,Other Small Contracts,Nursing Solutions Limited,1084.66, 20-Dec-2012
1220,Revenue,CCHD,Home Care - Elderly - South,Other Small Contracts,Nursing Solutions Limited,1065.36, 10-Dec-2012
1221,Revenue,CCHD,Bed Purchasing - Elderly - South,Residential Homes,Oaktree Lodge,1267.76, 24-Dec-2012
1222,Revenue,CCHD,Home Care - Elderly - South,Other Small Contracts,On the Up,332.34, 13-Dec-2012
1223,Revenue,CCHD,Day Care - South,Private & Voluntary Day Care,On the Up,559.64, 13-Dec-2012
1224,Revenue,CCHD,Day Care - North,Private & Voluntary Day Care,On the Up,474.24, 13-Dec-2012
1225,Revenue,CCHD,Younger MH non-res purchasing,Private & Voluntary Day Care,On the Up,405.84, 13-Dec-2012
1226,Revenue,CCHD,Elderly MH Day Care North,Private & Voluntary Day Care,On the Up,122.24, 13-Dec-2012
1227,Revenue,CCHD,Home Care - Elderly - South,Other Small Contracts,On the Up,489.34, 03-Dec-2012
1228,Revenue,CCHD,Day Care - South,Private & Voluntary Day Care,On the Up,573.32, 03-Dec-2012
1229,Revenue,CCHD,Day Care - North,Private & Voluntary Day Care,On the Up,495.40, 03-Dec-2012
1230,Revenue,CCHD,Younger MH non-res purchasing,Private & Voluntary Day Care,On the Up,351.12, 03-Dec-2012
1231,Revenue,CCHD,Elderly MH Day Care North,Private & Voluntary Day Care,On the Up,61.12, 03-Dec-2012
1232,Revenue,CCHD,Home Care - Elderly - South,Other Small Contracts,On the Up,539.00, 12-Dec-2012
1233,Revenue,CCHD,Day Care - South,Private & Voluntary Day Care,On the Up,609.80, 12-Dec-2012
1234,Revenue,CCHD,Day Care - North,Private & Voluntary Day Care,On the Up,524.40, 12-Dec-2012
1235,Revenue,CCHD,Younger MH non-res purchasing,Private & Voluntary Day Care,On the Up,296.40, 12-Dec-2012
1236,Revenue,CCHD,Elderly MH Day Care North,Private & Voluntary Day Care,On the Up,122.24, 12-Dec-2012
1237,Revenue,CCHD,Home Care - Elderly - South,Other Small Contracts,On the Up,458.78, 12-Dec-2012
1238,Revenue,CCHD,Day Care - South,Private & Voluntary Day Care,On the Up,577.88, 12-Dec-2012
1239,Revenue,CCHD,Day Care - North,Private & Voluntary Day Care,On the Up,528.96, 12-Dec-2012
1240,Revenue,CCHD,Younger MH non-res purchasing,Private & Voluntary Day Care,On the Up,351.12, 12-Dec-2012
1241,Revenue,CCHD,Elderly MH Day Care North,Private & Voluntary Day Care,On the Up,61.12, 12-Dec-2012
1242,Revenue,CCHD,Bed purchasing -S28A  Under 65 - North,Residential Homes,Orchard End Limited,15160.32, 24-Dec-2012
1243,Revenue,CCHD,Bed Purchasing - Elderly - North,Residential Homes,Osbourne Court,956.40, 24-Dec-2012
1244,Revenue,CCHD,Bed Purchasing - Elderly S117- North,Residential Homes,Osbourne Court,1879.04, 24-Dec-2012
1245,Revenue,CCHD,Bed Purchasing - Elderly - North,Residential Homes,Osbourne Court,2619.20, 24-Dec-2012
1246,Revenue,CCHD,Bed Purchasing - Elderly - North,Residential Homes,Osbourne Court,2395.20, 24-Dec-2012
1247,Revenue,CCHD,Bed Purchasing - Elderly S117- North,Residential Homes,Osbourne Court,1716.00, 24-Dec-2012
1248,Revenue,CCHD,Bed Purchasing - Elderly S117- North,Residential Homes,Osbourne Court,1880.00, 24-Dec-2012
1249,Revenue,CCHD,Southmead Hospital Purchasing,Residential Homes,Osbourne Court,7098.76, 24-Dec-2012
1250,Revenue,CCHD,Frenchay Hospital Purchasing,Residential Homes,Osbourne Court,1247.36, 24-Dec-2012
1251,Revenue,CCHD,Bed Purchasing - Under 65s PWLD - South,Residential Homes,Osprey Court,15129.92, 24-Dec-2012
1252,Revenue,CCHD,Bed purchasing - S28A Under 65 - South,Residential Homes,Osprey Court,8439.36, 24-Dec-2012
1253,Revenue,CCHD,Bed purchasing - S28A Under 65 - South,Residential Homes,Osprey Court,12499.92, 24-Dec-2012
1254,Revenue,CCHD,Bed Purchasing - Elderly MH - South,Residential Homes,Park Farm House,1330.80, 24-Dec-2012
1255,Revenue,CCHD,Bed Purchasing - Elderly - South,Residential Homes,Park Farm House,1769.40, 24-Dec-2012
1256,Revenue,CCHD,Bed Purchasing - Elderly - South,Residential Homes,Park Farm House,1880.00, 24-Dec-2012
1257,Revenue,CCHD,Bed Purchasing - Elderly MH - South,Residential Homes,Park Farm House,1582.64, 24-Dec-2012
1258,Revenue,CCHD,Bed Purchasing - Under 65s PWLD - South,Residential Homes,Park Hall,5500.00, 24-Dec-2012
1259,Revenue,CCHD,Bed purchasing - Under 65s PWLD - North,Residential Homes,Park Hall,5082.32, 24-Dec-2012
1260,Revenue,CCHD,Bed Purchasing - Under 65s PWLD - South,Residential Homes,Park Hall,4894.68, 24-Dec-2012
1261,Revenue,CCHD,Bed Purchasing - Under 65s PWLD - South,Residential Homes,Park Hall,2173.96, 24-Dec-2012
1262,Revenue,CCHD,Bed purchasing - Elderly PWLD - South,Residential Homes,Park Hall,2501.56, 24-Dec-2012
1263,Revenue,CCHD,Bed Purchasing - Under 65s PWLD - South,Residential Homes,Park Hall,3788.60, 24-Dec-2012
1264,Revenue,CCHD,Bed purchasing - Elderly PWLD - North,Residential Homes,Park Hall,4855.80, 24-Dec-2012
1265,Revenue,CCHD,Bed purchasing - S28A Under 65 - South,Residential Homes,Park Hall,4571.08, 24-Dec-2012
1266,Revenue,CCHD,Bed Purchasing - Under 65s PWLD - South,Residential Homes,Park Hall,4871.20, 24-Dec-2012
1267,Revenue,CCHD,Bed purchasing - Under 65s PWLD - North,Residential Homes,Park Hall,4274.52, 24-Dec-2012
1268,Revenue,CCHD,Bed Purchasing - S28A - Over 65- North,Residential Homes,Park Hall,5240.84, 24-Dec-2012
1269,Revenue,CCHD,Bed Purchasing - Under 65s PWLD - South,Residential Homes,Park Hall,10510.04, 24-Dec-2012
1270,Revenue,CCHD,Bed purchasing -S28A  Under 65 - North,Residential Homes,Park Hall,5789.40, 24-Dec-2012
1271,Revenue,CCHD,Bed purchasing - S28A Under 65 - South,Residential Homes,Park Hall,5529.44, 24-Dec-2012
1272,Revenue,CCHD,Bed Purchasing - Under 65s PWLD - South,Residential Homes,Penleigh House Care Home,4451.60, 24-Dec-2012
1273,Revenue,CCHD,Bed Purchasing - Under 65s PWLD - South,Residential Homes,Penleigh House Care Home,5175.52, 24-Dec-2012
1274,Revenue,CCHD,Bed purchasing - Elderly PWLD - South,Residential Homes,Penleigh House Care Home,4222.56, 24-Dec-2012
1275,Revenue,CCHD,Bed Purchasing - Under 65s PWLD - South,Residential Homes,Penleigh House Care Home,4599.76, 24-Dec-2012
1276,Revenue,CCHD,Bed purchasing - S28A Under 65 - South,Residential Homes,Penleigh House Care Home,5366.32, 24-Dec-2012
1277,Revenue,CCHD,Bed Purchasing - Under 65s PWLD - South,Residential Homes,Penleigh House Care Home,4847.56, 24-Dec-2012
1278,Revenue,CCHD,Southmead Hospital Purchasing,Residential Homes,Petersfield Nursing Home,874.80, 24-Dec-2012
1279,Revenue,CCHD,Bed Purchasing - Elderly - North,Residential Homes,Petersfield Nursing Home,1271.56, 24-Dec-2012
1280,Revenue,CCHD,Frenchay Hospital Purchasing,Residential Homes,Petersfield Nursing Home,1239.20, 24-Dec-2012
1281,Revenue,CCHD,Frenchay Hospital Purchasing,Residential Homes,Petersfield Nursing Home,840.89, 24-Dec-2012
1282,Revenue,CCHD,Downend Day Centre,Cleaning & Domestic Supplies,PHS Group Plc,1316.50, 17-Dec-2012
1283,Revenue,CCHD,Bed and Breakfast,Bed & Breakfast,Pleasant Bed & Breakfast Limited,588.00, 14-Dec-2012
1284,Revenue,CCHD,Bed and Breakfast,Bed & Breakfast,Pleasant Bed & Breakfast Limited,588.00, 20-Dec-2012
1285,Revenue,CCHD,Bed and Breakfast,Bed & Breakfast,Pleasant Bed & Breakfast Limited,588.00, 21-Dec-2012
1286,Revenue,CCHD,Bed and Breakfast,Bed & Breakfast,Pleasant Bed & Breakfast Limited,588.00, 27-Dec-2012
1287,Revenue,CCHD,Home Care - Elderly - South,Other Small Contracts,Premier Homecare Limited,162.36, 03-Dec-2012
1288,Revenue,CCHD,Home Care - Elderly - North,Other Small Contracts,Premier Homecare Limited,3896.64, 03-Dec-2012
1289,Revenue,CCHD,Day Care - North,Private & Voluntary Day Care,Premier Homecare Limited,126.28, 03-Dec-2012
1290,Revenue,CCHD,Younger MH non-res purchasing,Private & Voluntary Day Care,Premier Homecare Limited,27.06, 03-Dec-2012
1291,Revenue,CCHD,Home care - Elderly MH - North,Other Small Contracts,Premier Homecare Limited,275.11, 03-Dec-2012
1292,Revenue,CCHD,Elderly MH Day Care North,Private & Voluntary Day Care,Premier Homecare Limited,207.46, 03-Dec-2012
1293,Revenue,CCHD,Home Care - Elderly - South,Other Small Contracts,Premier Homecare Limited,175.89, 06-Dec-2012
1294,Revenue,CCHD,Home Care - Elderly - North,Other Small Contracts,Premier Homecare Limited,3995.86, 06-Dec-2012
1295,Revenue,CCHD,Day Care - North,Private & Voluntary Day Care,Premier Homecare Limited,99.22, 06-Dec-2012
1296,Revenue,CCHD,Younger MH non-res purchasing,Private & Voluntary Day Care,Premier Homecare Limited,27.06, 06-Dec-2012
1297,Revenue,CCHD,Home care - Elderly MH - North,Other Small Contracts,Premier Homecare Limited,275.11, 06-Dec-2012
1298,Revenue,CCHD,Elderly MH Day Care North,Private & Voluntary Day Care,Premier Homecare Limited,207.46, 06-Dec-2012
1299,Revenue,CCHD,Home Care - Elderly - South,Other Small Contracts,Premier Homecare Limited,297.66, 12-Dec-2012
1300,Revenue,CCHD,Home Care - Elderly - North,Other Small Contracts,Premier Homecare Limited,3689.18, 12-Dec-2012
1301,Revenue,CCHD,Day Care - North,Private & Voluntary Day Care,Premier Homecare Limited,90.20, 12-Dec-2012
1302,Revenue,CCHD,Younger MH non-res purchasing,Private & Voluntary Day Care,Premier Homecare Limited,31.57, 12-Dec-2012
1303,Revenue,CCHD,Home care - Elderly MH - North,Other Small Contracts,Premier Homecare Limited,279.62, 12-Dec-2012
1304,Revenue,CCHD,Elderly MH Day Care North,Private & Voluntary Day Care,Premier Homecare Limited,207.46, 12-Dec-2012
1305,Revenue,CCHD,Home Care - Elderly - South,Other Small Contracts,Premier Homecare Limited,983.18, 21-Dec-2012
1306,Revenue,CCHD,Home Care - Elderly - North,Other Small Contracts,Premier Homecare Limited,3379.85, 21-Dec-2012
1307,Revenue,CCHD,Day Care - North,Private & Voluntary Day Care,Premier Homecare Limited,126.28, 21-Dec-2012
1308,Revenue,CCHD,Younger MH non-res purchasing,Private & Voluntary Day Care,Premier Homecare Limited,27.06, 21-Dec-2012
1309,Revenue,CCHD,Home care - Elderly MH - North,Other Small Contracts,Premier Homecare Limited,275.11, 21-Dec-2012
1310,Revenue,CCHD,Elderly MH Day Care North,Private & Voluntary Day Care,Premier Homecare Limited,207.46, 21-Dec-2012
1311,Revenue,CCHD,Home Care - Elderly - South,Other Small Contracts,Premier Homecare Limited,1068.87, 27-Dec-2012
1312,Revenue,CCHD,Home Care - Elderly - North,Other Small Contracts,Premier Homecare Limited,4059.00, 27-Dec-2012
1313,Revenue,CCHD,Day Care - North,Private & Voluntary Day Care,Premier Homecare Limited,99.22, 27-Dec-2012
1314,Revenue,CCHD,Younger MH non-res purchasing,Private & Voluntary Day Care,Premier Homecare Limited,31.57, 27-Dec-2012
1315,Revenue,CCHD,Home care - Elderly MH - North,Other Small Contracts,Premier Homecare Limited,270.60, 27-Dec-2012
1316,Revenue,CCHD,Elderly MH Day Care North,Private & Voluntary Day Care,Premier Homecare Limited,211.97, 27-Dec-2012
1317,Revenue,CCHD,Home Care - Elderly - South,Other Small Contracts,Prestige Nursing,760.06, 05-Dec-2012
1318,Revenue,CCHD,Home Care - Elderly - North,Other Small Contracts,Prestige Nursing,1046.15, 05-Dec-2012
1319,Revenue,CCHD,Day Care - South,Private & Voluntary Day Care,Prestige Nursing,324.52, 05-Dec-2012
1320,Revenue,CCHD,Day Care - North,Private & Voluntary Day Care,Prestige Nursing,836.92, 05-Dec-2012
1321,Revenue,CCHD,Home care - Elderly MH - North,Other Small Contracts,Prestige Nursing,388.57, 05-Dec-2012
1322,Revenue,CCHD,Elderly MH Day Care North,Private & Voluntary Day Care,Prestige Nursing,286.09, 05-Dec-2012
1323,Revenue,CCHD,Home Care - Elderly - South,Other Small Contracts,Prestige Nursing,747.25, 05-Dec-2012
1324,Revenue,CCHD,Home Care - Elderly - North,Other Small Contracts,Prestige Nursing,1003.45, 05-Dec-2012
1325,Revenue,CCHD,Day Care - South,Private & Voluntary Day Care,Prestige Nursing,324.52, 05-Dec-2012
1326,Revenue,CCHD,Day Care - North,Private & Voluntary Day Care,Prestige Nursing,687.47, 05-Dec-2012
1327,Revenue,CCHD,Home care - Elderly MH - North,Other Small Contracts,Prestige Nursing,392.84, 05-Dec-2012
1328,Revenue,CCHD,Elderly MH Day Care North,Private & Voluntary Day Care,Prestige Nursing,157.99, 05-Dec-2012
1329,Revenue,CCHD,Home Care - Elderly - South,Other Small Contracts,Prestige Nursing,704.55, 14-Dec-2012
1330,Revenue,CCHD,Home Care - Elderly - North,Other Small Contracts,Prestige Nursing,986.37, 14-Dec-2012
1331,Revenue,CCHD,Day Care - South,Private & Voluntary Day Care,Prestige Nursing,269.01, 14-Dec-2012
1332,Revenue,CCHD,Day Care - North,Private & Voluntary Day Care,Prestige Nursing,832.65, 14-Dec-2012
1333,Revenue,CCHD,Home care - Elderly MH - North,Other Small Contracts,Prestige Nursing,371.49, 14-Dec-2012
1334,Revenue,CCHD,Elderly MH Day Care North,Private & Voluntary Day Care,Prestige Nursing,290.36, 14-Dec-2012
1335,Revenue,CCHD,Home Care - Elderly - South,Other Small Contracts,Prestige Nursing,742.98, 14-Dec-2012
1336,Revenue,CCHD,Home Care - Elderly - North,Other Small Contracts,Prestige Nursing,977.83, 14-Dec-2012
1337,Revenue,CCHD,Day Care - South,Private & Voluntary Day Care,Prestige Nursing,269.01, 14-Dec-2012
1338,Revenue,CCHD,Day Care - North,Private & Voluntary Day Care,Prestige Nursing,836.92, 14-Dec-2012
1339,Revenue,CCHD,Home care - Elderly MH - North,Other Small Contracts,Prestige Nursing,388.57, 14-Dec-2012
1340,Revenue,CCHD,Elderly MH Day Care North,Private & Voluntary Day Care,Prestige Nursing,239.12, 14-Dec-2012
1341,Revenue,CCHD,Home Care - Elderly - South,Other Small Contracts,Prestige Nursing,640.50, 14-Dec-2012
1342,Revenue,CCHD,Home Care - Elderly - North,Other Small Contracts,Prestige Nursing,986.37, 14-Dec-2012
1343,Revenue,CCHD,Day Care - South,Private & Voluntary Day Care,Prestige Nursing,324.52, 14-Dec-2012
1344,Revenue,CCHD,Day Care - North,Private & Voluntary Day Care,Prestige Nursing,841.19, 14-Dec-2012
1345,Revenue,CCHD,Home care - Elderly MH - North,Other Small Contracts,Prestige Nursing,384.30, 14-Dec-2012
1346,Revenue,CCHD,Elderly MH Day Care North,Private & Voluntary Day Care,Prestige Nursing,294.63, 14-Dec-2012
1347,Revenue,CCHD,Home Care - Elderly - South,Other Small Contracts,Prestige Nursing,576.45, 14-Dec-2012
1348,Revenue,CCHD,Home Care - Elderly - North,Other Small Contracts,Prestige Nursing,896.70, 14-Dec-2012
1349,Revenue,CCHD,Day Care - South,Private & Voluntary Day Care,Prestige Nursing,324.52, 14-Dec-2012
1350,Revenue,CCHD,Day Care - North,Private & Voluntary Day Care,Prestige Nursing,653.31, 14-Dec-2012
1351,Revenue,CCHD,Home care - Elderly MH - North,Other Small Contracts,Prestige Nursing,392.84, 14-Dec-2012
1352,Revenue,CCHD,Elderly MH Day Care North,Private & Voluntary Day Care,Prestige Nursing,345.87, 14-Dec-2012
1353,Revenue,CCHD,Older People's Commissioned Se,Grants to Voluntary Bodies,Princess Royal Trust Carers Centre,1930.75, 27-Dec-2012
1354,Revenue,CCHD,Kingswood Centre - Maples Suite,"Provisions (Food, etc)",R Jays Cafe,515.00, 04-Dec-2012
1355,Revenue,CCHD,Kingswood Centre - Maples Suite,"Provisions (Food, etc)",R Jays Cafe,825.00, 28-Dec-2012
1356,Revenue,CCHD,Kingswood Centre - Maples Suite,"Provisions (Food, etc)",R Jays Cafe,500.00, 28-Dec-2012
1357,Revenue,CCHD,Bed purchasing - Elderly MH - North,Nursing Homes,Ravenswood,1265.84, 24-Dec-2012
1358,Revenue,CCHD,Bed Purchasing - Elderly - South,Residential Homes,Ravenswood,3781.68, 24-Dec-2012
1359,Revenue,CCHD,Bed Purchasing - Elderly - North,Nursing Homes,Ravenswood,1534.96, 24-Dec-2012
1360,Revenue,CCHD,Bed Purchasing - Elderly S117- North,Nursing Homes,Redholme Memory Care Limited,1944.12, 24-Dec-2012
1361,Revenue,CCHD,South Glos Users in South Glos Homes,Nursing Homes,Regent House,1444.16, 24-Dec-2012
1362,Revenue,CCHD,Bed Purchasing - Elderly - South,Nursing Homes,Regent House,1637.96, 24-Dec-2012
1363,Revenue,CCHD,Bed Purchasing - Elderly MH - South,Nursing Homes,Regent House,3960.24, 24-Dec-2012
1364,Revenue,CCHD,Bed Purchasing - Elderly - South,Nursing Homes,Regent House,1686.16, 24-Dec-2012
1365,Revenue,CCHD,Bed Purchasing - Elderly - South,Nursing Homes,Regent House,2029.80, 24-Dec-2012
1366,Revenue,CCHD,Bed Purchasing - Elderly - South,Nursing Homes,Regent House,1961.92, 24-Dec-2012
1367,Revenue,CCHD,Bed Purchasing - Elderly - South,Nursing Homes,Regent House,1796.80, 24-Dec-2012
1368,Revenue,CCHD,Bed Purchasing - Elderly - North,Nursing Homes,Regent House,1311.20, 24-Dec-2012
1369,Revenue,CCHD,Bed Purchasing - Elderly - South,Nursing Homes,Regent House,1637.96, 24-Dec-2012
1370,Revenue,CCHD,Bed Purchasing - Elderly - South,Nursing Homes,Regent House,632.92, 24-Dec-2012
1371,Revenue,CCHD,Southmead Hospital Purchasing,Nursing Homes,Regent House,1379.88, 24-Dec-2012
1372,Revenue,CCHD,Bed Purchasing - Elderly - South,Nursing Homes,Regent House,1423.28, 24-Dec-2012
1373,Revenue,CCHD,Bed Purchasing - Elderly - South,Nursing Homes,Regent House,1635.28, 24-Dec-2012
1374,Revenue,CCHD,Bed Purchasing - Elderly MH - South,Nursing Homes,Regent House,1195.08, 24-Dec-2012
1375,Revenue,CCHD,Bed purchasing - Elderly MH - North,Nursing Homes,Regent House,1276.80, 24-Dec-2012
1376,Revenue,CCHD,Bed Purchasing - Elderly - South,Nursing Homes,Regent House,2581.20, 24-Dec-2012
1377,Revenue,CCHD,Bed Purchasing - Under 65s PWLD - South,Residential Homes,Ridgeway House,3418.56, 24-Dec-2012
1378,Revenue,CCHD,Bed Purchasing - Under 65s PWLD - South,Residential Homes,Riverside House,7049.76, 24-Dec-2012
1379,Revenue,CCHD,Bed Purchasing - Elderly - South,Nursing Homes,Riversway Nursing Home,2313.20, 24-Dec-2012
1380,Revenue,CCHD,Southmead Hospital Purchasing,Nursing Homes,Riversway Nursing Home,4040.96, 24-Dec-2012
1381,Revenue,CCHD,Bed Purchasing - Elderly - South,Nursing Homes,Riversway Nursing Home,3156.52, 24-Dec-2012
1382,Revenue,CCHD,Bed Purchasing - Elderly - South,Nursing Homes,Riversway Nursing Home,1953.92, 24-Dec-2012
1383,Revenue,CCHD,Southmead Hospital Purchasing,Residential Homes,Riversway Nursing Home,3235.68, 24-Dec-2012
1384,Revenue,CCHD,Bed purchasing - Elderly PWLD - South,Residential Homes,Rockleaze,2159.92, 24-Dec-2012
1385,Revenue,CCHD,Bed purchasing - Elderly PWLD - South,Residential Homes,Rockleaze,1399.76, 24-Dec-2012
1386,Revenue,CCHD,Bed Purchasing - LD S28A- Over 65- South,Residential Homes,Rockleaze,2039.28, 24-Dec-2012
1387,Revenue,CCHD,Bed Purchasing - Under 65s PWLD - South,Residential Homes,Rockleaze,2364.24, 24-Dec-2012
1388,Revenue,CCHD,Bed purchasing - Elderly PWLD - South,Residential Homes,Rockleaze,1399.76, 24-Dec-2012
1389,Revenue,CCHD,Bed Purchasing - Under 65s PWLD - South,Residential Homes,Rosewood Lodge & Brook House,4460.60, 24-Dec-2012
1390,Revenue,CCHD,Bed Purchasing - Elderly MH - South,Residential Homes,Ross Healthcare,1280.12, 24-Dec-2012
1391,Revenue,CCHD,Bed Purchasing - Under 65s PWLD - South,Residential Homes,Salters Hill Barn,1995.20, 24-Dec-2012
1392,Revenue,CCHD,Southmead Hospital Purchasing,Residential Homes,Sanctuary Care Limited,2032.70, 24-Dec-2012
1393,Revenue,CCHD,Tenancy Start Up Scheme,Other Supplies & Services,Sarah Melford,1450.00, 13-Dec-2012
1394,Revenue,CCHD,Day Care - North,Private & Voluntary Day Care,SeeAbility,1862.15, 27-Dec-2012
1395,Revenue,CCHD,Supported Living - KD,Private & Voluntary Home Care,SeeAbility,1289.83, 27-Dec-2012
1396,Revenue,CCHD,Supported Living - KD,Private & Voluntary Home Care,SeeAbility,6414.56, 27-Dec-2012
1397,Revenue,CCHD,Southmead Hospital Purchasing,Nursing Homes,Sefton Hall Res. & Nursing Home,1944.00, 24-Dec-2012
1398,Revenue,CCHD,Purchase of Non-Res Care - KD,Private & Voluntary Day Care,Selborne Care Ltd,1423.44, 07-Dec-2012
1399,Revenue,CCHD,Purchase of Non-Res Care - KD,Private & Voluntary Day Care,Selborne Care Ltd,892.64, 07-Dec-2012
1400,Revenue,CCHD,Purchase of Non-Res Care - KD,Private & Voluntary Day Care,Selborne Care Ltd,846.52, 07-Dec-2012
1401,Revenue,CCHD,Purchase of Non-Res Care - KD,Private & Voluntary Day Care,Selborne Care Ltd,760.56, 07-Dec-2012
1402,Revenue,CCHD,Purchase of Non-Res Care - KD,Private & Voluntary Day Care,Selborne Care Ltd,791.98, 07-Dec-2012
1403,Revenue,CCHD,Supported Living - PS,Private & Voluntary Home Care,Selborne Care Ltd,2522.82, 24-Dec-2012
1404,Revenue,CCHD,Supported Living - PS,Private & Voluntary Home Care,Selborne Care Ltd,1020.16, 24-Dec-2012
1405,Revenue,CCHD,Supported Living - PS,Private & Voluntary Home Care,Selborne Care Ltd,5080.44, 24-Dec-2012
1406,Revenue,CCHD,Supported Living - PS,Private & Voluntary Home Care,Selborne Care Ltd,1147.80, 24-Dec-2012
1407,Revenue,CCHD,Supported Living - PS,Private & Voluntary Home Care,Selborne Care Ltd,4569.04, 24-Dec-2012
1408,Revenue,CCHD,Supported Living - PS,Private & Voluntary Home Care,Selborne Care Ltd,1813.90, 24-Dec-2012
1409,Revenue,CCHD,Swift Dump Code,Residential Homes,Shaw Health Care,57257.12, 06-Dec-2012
1410,Revenue,CCHD,Southmead Hospital Purchasing,Nursing Homes,Shaw Healthcare Ltd,1467.20, 24-Dec-2012
1411,Revenue,CCHD,Bed Purchasing - Elderly S117- North,Nursing Homes,Shaw Healthcare Ltd,1944.00, 24-Dec-2012
1412,Revenue,CCHD,Bed purchasing - Elderly S117 - South,Nursing Homes,Shaw Healthcare Ltd,4933.00, 24-Dec-2012
1413,Revenue,CCHD,Bed purchasing - Elderly MH - North,Nursing Homes,Shaw Healthcare Ltd,1226.36, 24-Dec-2012
1414,Revenue,CCHD,Bed purchasing - S28A Under 65 - South,Residential Homes,Shaw Healthcare Ltd,10408.68, 24-Dec-2012
1415,Revenue,CCHD,Bed purchasing - S28A Under 65 - South,Residential Homes,Shaw Healthcare Ltd,10410.04, 24-Dec-2012
1416,Revenue,CCHD,Bed purchasing - S28A Under 65 - South,Residential Homes,Shaw Healthcare Ltd,10243.28, 24-Dec-2012
1417,Revenue,CCHD,S117 Placements PCT,Residential Homes,Shaw Healthcare Ltd,30721.52, 24-Dec-2012
1418,Revenue,CCHD,Bed Purchasing - Under 65s PWLD - South,Nursing Homes,Shaw Healthcare Ltd,19324.16, 24-Dec-2012
1419,Revenue,CCHD,Bed Purchasing - Under 65s PWLD - South,Residential Homes,Shaw Healthcare Ltd,8892.88, 24-Dec-2012
1420,Revenue,CCHD,Bed purchasing - Elderly PWLD - South,Residential Homes,Shaw Healthcare Ltd,3875.12, 24-Dec-2012
1421,Revenue,CCHD,Bed purchasing - S28A Under 65 - South,Residential Homes,Shaw Healthcare Ltd,20591.68, 24-Dec-2012
1422,Revenue,CCHD,Bed purchasing - S28A Under 65 - South,Residential Homes,Shaw Healthcare Ltd,23885.04, 24-Dec-2012
1423,Revenue,CCHD,Bed Purchasing - S28A - Over 65- North,Residential Homes,Shaw Healthcare Ltd,4203.20, 24-Dec-2012
1424,Revenue,CCHD,Bed purchasing -S28A  Under 65 - North,Residential Homes,Shaw Healthcare Ltd,4218.40, 24-Dec-2012
1425,Revenue,CCHD,Bed Purchasing - LD S28A- Over 65- South,Residential Homes,Shaw Healthcare Ltd,4722.48, 24-Dec-2012
1426,Revenue,CCHD,Bed Purchasing - Under 65s PWLD - South,Nursing Homes,Shaw Healthcare Ltd,19991.84, 24-Dec-2012
1427,Revenue,CCHD,Bed Purchasing - LD S28A- Over 65- South,Residential Homes,Shaw Healthcare Ltd,4412.12, 24-Dec-2012
1428,Revenue,CCHD,Bed Purchasing - LD S28A- Over 65- South,Residential Homes,Shaw Healthcare Ltd,4404.00, 24-Dec-2012
1429,Revenue,CCHD,Bed Purchasing - LD S28A- Over 65- South,Residential Homes,Shaw Healthcare Ltd,4411.68, 24-Dec-2012
1430,Revenue,CCHD,Bed purchasing -S28A  Under 65 - North,Residential Homes,Shaw Healthcare Ltd,9087.56, 24-Dec-2012
1431,Revenue,CCHD,Bed Purchasing - S28A - Over 65- North,Residential Homes,Shaw Healthcare Ltd,8894.24, 24-Dec-2012
1432,Revenue,CCHD,Purchase of Non-Res Care - KD,Private & Voluntary Day Care,Shaw Healthcare Specialist Services Limited,812.25, 06-Dec-2012
1433,Revenue,CCHD,Supported Living - PS,Private & Voluntary Home Care,Silva Care Limited,4415.44, 18-Dec-2012
1434,Revenue,CCHD,Alexandra Way,Refuse Collection Charges,SITA UK LTD,678.75, 27-Dec-2012
1435,Revenue,CCHD,Newton House,Refuse Collection Charges,SITA UK LTD,583.14, 14-Dec-2012
1436,Revenue,CCHD,Downend Day Centre,Refuse Collection Charges,SITA UK LTD,793.10, 14-Dec-2012
1437,Revenue,CCHD,Bed purchasing - Under 65s PWLD - North,Residential Homes,Small House Homes Limited,35171.20, 24-Dec-2012
1438,Revenue,CCHD,Purchase of Non-Res Care - KD,Private & Voluntary Day Care,Smile Independent Living Support Limited,1089.01, 03-Dec-2012
1439,Revenue,CCHD,Day Care - South,Private & Voluntary Day Care,Smile Independent Living Support Limited,767.30, 20-Dec-2012
1440,Revenue,CCHD,Purchase of Non-Res Care - PS,Private & Voluntary Day Care,Smile Independent Living Support Limited,655.95, 14-Dec-2012
1441,Revenue,CCHD,Supported Living - KD,Private & Voluntary Home Care,Smile Independent Living Support Limited,3156.30, 20-Dec-2012
1442,Revenue,CCHD,Purchase of Non-Res Care - KD,Private & Voluntary Day Care,Smile Independent Living Support Limited,1288.87, 20-Dec-2012
1443,Revenue,CCHD,Supported Living - KD,Private & Voluntary Home Care,Smile Independent Living Support Limited,3253.80, 20-Dec-2012
1444,Revenue,CCHD,Purchase of Non-Res Care - KD,Private & Voluntary Day Care,Smile Independent Living Support Limited,1191.18, 20-Dec-2012
1445,Revenue,CCHD,Purchase of Non-Res Care - KD,Private & Voluntary Day Care,Smile Independent Living Support Limited,632.61, 20-Dec-2012
1446,Revenue,CCHD,Purchase of Non-Res Care - KD,Private & Voluntary Day Care,Smile Independent Living Support Limited,1041.04, 20-Dec-2012
1447,Revenue,CCHD,Purchase of Non-Res Care - KD,Private & Voluntary Day Care,Smile Independent Living Support Limited,621.57, 20-Dec-2012
1448,Revenue,CCHD,Supported Living - KD,Private & Voluntary Home Care,Smile Independent Living Support Limited,2581.96, 20-Dec-2012
1449,Revenue,CCHD,Purchase of Non-Res Care - KD,Private & Voluntary Day Care,Smile Independent Living Support Limited,1307.58, 20-Dec-2012
1450,Revenue,CCHD,User Involvement,Software Purchase,Snap Surveys Limited,111.04, 17-Dec-2012
1451,Revenue,CCHD,Minor Adaptations Service,Maintenance by Contractor,Southern Electric Contracting Limited,161.80, 06-Dec-2012
1452,Revenue,CCHD,Minor Adaptations Service,Maintenance by Contractor,Southern Electric Contracting Limited,358.75, 06-Dec-2012
1453,Revenue,CCHD,Training - Adult Services,Training Expenses,Sphere Leisure Ltd,590.40, 10-Dec-2012
1454,Revenue,CCHD,Training - Adult Services,Training Expenses,Sphere Leisure Ltd,588.17, 10-Dec-2012
1455,Revenue,CCHD,Bed Purchasing - Under 65s PWLD - South,Residential Homes,St Brigas,2036.80, 24-Dec-2012
1456,Revenue,CCHD,Bed Purchasing - Under 65s PWLD - South,Residential Homes,St Brigas,2944.64, 24-Dec-2012
1457,Revenue,CCHD,Bed Purchasing - Under 65s PWLD - South,Residential Homes,St Brigas,1985.08, 24-Dec-2012
1458,Revenue,CCHD,Frenchay Hospital Purchasing,Nursing Homes,St George Nursing Home,1295.20, 24-Dec-2012
1459,Revenue,CCHD,Southmead Hospital Purchasing,Nursing Homes,St George Nursing Home,806.80, 24-Dec-2012
1460,Revenue,CCHD,Bed Purchasing - Elderly - South,Nursing Homes,St George Nursing Home,1295.20, 24-Dec-2012
1461,Revenue,CCHD,Frenchay Hospital Purchasing,Nursing Homes,St George Nursing Home,1295.20, 24-Dec-2012
1462,Revenue,CCHD,Bed Purchasing - Elderly - North,Nursing Homes,St Monicas Trust,2768.40, 24-Dec-2012
1463,Revenue,CCHD,Bed Purchasing - Under 65s PWLD - South,Residential Homes,Stepping Stones Re-Sett. Unit,8597.28, 24-Dec-2012
1464,Revenue,CCHD,Section 117 Placements MH Younger,Private & Voluntary Day Care,Supported Independence Ltd,2287.24, 20-Dec-2012
1465,Revenue,CCHD,Supported Living - PS,Private & Voluntary Home Care,Supported Independence Ltd,1943.34, 11-Dec-2012
1466,Revenue,CCHD,Day Care - North,Private & Voluntary Day Care,Supported Independence Ltd,554.48, 11-Dec-2012
1467,Revenue,CCHD,Younger MH non-res purchasing,Private & Voluntary Day Care,Supported Independence Ltd,991.50, 20-Dec-2012
1468,Revenue,CCHD,Section 117 Placements MH Younger,Private & Voluntary Day Care,Supported Independence Ltd,535.36, 20-Dec-2012
1469,Revenue,CCHD,Younger MH non-res purchasing,Private & Voluntary Day Care,Supported Independence Ltd,1110.48, 20-Dec-2012
1470,Revenue,CCHD,Section 117 Placements MH Younger,Private & Voluntary Day Care,Supported Independence Ltd,535.41, 20-Dec-2012
1471,Revenue,CCHD,Supported Living - KD,Private & Voluntary Home Care,Supported Independence Ltd,783.29, 07-Dec-2012
1472,Revenue,CCHD,Younger MH non-res purchasing,Private & Voluntary Day Care,Supported Independence Ltd,515.58, 20-Dec-2012
1473,Revenue,CCHD,Younger MH non-res purchasing,Private & Voluntary Day Care,Supported Independence Ltd,2348.96, 20-Dec-2012
1474,Revenue,CCHD,Younger MH non-res purchasing,Private & Voluntary Day Care,Supported Independence Ltd,634.56, 20-Dec-2012
1475,Revenue,CCHD,Younger MH non-res purchasing,Private & Voluntary Day Care,Supported Independence Ltd,634.56, 20-Dec-2012
1476,Revenue,CCHD,Section 117 Placements MH Younger,Private & Voluntary Day Care,Supported Independence Ltd,2500.55, 20-Dec-2012
1477,Revenue,CCHD,Section 117 Placements MH Younger,Private & Voluntary Day Care,Supported Independence Ltd,3791.74, 10-Dec-2012
1478,Revenue,CCHD,Section 117 Placements MH Younger,Private & Voluntary Day Care,Supported Independence Ltd,3530.90, 20-Dec-2012
1479,Revenue,CCHD,Supported Living - PS,Private & Voluntary Home Care,Supported Independence Ltd,674.22, 27-Dec-2012
1480,Revenue,CCHD,Supported Living - PS,Private & Voluntary Home Care,Supported Independent Living Schemes,642.96, 19-Dec-2012
1481,Revenue,CCHD,Bed Purchasing - Under 65s PWLD - South,Residential Homes,The Ann Coleman Centre,6046.48, 24-Dec-2012
1482,Revenue,CCHD,Southmead Hospital Purchasing,Residential Homes,The Beeches,696.60, 24-Dec-2012
1483,Revenue,CCHD,Southmead Hospital Purchasing,Residential Homes,The Beeches,1227.40, 24-Dec-2012
1484,Revenue,CCHD,Frenchay Hospital Purchasing,Residential Homes,The Beeches,1141.52, 24-Dec-2012
1485,Revenue,CCHD,Southmead Hospital Purchasing,Residential Homes,The Beeches,1239.20, 24-Dec-2012
1486,Revenue,CCHD,Purchase of Non-Res Care - PS,Private & Voluntary Day Care,The Brandon Trust,506.16, 11-Dec-2012
1487,Revenue,CCHD,Purchase of Non-Res Care - KD,Private & Voluntary Day Care,The Brandon Trust,4668.16, 07-Dec-2012
1488,Revenue,CCHD,Purchase of Non-Res Care - KD,Private & Voluntary Day Care,The Brandon Trust,1193.09, 07-Dec-2012
1489,Revenue,CCHD,Purchase of Non-Res Care - KD,Private & Voluntary Day Care,The Brandon Trust,506.16, 07-Dec-2012
1490,Revenue,CCHD,Purchase of Non-Res Care - KD,Private & Voluntary Day Care,The Brandon Trust,1213.93, 07-Dec-2012
1491,Revenue,CCHD,Purchase of Non-Res Care - KD,Private & Voluntary Day Care,The Brandon Trust,541.84, 07-Dec-2012
1492,Revenue,CCHD,Supported Living - KD,Private & Voluntary Home Care,The Brandon Trust,9305.20, 07-Dec-2012
1493,Revenue,CCHD,Purchase of Non-Res Care - PS,Private & Voluntary Day Care,The Brandon Trust,802.34, 14-Dec-2012
1494,Revenue,CCHD,Purchase of Non-Res Care - PS,Private & Voluntary Day Care,The Brandon Trust,506.16, 14-Dec-2012
1495,Revenue,CCHD,Purchase of Non-Res Care - PS,Private & Voluntary Day Care,The Brandon Trust,759.24, 11-Dec-2012
1496,Revenue,CCHD,Purchase of Non-Res Care - PS,Private & Voluntary Day Care,The Brandon Trust,506.16, 11-Dec-2012
1497,Revenue,CCHD,Purchase of Non-Res Care - PS,Private & Voluntary Day Care,The Brandon Trust,646.04, 11-Dec-2012
1498,Revenue,CCHD,Purchase of Non-Res Care - KD,Private & Voluntary Day Care,The Brandon Trust,5501.76, 21-Dec-2012
1499,Revenue,CCHD,Purchase of Non-Res Care - PS,Private & Voluntary Day Care,The Brandon Trust,1012.32, 11-Dec-2012
1500,Revenue,CCHD,Purchase of Non-Res Care - KD,Private & Voluntary Day Care,The Brandon Trust,1012.32, 20-Dec-2012
1501,Revenue,CCHD,Purchase of Non-Res Care - KD,Private & Voluntary Day Care,The Brandon Trust,510.58, 21-Dec-2012
1502,Revenue,CCHD,Purchase of Non-Res Care - PS,Private & Voluntary Day Care,The Brandon Trust,506.16, 21-Dec-2012
1503,Revenue,CCHD,Purchase of Non-Res Care - PS,Private & Voluntary Day Care,The Brandon Trust,3000.96, 11-Dec-2012
1504,Revenue,CCHD,Purchase of Non-Res Care - PS,Private & Voluntary Day Care,The Brandon Trust,506.16, 21-Dec-2012
1505,Revenue,CCHD,Purchase of Non-Res Care - PS,Private & Voluntary Day Care,The Brandon Trust,506.16, 11-Dec-2012
1506,Revenue,CCHD,Purchase of Non-Res Care - PS,Private & Voluntary Day Care,The Brandon Trust,1012.32, 11-Dec-2012
1507,Revenue,CCHD,Purchase of Non-Res Care - PS,Private & Voluntary Day Care,The Brandon Trust,506.16, 14-Dec-2012
1508,Revenue,CCHD,Purchase of Non-Res Care - KD,Private & Voluntary Day Care,The Brandon Trust,1135.78, 20-Dec-2012
1509,Revenue,CCHD,Purchase of Non-Res Care - KD,Private & Voluntary Day Care,The Brandon Trust,666.88, 21-Dec-2012
1510,Revenue,CCHD,Purchase of Non-Res Care - PS,Private & Voluntary Day Care,The Brandon Trust,506.16, 14-Dec-2012
1511,Revenue,CCHD,Purchase of Non-Res Care - KD,Private & Voluntary Day Care,The Brandon Trust,506.16, 21-Dec-2012
1512,Revenue,CCHD,Purchase of Non-Res Care - KD,Private & Voluntary Day Care,The Brandon Trust,1167.04, 20-Dec-2012
1513,Revenue,CCHD,Purchase of Non-Res Care - PS,Private & Voluntary Day Care,The Brandon Trust,1012.32, 11-Dec-2012
1514,Revenue,CCHD,Purchase of Non-Res Care - PS,Private & Voluntary Day Care,The Brandon Trust,1012.32, 11-Dec-2012
1515,Revenue,CCHD,Purchase of Non-Res Care - KD,Private & Voluntary Day Care,The Brandon Trust,1182.67, 20-Dec-2012
1516,Revenue,CCHD,Supported Living - PS,Private & Voluntary Home Care,The Brandon Trust,759.24, 14-Dec-2012
1517,Revenue,CCHD,Day Care - South,Private & Voluntary Day Care,The Brandon Trust,632.70, 11-Dec-2012
1518,Revenue,CCHD,Purchase of Non-Res Care - PS,Private & Voluntary Day Care,The Brandon Trust,695.97, 11-Dec-2012
1519,Revenue,CCHD,Purchase of Non-Res Care - KD,Private & Voluntary Day Care,The Brandon Trust,562.68, 24-Dec-2012
1520,Revenue,CCHD,Supported Living - PS,Private & Voluntary Home Care,The Brandon Trust,562.68, 11-Dec-2012
1521,Revenue,CCHD,Purchase of Non-Res Care - PS,Private & Voluntary Day Care,The Brandon Trust,506.16, 11-Dec-2012
1522,Revenue,CCHD,Day Care - South,Private & Voluntary Day Care,The Brandon Trust,506.16, 20-Dec-2012
1523,Revenue,CCHD,Purchase of Non-Res Care - PS,Private & Voluntary Day Care,The Brandon Trust,3647.00, 21-Dec-2012
1524,Revenue,CCHD,Purchase of Non-Res Care - PS,Private & Voluntary Day Care,The Brandon Trust,1226.64, 11-Dec-2012
1525,Revenue,CCHD,Purchase of Non-Res Care - PS,Private & Voluntary Day Care,The Brandon Trust,1012.32, 14-Dec-2012
1526,Revenue,CCHD,Day Care - South,Private & Voluntary Day Care,The Brandon Trust,506.16, 11-Dec-2012
1527,Revenue,CCHD,Bed Purchasing - Under 65s PWLD - South,Nursing Homes,The Brandon Trust  Olympus House,4930.56, 24-Dec-2012
1528,Revenue,CCHD,Bed Purchasing - LD S28A- Over 65- South,Residential Homes,The Brandon Trust  Olympus House,4342.24, 24-Dec-2012
1529,Revenue,CCHD,Bed Purchasing - Under 65s PWLD - South,Residential Homes,The Brandon Trust  Olympus House,11325.76, 24-Dec-2012
1530,Revenue,CCHD,Bed Purchasing - Under 65s PWLD - South,Residential Homes,The Brandon Trust  Olympus House,3939.80, 24-Dec-2012
1531,Revenue,CCHD,Bed purchasing - Under 65s PWLD - North,Residential Homes,The Brandon Trust  Olympus House,5182.60, 24-Dec-2012
1532,Revenue,CCHD,Bed purchasing - Elderly PWLD - South,Residential Homes,The Brandon Trust  Olympus House,3384.16, 24-Dec-2012
1533,Revenue,CCHD,Bed Purchasing - LD S28A- Over 65- South,Residential Homes,The Brandon Trust  Olympus House,3835.12, 24-Dec-2012
1534,Revenue,CCHD,Bed Purchasing - Under 65s PWLD - South,Residential Homes,The Brandon Trust  Olympus House,4922.36, 24-Dec-2012
1535,Revenue,CCHD,Bed Purchasing - Under 65s PWLD - South,Residential Homes,The Brandon Trust  Olympus House,1310.49, 24-Dec-2012
1536,Revenue,CCHD,Bed purchasing - S28A Under 65 - South,Nursing Homes,The Brandon Trust  Olympus House,5249.04, 24-Dec-2012
1537,Revenue,CCHD,Bed purchasing - S28A Under 65 - South,Residential Homes,The Brandon Trust  Olympus House,4790.52, 24-Dec-2012
1538,Revenue,CCHD,Bed purchasing - S28A Under 65 - South,Nursing Homes,The Brandon Trust  Olympus House,5249.04, 24-Dec-2012
1539,Revenue,CCHD,Bed Purchasing - LD S28A- Over 65- South,Nursing Homes,The Brandon Trust  Olympus House,5083.64, 24-Dec-2012
1540,Revenue,CCHD,Bed Purchasing - LD S28A- Over 65- South,Nursing Homes,The Brandon Trust  Olympus House,4750.08, 24-Dec-2012
1541,Revenue,CCHD,Bed Purchasing - Under 65s PWLD - South,Residential Homes,The Brandon Trust  Olympus House,8937.32, 24-Dec-2012
1542,Revenue,CCHD,Bed Purchasing - S28A - Over 65- North,Nursing Homes,The Brandon Trust  Olympus House,5369.72, 24-Dec-2012
1543,Revenue,CCHD,Bed purchasing - S28A Under 65 - South,Residential Homes,The Brandon Trust  Olympus House,5078.48, 24-Dec-2012
1544,Revenue,CCHD,Bed purchasing - S28A Under 65 - South,Residential Homes,The Brandon Trust  Olympus House,5132.80, 24-Dec-2012
1545,Revenue,CCHD,Bed Purchasing - S28A - Over 65- North,Residential Homes,The Brandon Trust  Olympus House,7213.64, 24-Dec-2012
1546,Revenue,CCHD,Bed purchasing - S28A Under 65 - South,Nursing Homes,The Brandon Trust  Olympus House,5249.04, 24-Dec-2012
1547,Revenue,CCHD,Bed purchasing - S28A Under 65 - South,Nursing Homes,The Brandon Trust  Olympus House,5249.04, 24-Dec-2012
1548,Revenue,CCHD,Bed purchasing -S28A  Under 65 - North,Nursing Homes,The Brandon Trust  Olympus House,9073.20, 24-Dec-2012
1549,Revenue,CCHD,Bed purchasing - S28A Under 65 - South,Residential Homes,The Brandon Trust  Olympus House,5132.80, 24-Dec-2012
1550,Revenue,CCHD,Bed Purchasing - LD S28A- Over 65- South,Residential Homes,The Brandon Trust  Olympus House,4641.60, 24-Dec-2012
1551,Revenue,CCHD,Bed Purchasing - LD S28A- Over 65- South,Residential Homes,The Brandon Trust  Olympus House,4025.12, 24-Dec-2012
1552,Revenue,CCHD,Bed purchasing - Elderly MH - North,Residential Homes,The Cidermill,1403.20, 24-Dec-2012
1553,Revenue,CCHD,Bed purchasing - Elderly MH - North,Residential Homes,The Cidermill,1403.20, 24-Dec-2012
1554,Revenue,CCHD,Bed purchasing - Elderly MH - North,Residential Homes,The Cidermill,968.48, 24-Dec-2012
1555,Revenue,CCHD,Bed purchasing - Elderly MH - North,Nursing Homes,The Cidermill,1205.80, 24-Dec-2012
1556,Revenue,CCHD,Southmead Hospital Purchasing,Residential Homes,The Cidermill,933.60, 24-Dec-2012
1557,Revenue,CCHD,Bed Purchasing - Elderly - South,Residential Homes,The Estate off Mrs Edith Cary,9398.02, 04-Dec-2012
1558,Revenue,CCHD,Southmead Hospital Purchasing,Residential Homes,The Gables Residential Home,1362.72, 24-Dec-2012
1559,Revenue,CCHD,Bed purchasing - Elderly S117 - South,Residential Homes,The Gables Residential Home,2193.08, 24-Dec-2012
1560,Revenue,CCHD,Bed Purchasing - Elderly - South,Residential Homes,The Gables Residential Home,1372.72, 24-Dec-2012
1561,Revenue,CCHD,Bed Purchasing - Elderly - South,Residential Homes,The Gables Residential Home,1174.72, 24-Dec-2012
1562,Revenue,CCHD,Bed Purchasing - Elderly - South,Residential Homes,The Garden House,888.52, 24-Dec-2012
1563,Revenue,CCHD,Frenchay Hospital Purchasing,Residential Homes,The Garden House,1403.20, 24-Dec-2012
1564,Revenue,CCHD,Southmead Hospital Purchasing,Residential Homes,The Garden House,1342.76, 24-Dec-2012
1565,Revenue,CCHD,Frenchay Hospital Purchasing,Residential Homes,The Garden House,635.00, 24-Dec-2012
1566,Revenue,CCHD,Frenchay Hospital Purchasing,Residential Homes,The Garden House,1232.84, 24-Dec-2012
1567,Revenue,CCHD,Bed Purchasing - Elderly - South,Residential Homes,The Garden House,1598.80, 24-Dec-2012
1568,Revenue,CCHD,Bed Purchasing - Elderly - South,Residential Homes,The Garden House,1483.20, 24-Dec-2012
1569,Revenue,CCHD,Bed Purchasing - Elderly S117- North,Residential Homes,The Garden House,1880.00, 24-Dec-2012
1570,Revenue,CCHD,Bed Purchasing - Elderly - North,Residential Homes,The Garden House,1241.36, 24-Dec-2012
1571,Revenue,CCHD,Southmead Hospital Purchasing,Residential Homes,The Garden House,1165.16, 24-Dec-2012
1572,Revenue,CCHD,Bed Purchasing - Elderly MH - South,Residential Homes,The Garden House,1209.88, 24-Dec-2012
1573,Revenue,CCHD,Bed Purchasing - Elderly - South,Residential Homes,The Garden House,1146.12, 24-Dec-2012
1574,Revenue,CCHD,Bed purchasing - Elderly MH - North,Residential Homes,The Garden House,5635.39, 24-Dec-2012
1575,Revenue,CCHD,Bed purchasing - Elderly MH - North,Residential Homes,The Grove,972.12, 24-Dec-2012
1576,Revenue,CCHD,Bed purchasing - Elderly MH - North,Residential Homes,The Grove,15514.29, 24-Dec-2012
1577,Revenue,CCHD,Bed purchasing - Elderly MH - North,Residential Homes,The Grove,1590.64, 24-Dec-2012
1578,Revenue,CCHD,Bed Purchasing - Elderly - North,Residential Homes,The Grove,1565.64, 24-Dec-2012
1579,Revenue,CCHD,Bed purchasing - Elderly MH - North,Residential Homes,The Grove,573.44, 24-Dec-2012
1580,Revenue,CCHD,Bed Purchasing - Elderly S117- North,Residential Homes,The Grove,2074.28, 24-Dec-2012
1581,Revenue,CCHD,Bed purchasing - Elderly MH - North,Residential Homes,The Grove,1607.72, 24-Dec-2012
1582,Revenue,CCHD,Southmead Hospital Purchasing,Residential Homes,The Grove,1403.20, 24-Dec-2012
1583,Revenue,CCHD,Bed purchasing - Elderly MH - North,Residential Homes,The Grove,1490.64, 24-Dec-2012
1584,Revenue,CCHD,Southmead Hospital Purchasing,Residential Homes,The Grove,1335.12, 24-Dec-2012
1585,Revenue,CCHD,Bed purchasing - Elderly MH - North,Residential Homes,The Grove,1499.52, 24-Dec-2012
1586,Revenue,CCHD,Frenchay Hospital Purchasing,Nursing Homes,The Heathers,1295.20, 24-Dec-2012
1587,Revenue,CCHD,Bed Purchasing - Elderly - South,Nursing Homes,The Heathers,716.04, 24-Dec-2012
1588,Revenue,CCHD,South Glos Users in South Glos Homes,Nursing Homes,The Heathers,2049.77, 24-Dec-2012
1589,Revenue,CCHD,South Glos Users in South Glos Homes,Nursing Homes,The Heathers,869.60, 24-Dec-2012
1590,Revenue,CCHD,Frenchay Hospital Purchasing,Nursing Homes,The Heathers,691.00, 24-Dec-2012
1591,Revenue,CCHD,Southmead Hospital Purchasing,Nursing Homes,The Heathers,1267.08, 24-Dec-2012
1592,Revenue,CCHD,Frenchay Hospital Purchasing,Nursing Homes,The Heathers,7822.33, 24-Dec-2012
1593,Revenue,CCHD,Frenchay Hospital Purchasing,Nursing Homes,The Heathers,1183.92, 24-Dec-2012
1594,Revenue,CCHD,Frenchay Hospital Purchasing,Nursing Homes,The Heathers,1295.20, 24-Dec-2012
1595,Revenue,CCHD,Bed Purchasing - Elderly - North,Nursing Homes,The Heathers,1298.68, 24-Dec-2012
1596,Revenue,CCHD,Bed Purchasing - Elderly - North,Nursing Homes,The Heathers,1061.96, 24-Dec-2012
1597,Revenue,CCHD,Frenchay Hospital Purchasing,Nursing Homes,The Heathers,1295.20, 24-Dec-2012
1598,Revenue,CCHD,Frenchay Hospital Purchasing,Nursing Homes,The Heathers,1229.16, 24-Dec-2012
1599,Revenue,CCHD,Frenchay Hospital Purchasing,Nursing Homes,The Heathers,1211.96, 24-Dec-2012
1600,Revenue,CCHD,Southmead Hospital Purchasing,Nursing Homes,The Heathers,730.72, 24-Dec-2012
1601,Revenue,CCHD,Southmead Hospital Purchasing,Nursing Homes,The Heathers,1152.24, 24-Dec-2012
1602,Revenue,CCHD,Bed purchasing - Elderly MH - North,Residential Homes,The Hollies,1277.48, 24-Dec-2012
1603,Revenue,CCHD,Bed Purchasing - PWLD S 117 Placements,Residential Homes,The Lodge,12702.92, 14-Dec-2012
1604,Revenue,CCHD,Bed Purchasing - PWLD S 117 Placements,Residential Homes,The Lodge,7904.04, 24-Dec-2012
1605,Revenue,CCHD,Bed purchasing - Elderly PWLD - South,Residential Homes,The Manor House,1636.32, 24-Dec-2012
1606,Revenue,CCHD,Bed purchasing - Elderly PWLD - South,Residential Homes,The Manor House,1309.04, 24-Dec-2012
1607,Revenue,CCHD,Bed Purchasing - Under 65s PWLD - South,Residential Homes,The Manor House,4848.44, 24-Dec-2012
1608,Revenue,CCHD,Bed Purchasing - Under 65s PWLD - South,Residential Homes,The Manor House,3443.84, 24-Dec-2012
1609,Revenue,CCHD,Bed Purchasing - Under 65s PWLD - South,Residential Homes,The Manor House,2649.08, 24-Dec-2012
1610,Revenue,CCHD,Bed purchasing - Under 65s PWLD - North,Residential Homes,The Manor House,2747.12, 24-Dec-2012
1611,Revenue,CCHD,Bed Purchasing - Under 65s PWLD - South,Residential Homes,The Manor House,3219.12, 24-Dec-2012
1612,Revenue,CCHD,Bed purchasing - Under 65s PWLD - North,Residential Homes,The Manor House,2790.24, 24-Dec-2012
